Council Name,Date,TransNo,Amount � (Excl VAT),Supplier name,Supplier Category,Expense Area,Expense Type,Expense Code
Royal Borough of Kingston,01/09/2022,90235330,"5,785.71",Claremont Care Services Ltd,SOCIAL SERVICES RESIDENTIAL,Adult Social Care & Health,Independent Placements,A56006
Royal Borough of Kingston,01/09/2022,90235331,"39,535.71",Claremont Care Services Ltd,SOCIAL SERVICES RESIDENTIAL,Adult Social Care & Health,Independent Placements,A56006
Royal Borough of Kingston,01/05/2023,90237028,"5,978.57",Claremont Care Services Ltd,SOCIAL SERVICES RESIDENTIAL,Adult Social Care & Health,Independent Placements,A56006
Royal Borough of Kingston,30/04/2023,70046017,"21,637.00",31TEN CONSULTING LIMITED,TEMP STAFF & CONSULTANCY,Corporate & Communities,Consultancy Services,A56007
Royal Borough of Kingston,30/04/2023,70046086,500.00,31TEN CONSULTING LIMITED,TEMP STAFF & CONSULTANCY,Place,External Fees and Consultants,C20000
Royal Borough of Kingston,30/04/2023,70046086,"2,500.00",31TEN CONSULTING LIMITED,TEMP STAFF & CONSULTANCY,Place,External Fees and Consultants,C20000
Royal Borough of Kingston,02/05/2023,70045839,800.00,3SPIRIT ENTERPRISE UK LTD,TRAINING,Adult Social Care & Health,Staff Development And Training,A15022
Royal Borough of Kingston,25/05/2023,90236318,"1,375.00",REDACTED - PERSONAL DATA,PLS LANDLORDS,Place,PSL Payments To Landlords,A22031
Royal Borough of Kingston,25/05/2023,90236370,"1,375.00",REDACTED - PERSONAL DATA,PLS LANDLORDS,Place,PSL Payments To Landlords,A22031
Royal Borough of Kingston,26/02/2021,70046655,905.00,ALAN GREENWOOD AND SONS,LEGAL & PROFESSIONAL SERVICES,Adult Social Care & Health,Professional Fees,A44066
Royal Borough of Kingston,24/02/2021,70046656,537.00,ALAN GREENWOOD AND SONS,LEGAL & PROFESSIONAL SERVICES,Adult Social Care & Health,Professional Fees,A44066
Royal Borough of Kingston,24/02/2021,70046657,"2,440.00",ALAN GREENWOOD AND SONS,LEGAL & PROFESSIONAL SERVICES,Adult Social Care & Health,Professional Fees,A44066
Royal Borough of Kingston,06/05/2021,70046660,797.00,ALAN GREENWOOD AND SONS,LEGAL & PROFESSIONAL SERVICES,Adult Social Care & Health,Professional Fees,A44066
Royal Borough of Kingston,25/05/2023,90236211,"1,097.00",REDACTED - PERSONAL DATA,PLS LANDLORDS,Place,PSL Payments To Landlords,A22031
Royal Borough of Kingston,25/05/2023,90236273,"1,125.00",REDACTED - PERSONAL DATA,PLS LANDLORDS,Place,PSL Payments To Landlords,A22031
Royal Borough of Kingston,25/05/2023,90236361,"2,300.00",REDACTED - PERSONAL DATA,PLS LANDLORDS,Place,PSL Payments To Landlords,A22031
Royal Borough of Kingston,25/05/2023,90236362,"2,300.00",REDACTED - PERSONAL DATA,PLS LANDLORDS,Place,PSL Payments To Landlords,A22031
Royal Borough of Kingston,25/05/2023,90236363,"2,300.00",REDACTED - PERSONAL DATA,PLS LANDLORDS,Place,PSL Payments To Landlords,A22031
Royal Borough of Kingston,25/05/2023,90236524,"2,300.00",REDACTED - PERSONAL DATA,PLS LANDLORDS,Place,PSL Payments To Landlords,A22031
Royal Borough of Kingston,25/05/2023,90236314,993.34,REDACTED - PERSONAL DATA,PLS LANDLORDS,Place,PSL Payments To Landlords,A22031
Royal Borough of Kingston,03/05/2023,70046265,499.98,A3 APPLIANCES LTD,OPERATIONAL EQUIPMENT/MATERIAL,Place,Equipment And Materials Purchase,A40000
Royal Borough of Kingston,09/05/2023,90232687,"8,955.54",ABACUS PRE-SCHOOL,ACADEMIC INSTNS - OTHER,Schools,PVI Providers,A60014
Royal Borough of Kingston,09/05/2023,90232799,"1,822.50",ABACUS PRE-SCHOOL,ACADEMIC INSTNS - OTHER,Schools,2 Yr Old Place Funding,A60000
Royal Borough of Kingston,01/05/2023,90236863,"4,027.07",ABBEYFIELD,SOCIAL SERVICES RESIDENTIAL,Adult Social Care & Health,Independent Placements,A56006
Royal Borough of Kingston,01/05/2023,90236864,"-3,740.40",ABBEYFIELD,SOCIAL SERVICES RESIDENTIAL,Adult Social Care & Health,Independent Placements,A56006
Royal Borough of Kingston,01/05/2023,90236865,"4,161.31",ABBEYFIELD,SOCIAL SERVICES RESIDENTIAL,Adult Social Care & Health,Independent Placements,A56006
Royal Borough of Kingston,01/05/2023,90236870,"4,027.07",ABBEYFIELD,SOCIAL SERVICES RESIDENTIAL,Adult Social Care & Health,Independent Placements,A56006
Royal Borough of Kingston,01/05/2023,90236871,"-3,740.40",ABBEYFIELD,SOCIAL SERVICES RESIDENTIAL,Adult Social Care & Health,Independent Placements,A56006
Royal Borough of Kingston,01/05/2023,90236872,"4,161.31",ABBEYFIELD,SOCIAL SERVICES RESIDENTIAL,Adult Social Care & Health,Independent Placements,A56006
Royal Borough of Kingston,01/05/2023,90236877,"4,027.07",ABBEYFIELD,SOCIAL SERVICES RESIDENTIAL,Adult Social Care & Health,Independent Placements,A56006
Royal Borough of Kingston,01/05/2023,90236878,"-3,740.40",ABBEYFIELD,SOCIAL SERVICES RESIDENTIAL,Adult Social Care & Health,Independent Placements,A56006
Royal Borough of Kingston,01/05/2023,90236879,"4,161.31",ABBEYFIELD,SOCIAL SERVICES RESIDENTIAL,Adult Social Care & Health,Independent Placements,A56006
Royal Borough of Kingston,01/05/2023,90236890,"3,865.08",ABBEYFIELD,SOCIAL SERVICES RESIDENTIAL,Adult Social Care & Health,Independent Placements,A56006
Royal Borough of Kingston,01/05/2023,90236891,"3,865.08",ABBEYFIELD,SOCIAL SERVICES RESIDENTIAL,Adult Social Care & Health,Independent Placements,A56006
Royal Borough of Kingston,01/05/2023,90236900,"3,865.08",ABBEYFIELD,SOCIAL SERVICES RESIDENTIAL,Adult Social Care & Health,Independent Placements,A56006
Royal Borough of Kingston,01/05/2023,90236905,"3,865.08",ABBEYFIELD,SOCIAL SERVICES RESIDENTIAL,Adult Social Care & Health,Independent Placements,A56006
Royal Borough of Kingston,01/05/2023,90236913,"4,027.07",ABBEYFIELD,SOCIAL SERVICES RESIDENTIAL,Adult Social Care & Health,Independent Placements,A56006
Royal Borough of Kingston,01/05/2023,90236914,"-3,740.40",ABBEYFIELD,SOCIAL SERVICES RESIDENTIAL,Adult Social Care & Health,Independent Placements,A56006
Royal Borough of Kingston,01/05/2023,90236915,"4,161.31",ABBEYFIELD,SOCIAL SERVICES RESIDENTIAL,Adult Social Care & Health,Independent Placements,A56006
Royal Borough of Kingston,01/05/2023,90236916,"4,027.07",ABBEYFIELD,SOCIAL SERVICES RESIDENTIAL,Adult Social Care & Health,Independent Placements,A56006
Royal Borough of Kingston,01/05/2023,90236917,"-3,740.40",ABBEYFIELD,SOCIAL SERVICES RESIDENTIAL,Adult Social Care & Health,Independent Placements,A56006
Royal Borough of Kingston,01/05/2023,90236918,"4,161.31",ABBEYFIELD,SOCIAL SERVICES RESIDENTIAL,Adult Social Care & Health,Independent Placements,A56006
Royal Borough of Kingston,01/05/2023,90236931,"4,027.07",ABBEYFIELD,SOCIAL SERVICES RESIDENTIAL,Adult Social Care & Health,Independent Placements,A56006
Royal Borough of Kingston,01/05/2023,90236932,"-3,740.40",ABBEYFIELD,SOCIAL SERVICES RESIDENTIAL,Adult Social Care & Health,Independent Placements,A56006
Royal Borough of Kingston,01/05/2023,90236933,"4,161.31",ABBEYFIELD,SOCIAL SERVICES RESIDENTIAL,Adult Social Care & Health,Independent Placements,A56006
Royal Borough of Kingston,01/05/2023,90236940,"4,027.07",ABBEYFIELD,SOCIAL SERVICES RESIDENTIAL,Adult Social Care & Health,Independent Placements,A56006
Royal Borough of Kingston,01/05/2023,90236941,"-3,740.40",ABBEYFIELD,SOCIAL SERVICES RESIDENTIAL,Adult Social Care & Health,Independent Placements,A56006
Royal Borough of Kingston,01/05/2023,90236942,"4,161.31",ABBEYFIELD,SOCIAL SERVICES RESIDENTIAL,Adult Social Care & Health,Independent Placements,A56006
Royal Borough of Kingston,01/05/2023,90236966,"4,027.07",ABBEYFIELD,SOCIAL SERVICES RESIDENTIAL,Adult Social Care & Health,Independent Placements,A56006
Royal Borough of Kingston,01/05/2023,90236967,"-3,740.40",ABBEYFIELD,SOCIAL SERVICES RESIDENTIAL,Adult Social Care & Health,Independent Placements,A56006
Royal Borough of Kingston,01/05/2023,90236968,"4,161.31",ABBEYFIELD,SOCIAL SERVICES RESIDENTIAL,Adult Social Care & Health,Independent Placements,A56006
Royal Borough of Kingston,01/05/2023,90236982,"4,027.07",ABBEYFIELD,SOCIAL SERVICES RESIDENTIAL,Adult Social Care & Health,Independent Placements,A56006
Royal Borough of Kingston,01/05/2023,90236983,"-3,740.40",ABBEYFIELD,SOCIAL SERVICES RESIDENTIAL,Adult Social Care & Health,Independent Placements,A56006
Royal Borough of Kingston,01/05/2023,90236984,"4,161.31",ABBEYFIELD,SOCIAL SERVICES RESIDENTIAL,Adult Social Care & Health,Independent Placements,A56006
Royal Borough of Kingston,01/05/2023,90236988,"4,027.07",ABBEYFIELD,SOCIAL SERVICES RESIDENTIAL,Adult Social Care & Health,Independent Placements,A56006
Royal Borough of Kingston,01/05/2023,90236989,"-3,740.40",ABBEYFIELD,SOCIAL SERVICES RESIDENTIAL,Adult Social Care & Health,Independent Placements,A56006
Royal Borough of Kingston,01/05/2023,90236990,"4,161.31",ABBEYFIELD,SOCIAL SERVICES RESIDENTIAL,Adult Social Care & Health,Independent Placements,A56006
Royal Borough of Kingston,01/05/2023,90236991,"4,027.07",ABBEYFIELD,SOCIAL SERVICES RESIDENTIAL,Adult Social Care & Health,Independent Placements,A56006
Royal Borough of Kingston,01/05/2023,90236992,"-3,740.40",ABBEYFIELD,SOCIAL SERVICES RESIDENTIAL,Adult Social Care & Health,Independent Placements,A56006
Royal Borough of Kingston,01/05/2023,90236993,"4,161.31",ABBEYFIELD,SOCIAL SERVICES RESIDENTIAL,Adult Social Care & Health,Independent Placements,A56006
Royal Borough of Kingston,01/05/2023,90236994,"4,027.07",ABBEYFIELD,SOCIAL SERVICES RESIDENTIAL,Adult Social Care & Health,Independent Placements,A56006
Royal Borough of Kingston,01/05/2023,90236995,"-3,740.40",ABBEYFIELD,SOCIAL SERVICES RESIDENTIAL,Adult Social Care & Health,Independent Placements,A56006
Royal Borough of Kingston,01/05/2023,90236996,"4,161.31",ABBEYFIELD,SOCIAL SERVICES RESIDENTIAL,Adult Social Care & Health,Independent Placements,A56006
Royal Borough of Kingston,01/05/2023,90237016,"3,865.08",ABBEYFIELD,SOCIAL SERVICES RESIDENTIAL,Adult Social Care & Health,Independent Placements,A56006
Royal Borough of Kingston,01/05/2023,90237077,"4,027.07",ABBEYFIELD,SOCIAL SERVICES RESIDENTIAL,Adult Social Care & Health,Independent Placements,A56006
Royal Borough of Kingston,01/05/2023,90237078,"-3,740.40",ABBEYFIELD,SOCIAL SERVICES RESIDENTIAL,Adult Social Care & Health,Independent Placements,A56006
Royal Borough of Kingston,01/05/2023,90237079,"4,161.31",ABBEYFIELD,SOCIAL SERVICES RESIDENTIAL,Adult Social Care & Health,Independent Placements,A56006
Royal Borough of Kingston,01/05/2023,90237095,"4,027.07",ABBEYFIELD,SOCIAL SERVICES RESIDENTIAL,Adult Social Care & Health,Independent Placements,A56006
Royal Borough of Kingston,01/05/2023,90237096,"-3,740.40",ABBEYFIELD,SOCIAL SERVICES RESIDENTIAL,Adult Social Care & Health,Independent Placements,A56006
Royal Borough of Kingston,01/05/2023,90237097,"4,161.31",ABBEYFIELD,SOCIAL SERVICES RESIDENTIAL,Adult Social Care & Health,Independent Placements,A56006
Royal Borough of Kingston,01/05/2023,90237126,"4,027.07",ABBEYFIELD,SOCIAL SERVICES RESIDENTIAL,Adult Social Care & Health,Independent Placements,A56006
Royal Borough of Kingston,01/05/2023,90237127,"-3,740.40",ABBEYFIELD,SOCIAL SERVICES RESIDENTIAL,Adult Social Care & Health,Independent Placements,A56006
Royal Borough of Kingston,01/05/2023,90237128,"4,161.31",ABBEYFIELD,SOCIAL SERVICES RESIDENTIAL,Adult Social Care & Health,Independent Placements,A56006
Royal Borough of Kingston,01/05/2023,90237152,"3,865.08",ABBEYFIELD,SOCIAL SERVICES RESIDENTIAL,Adult Social Care & Health,Independent Placements,A56006
Royal Borough of Kingston,01/05/2023,90237157,"4,391.21",ABBEYFIELD,SOCIAL SERVICES RESIDENTIAL,Adult Social Care & Health,Independent Placements,A56006
Royal Borough of Kingston,01/05/2023,90237159,"3,865.08",ABBEYFIELD,SOCIAL SERVICES RESIDENTIAL,Adult Social Care & Health,Independent Placements,A56006
Royal Borough of Kingston,01/05/2023,90237162,"3,546.75",ABBEYFIELD,SOCIAL SERVICES RESIDENTIAL,Adult Social Care & Health,Independent Placements,A56006
Royal Borough of Kingston,01/05/2023,90237508,"2,533.39",ABBEYFIELD,SOCIAL SERVICES RESIDENTIAL,Adult Social Care & Health,Other Private Contractors - Third Party,A56080
Royal Borough of Kingston,01/05/2023,90240399,"5,837.74",ABC HILLINGDON LTD,ACCOMMODATION - OTHER,Adult Social Care & Health,Personal Budget - Third Party,A61019
Royal Borough of Kingston,01/05/2023,90240400,"-5,559.77",ABC HILLINGDON LTD,ACCOMMODATION - OTHER,Adult Social Care & Health,Personal Budget - Third Party,A61019
Royal Borough of Kingston,01/05/2023,90240401,"6,032.33",ABC HILLINGDON LTD,ACCOMMODATION - OTHER,Adult Social Care & Health,Personal Budget - Third Party,A61019
Royal Borough of Kingston,25/05/2023,90236325,990.58,AC & BU SIMMONDS,PLS LANDLORDS,Place,PSL Payments To Landlords,A22031
Royal Borough of Kingston,26/04/2023,70045650,"1,278.41",AC & MS LIMITED,LEGAL & PROFESSIONAL SERVICES,Housing Revenue Account,Asbestos Removal,C10000
Royal Borough of Kingston,28/04/2023,70045651,"1,420.42",AC & MS LIMITED,LEGAL & PROFESSIONAL SERVICES,Housing Revenue Account,Asbestos Audit,A20042
Royal Borough of Kingston,09/05/2023,90232771,"14,469.59",ACACIA PRE-SCHOOL,ACADEMIC INSTNS - OTHER,Schools,PVI Providers,A60014
Royal Borough of Kingston,09/05/2023,90232820,"1,312.20",ACACIA PRE-SCHOOL,ACADEMIC INSTNS - OTHER,Schools,2 Yr Old Place Funding,A60000
Royal Borough of Kingston,30/04/2023,70046104,"12,000.00",Academy Consulting Solutions Limited,LEGAL & PROFESSIONAL SERVICES,Place,External Fees and Consultants,C20000
Royal Borough of Kingston,25/05/2023,90236600,"1,047.00",Accountancy Services (New Malden) Limited,PLS LANDLORDS,Place,PSL Payments To Landlords,A22031
Royal Borough of Kingston,01/05/2023,90237208,"7,126.41",Achieve Together Limited,SOCIAL SERVICES - OTHER,Adult Social Care & Health,Independent Placements,A56006
Royal Borough of Kingston,01/05/2023,90237209,"-6,787.07",Achieve Together Limited,SOCIAL SERVICES - OTHER,Adult Social Care & Health,Independent Placements,A56006
Royal Borough of Kingston,01/05/2023,90237210,"7,363.96",Achieve Together Limited,SOCIAL SERVICES - OTHER,Adult Social Care & Health,Independent Placements,A56006
Royal Borough of Kingston,01/05/2023,90237316,"4,816.71",Achieve Together Limited,SOCIAL SERVICES - OTHER,Adult Social Care & Health,Independent Placements,A56006
Royal Borough of Kingston,01/05/2023,90237317,"-4,587.34",Achieve Together Limited,SOCIAL SERVICES - OTHER,Adult Social Care & Health,Independent Placements,A56006
Royal Borough of Kingston,01/05/2023,90237318,"4,977.27",Achieve Together Limited,SOCIAL SERVICES - OTHER,Adult Social Care & Health,Independent Placements,A56006
Royal Borough of Kingston,01/05/2023,90237397,"12,035.49",Achieve Together Limited,SOCIAL SERVICES - OTHER,Adult Social Care & Health,Independent Placements,A56006
Royal Borough of Kingston,01/05/2023,90237398,"-11,462.36",Achieve Together Limited,SOCIAL SERVICES - OTHER,Adult Social Care & Health,Independent Placements,A56006
Royal Borough of Kingston,01/05/2023,90237399,"12,436.67",Achieve Together Limited,SOCIAL SERVICES - OTHER,Adult Social Care & Health,Independent Placements,A56006
Royal Borough of Kingston,10/05/2023,70046671,"6,051,500.00",ACHIEVING FOR CHILDREN LIMITED,LEGAL & PROFESSIONAL SERVICES,Childrens Services,Fixed Childrens Services Contract Strategic,A51019
Royal Borough of Kingston,09/05/2023,90232777,"19,064.52",Acorn to Oak Nursery and Preschool Ltd,ACADEMIC INSTNS - OTHER,Schools,PVI Providers,A60014
Royal Borough of Kingston,09/05/2023,90232821,"4,009.50",Acorn to Oak Nursery and Preschool Ltd,ACADEMIC INSTNS - OTHER,Schools,2 Yr Old Place Funding,A60000
Royal Borough of Kingston,04/05/2023,70046612,"1,050.00",ADAM HOTEL MANAGEMENT LTD,ACCOMMODATION BED & BREAKFAST,Place,Bed & Breakfast,A56000
Royal Borough of Kingston,04/05/2023,70046614,"1,050.00",ADAM HOTEL MANAGEMENT LTD,ACCOMMODATION BED & BREAKFAST,Place,Bed & Breakfast,A56000
Royal Borough of Kingston,04/05/2023,70046616,"1,260.00",ADAM HOTEL MANAGEMENT LTD,ACCOMMODATION BED & BREAKFAST,Place,Bed & Breakfast,A56000
Royal Borough of Kingston,04/05/2023,70046618,"1,050.00",ADAM HOTEL MANAGEMENT LTD,ACCOMMODATION BED & BREAKFAST,Place,Bed & Breakfast,A56000
Royal Borough of Kingston,04/05/2023,70046620,"1,530.00",ADAM HOTEL MANAGEMENT LTD,ACCOMMODATION BED & BREAKFAST,Place,Bed & Breakfast,A56000
Royal Borough of Kingston,04/05/2023,70046621,"1,050.00",ADAM HOTEL MANAGEMENT LTD,ACCOMMODATION BED & BREAKFAST,Place,Bed & Breakfast,A56000
Royal Borough of Kingston,04/05/2023,70046622,"1,530.00",ADAM HOTEL MANAGEMENT LTD,ACCOMMODATION BED & BREAKFAST,Place,Bed & Breakfast,A56000
Royal Borough of Kingston,08/03/2023,70043094,"21,507.86",ADAM HTT LIMITED,TAXI AND COACH HIRE,Adult Social Care & Health,Home To School Transport Taxis,A33016
Royal Borough of Kingston,26/04/2023,70045795,"16,650.04",ADAM HTT LIMITED,TAXI AND COACH HIRE,Adult Social Care & Health,Home To School Transport Taxis,A33016
Royal Borough of Kingston,05/04/2023,70045796,"22,231.24",ADAM HTT LIMITED,TAXI AND COACH HIRE,Adult Social Care & Health,Home To School Transport Taxis,A33016
Royal Borough of Kingston,29/03/2023,70045797,"12,093.57",ADAM HTT LIMITED,TAXI AND COACH HIRE,Adult Social Care & Health,Home To School Transport Taxis,A33016
Royal Borough of Kingston,03/05/2023,70046099,"11,347.33",ADAM HTT LIMITED,TAXI AND COACH HIRE,Adult Social Care & Health,Home To School Transport Taxis,A33016
Royal Borough of Kingston,10/05/2023,70046475,"9,187.71",ADAM HTT LIMITED,TAXI AND COACH HIRE,Adult Social Care & Health,Home To School Transport Taxis,A33016
Royal Borough of Kingston,17/05/2023,70046855,"2,871.43",ADAM HTT LIMITED,TAXI AND COACH HIRE,Adult Social Care & Health,Home To School Transport Taxis,A33016
Royal Borough of Kingston,09/05/2023,90232779,"3,925.62",Event Supplies LTD,ACADEMIC INSTNS - OTHER,Schools,PVI Providers,A60014
Royal Borough of Kingston,28/04/2023,70045632,550.00,ADVANCED TREE SERVICES LIMITED,CONSTRUCTION INDUSTRY,Housing Revenue Account,Maintenance of trees,A28003
Royal Borough of Kingston,28/04/2023,70045639,550.00,ADVANCED TREE SERVICES LIMITED,CONSTRUCTION INDUSTRY,Corporate & Communities,Infrastructure Assets - Purchase & Enhancement,C12001
Royal Borough of Kingston,09/05/2023,70046352,"1,952.10",ADVANCED TREE SERVICES LIMITED,CONSTRUCTION INDUSTRY,Corporate & Communities,Professional Fees,A44066
Royal Borough of Kingston,09/05/2023,70046505,"1,200.00",ADVANCED TREE SERVICES LIMITED,CONSTRUCTION INDUSTRY,Corporate & Communities,Maintenance of trees,A28003
Royal Borough of Kingston,19/05/2023,70047021,450.00,ADVANCED TREE SERVICES LIMITED,CONSTRUCTION INDUSTRY,Housing Revenue Account,Tree Works,A56042
Royal Borough of Kingston,09/05/2023,90232657,"61,788.78",ADVANTAGE DAY NURSERY LTD,ACADEMIC INSTNS - OTHER,Schools,PVI Providers,A60014
Royal Borough of Kingston,09/05/2023,90232782,"9,598.50",ADVANTAGE DAY NURSERY LTD,ACADEMIC INSTNS - OTHER,Schools,2 Yr Old Place Funding,A60000
Royal Borough of Kingston,28/04/2023,70047069,"63,000.00",Age Concern Kingston upon Thames   ,SOCIAL SERVICES - PERSONAL BUDGETS,Adult Social Care & Health,Payments to Voluntary Organisations,A54005
Royal Borough of Kingston,28/04/2023,70047082,"45,000.00",Age Concern Kingston upon Thames   ,SOCIAL SERVICES - PERSONAL BUDGETS,Adult Social Care & Health,Payments to Voluntary Organisations,A54005
Royal Borough of Kingston,01/05/2023,90239387,531.43,Age Concern Kingston upon Thames   ,SOCIAL SERVICES - PERSONAL BUDGETS,Adult Social Care & Health,Personal Budget - Third Party,A61019
Royal Borough of Kingston,01/05/2023,90239388,708.57,Age Concern Kingston upon Thames   ,SOCIAL SERVICES - PERSONAL BUDGETS,Adult Social Care & Health,Personal Budget - Third Party,A61019
Royal Borough of Kingston,01/05/2023,90239394,708.57,Age Concern Kingston upon Thames   ,SOCIAL SERVICES - PERSONAL BUDGETS,Adult Social Care & Health,Personal Budget - Third Party,A61019
Royal Borough of Kingston,09/05/2023,90232707,"1,525.50",REDACTED - PERSONAL DATA,ACADEMIC INSTNS - OTHER,Schools,PVI Providers,A60014
Royal Borough of Kingston,01/05/2023,90237020,"6,864.29",AIMS CARE LIMITED,SOCIAL SERVICES RESIDENTIAL,Adult Social Care & Health,Independent Placements,A56006
Royal Borough of Kingston,04/05/2023,90231600,500.00,REDACTED - PERSONAL DATA,CHARITIES & VOLUNTARY ORGNS,Adult Social Care & Health,"Grants, Contributions & Donations",A47005
Royal Borough of Kingston,25/05/2023,90236397,"1,094.00",REDACTED - PERSONAL DATA,LANDLORDS,Place,PSL Payments To Landlords,A22031
Royal Borough of Kingston,04/05/2023,90231444,"162,395.61",ALEXANDRA SCHOOL  ,SCHOOL FUNDS,Schools,Miscellaneous Expenses,A49000
Royal Borough of Kingston,09/05/2023,90232704,"19,471.32",ALEXANDRA SCHOOL  ,SCHOOL FUNDS,Schools,Miscellaneous Expenses,A49000
Royal Borough of Kingston,12/05/2023,90233996,"26,953.00",ALEXANDRA SCHOOL  ,SCHOOL FUNDS,Schools,Miscellaneous Expenses,A49000
Royal Borough of Kingston,12/05/2023,90234023,"8,158.00",ALEXANDRA SCHOOL  ,SCHOOL FUNDS,Schools,Miscellaneous Expenses,A49000
Royal Borough of Kingston,12/05/2023,90234050,"2,883.25",ALEXANDRA SCHOOL  ,SCHOOL FUNDS,Schools,Miscellaneous Expenses,A49000
Royal Borough of Kingston,25/05/2023,90236158,"4,000.00",ALEXANDRA SCHOOL  ,SCHOOL FUNDS,Schools,Miscellaneous Expenses,A49000
Royal Borough of Kingston,25/05/2023,90236587,"1,050.00",REDACTED - PERSONAL DATA,PLS LANDLORDS,Place,PSL Payments To Landlords,A22031
Royal Borough of Kingston,25/05/2023,90236222,"1,314.00",REDACTED - PERSONAL DATA,PLS LANDLORDS,Place,PSL Payments To Landlords,A22031
Royal Borough of Kingston,30/04/2023,70046133,795.77,ALLPAY LIMITED,FINANCIAL / INSURANCE INSTNS,Adult Social Care & Health,Bank Fees & Charges,A44250
Royal Borough of Kingston,17/04/2023,90231853,504.21,ALPENBEST LTD,SOCIAL SERVICES DAY CARE,Adult Social Care & Health,Homecare - new framework,A56127
Royal Borough of Kingston,17/04/2023,90231854,-504.21,ALPENBEST LTD,SOCIAL SERVICES DAY CARE,Adult Social Care & Health,Homecare - new framework,A56127
Royal Borough of Kingston,17/04/2023,90232156,-540.23,ALPENBEST LTD,SOCIAL SERVICES DAY CARE,Adult Social Care & Health,Homecare - new framework,A56127
Royal Borough of Kingston,24/04/2023,90234187,630.27,ALPENBEST LTD,SOCIAL SERVICES DAY CARE,Adult Social Care & Health,Homecare - new framework,A56127
Royal Borough of Kingston,24/04/2023,90234190,576.24,ALPENBEST LTD,SOCIAL SERVICES DAY CARE,Adult Social Care & Health,Homecare - new framework,A56127
Royal Borough of Kingston,24/04/2023,90234202,"1,512.64",ALPENBEST LTD,SOCIAL SERVICES DAY CARE,Adult Social Care & Health,Homecare - new framework,A56127
Royal Borough of Kingston,24/04/2023,90234218,630.27,ALPENBEST LTD,SOCIAL SERVICES DAY CARE,Adult Social Care & Health,Homecare - new framework,A56127
Royal Borough of Kingston,24/04/2023,90234327,504.21,ALPENBEST LTD,SOCIAL SERVICES DAY CARE,Adult Social Care & Health,Homecare - new framework,A56127
Royal Borough of Kingston,24/04/2023,90234342,567.24,ALPENBEST LTD,SOCIAL SERVICES DAY CARE,Adult Social Care & Health,Homecare - new framework,A56127
Royal Borough of Kingston,24/04/2023,90234364,576.24,ALPENBEST LTD,SOCIAL SERVICES DAY CARE,Adult Social Care & Health,Homecare - new framework,A56127
Royal Borough of Kingston,24/04/2023,90234378,819.35,ALPENBEST LTD,SOCIAL SERVICES DAY CARE,Adult Social Care & Health,Homecare - new framework,A56127
Royal Borough of Kingston,24/04/2023,90234427,567.24,ALPENBEST LTD,SOCIAL SERVICES DAY CARE,Adult Social Care & Health,Homecare - new framework,A56127
Royal Borough of Kingston,24/04/2023,90234439,630.27,ALPENBEST LTD,SOCIAL SERVICES DAY CARE,Adult Social Care & Health,Homecare - new framework,A56127
Royal Borough of Kingston,24/04/2023,90234441,567.24,ALPENBEST LTD,SOCIAL SERVICES DAY CARE,Adult Social Care & Health,Homecare - new framework,A56127
Royal Borough of Kingston,24/04/2023,90234449,630.27,ALPENBEST LTD,SOCIAL SERVICES DAY CARE,Adult Social Care & Health,Homecare - new framework,A56127
Royal Borough of Kingston,24/04/2023,90234602,819.35,ALPENBEST LTD,SOCIAL SERVICES DAY CARE,Adult Social Care & Health,Homecare - new framework,A56127
Royal Borough of Kingston,24/04/2023,90234696,567.24,ALPENBEST LTD,SOCIAL SERVICES DAY CARE,Adult Social Care & Health,Homecare - new framework,A56127
Royal Borough of Kingston,24/04/2023,90234705,756.32,ALPENBEST LTD,SOCIAL SERVICES DAY CARE,Adult Social Care & Health,Homecare - new framework,A56127
Royal Borough of Kingston,24/04/2023,90234728,630.27,ALPENBEST LTD,SOCIAL SERVICES DAY CARE,Adult Social Care & Health,Homecare - new framework,A56127
Royal Borough of Kingston,24/04/2023,90234773,630.27,ALPENBEST LTD,SOCIAL SERVICES DAY CARE,Adult Social Care & Health,Homecare - new framework,A56127
Royal Borough of Kingston,24/04/2023,90234775,540.23,ALPENBEST LTD,SOCIAL SERVICES DAY CARE,Adult Social Care & Health,Homecare - new framework,A56127
Royal Borough of Kingston,24/04/2023,90234777,621.26,ALPENBEST LTD,SOCIAL SERVICES DAY CARE,Adult Social Care & Health,Homecare - new framework,A56127
Royal Borough of Kingston,24/04/2023,90234787,819.35,ALPENBEST LTD,SOCIAL SERVICES DAY CARE,Adult Social Care & Health,Homecare - new framework,A56127
Royal Borough of Kingston,24/04/2023,90234791,747.32,ALPENBEST LTD,SOCIAL SERVICES DAY CARE,Adult Social Care & Health,Homecare - new framework,A56127
Royal Borough of Kingston,24/04/2023,90234823,630.27,ALPENBEST LTD,SOCIAL SERVICES DAY CARE,Adult Social Care & Health,Homecare - new framework,A56127
Royal Borough of Kingston,24/04/2023,90234976,630.27,ALPENBEST LTD,SOCIAL SERVICES DAY CARE,Adult Social Care & Health,Personal Budget - Third Party,A61019
Royal Borough of Kingston,01/05/2023,90235364,567.24,ALPENBEST LTD,SOCIAL SERVICES DAY CARE,Adult Social Care & Health,Homecare - new framework,A56127
Royal Borough of Kingston,01/05/2023,90235367,576.24,ALPENBEST LTD,SOCIAL SERVICES DAY CARE,Adult Social Care & Health,Homecare - new framework,A56127
Royal Borough of Kingston,01/05/2023,90235381,"1,512.64",ALPENBEST LTD,SOCIAL SERVICES DAY CARE,Adult Social Care & Health,Homecare - new framework,A56127
Royal Borough of Kingston,01/05/2023,90235397,630.27,ALPENBEST LTD,SOCIAL SERVICES DAY CARE,Adult Social Care & Health,Homecare - new framework,A56127
Royal Borough of Kingston,01/05/2023,90235512,567.24,ALPENBEST LTD,SOCIAL SERVICES DAY CARE,Adult Social Care & Health,Homecare - new framework,A56127
Royal Borough of Kingston,01/05/2023,90235528,567.24,ALPENBEST LTD,SOCIAL SERVICES DAY CARE,Adult Social Care & Health,Homecare - new framework,A56127
Royal Borough of Kingston,01/05/2023,90235545,576.24,ALPENBEST LTD,SOCIAL SERVICES DAY CARE,Adult Social Care & Health,Homecare - new framework,A56127
Royal Borough of Kingston,01/05/2023,90235556,819.35,ALPENBEST LTD,SOCIAL SERVICES DAY CARE,Adult Social Care & Health,Homecare - new framework,A56127
Royal Borough of Kingston,01/05/2023,90235594,567.24,ALPENBEST LTD,SOCIAL SERVICES DAY CARE,Adult Social Care & Health,Homecare - new framework,A56127
Royal Borough of Kingston,01/05/2023,90235607,630.27,ALPENBEST LTD,SOCIAL SERVICES DAY CARE,Adult Social Care & Health,Homecare - new framework,A56127
Royal Borough of Kingston,01/05/2023,90235609,567.24,ALPENBEST LTD,SOCIAL SERVICES DAY CARE,Adult Social Care & Health,Homecare - new framework,A56127
Royal Borough of Kingston,01/05/2023,90235616,630.27,ALPENBEST LTD,SOCIAL SERVICES DAY CARE,Adult Social Care & Health,Homecare - new framework,A56127
Royal Borough of Kingston,01/05/2023,90235731,819.35,ALPENBEST LTD,SOCIAL SERVICES DAY CARE,Adult Social Care & Health,Homecare - new framework,A56127
Royal Borough of Kingston,01/05/2023,90235753,567.24,ALPENBEST LTD,SOCIAL SERVICES DAY CARE,Adult Social Care & Health,Homecare - new framework,A56127
Royal Borough of Kingston,01/05/2023,90235761,756.32,ALPENBEST LTD,SOCIAL SERVICES DAY CARE,Adult Social Care & Health,Homecare - new framework,A56127
Royal Borough of Kingston,01/05/2023,90235785,630.27,ALPENBEST LTD,SOCIAL SERVICES DAY CARE,Adult Social Care & Health,Homecare - new framework,A56127
Royal Borough of Kingston,01/05/2023,90235845,-540.23,ALPENBEST LTD,SOCIAL SERVICES DAY CARE,Adult Social Care & Health,Homecare - new framework,A56127
Royal Borough of Kingston,01/05/2023,90235848,567.24,ALPENBEST LTD,SOCIAL SERVICES DAY CARE,Adult Social Care & Health,Homecare - new framework,A56127
Royal Borough of Kingston,01/05/2023,90235857,630.27,ALPENBEST LTD,SOCIAL SERVICES DAY CARE,Adult Social Care & Health,Homecare - new framework,A56127
Royal Borough of Kingston,01/05/2023,90235861,747.32,ALPENBEST LTD,SOCIAL SERVICES DAY CARE,Adult Social Care & Health,Homecare - new framework,A56127
Royal Borough of Kingston,01/05/2023,90235881,630.27,ALPENBEST LTD,SOCIAL SERVICES DAY CARE,Adult Social Care & Health,Homecare - new framework,A56127
Royal Borough of Kingston,01/05/2023,90235976,657.28,ALPENBEST LTD,SOCIAL SERVICES DAY CARE,Adult Social Care & Health,Homecare - new framework,A56127
Royal Borough of Kingston,01/05/2023,90235986,504.21,ALPENBEST LTD,SOCIAL SERVICES DAY CARE,Adult Social Care & Health,Homecare - new framework,A56127
Royal Borough of Kingston,01/05/2023,90236038,630.27,ALPENBEST LTD,SOCIAL SERVICES DAY CARE,Adult Social Care & Health,Personal Budget - Third Party,A61019
Royal Borough of Kingston,08/05/2023,90238438,567.24,ALPENBEST LTD,SOCIAL SERVICES DAY CARE,Adult Social Care & Health,Homecare - new framework,A56127
Royal Borough of Kingston,08/05/2023,90238441,576.24,ALPENBEST LTD,SOCIAL SERVICES DAY CARE,Adult Social Care & Health,Homecare - new framework,A56127
Royal Borough of Kingston,08/05/2023,90238456,"1,512.64",ALPENBEST LTD,SOCIAL SERVICES DAY CARE,Adult Social Care & Health,Homecare - new framework,A56127
Royal Borough of Kingston,08/05/2023,90238470,630.27,ALPENBEST LTD,SOCIAL SERVICES DAY CARE,Adult Social Care & Health,Homecare - new framework,A56127
Royal Borough of Kingston,08/05/2023,90238574,567.24,ALPENBEST LTD,SOCIAL SERVICES DAY CARE,Adult Social Care & Health,Homecare - new framework,A56127
Royal Borough of Kingston,08/05/2023,90238587,576.24,ALPENBEST LTD,SOCIAL SERVICES DAY CARE,Adult Social Care & Health,Homecare - new framework,A56127
Royal Borough of Kingston,08/05/2023,90238604,594.25,ALPENBEST LTD,SOCIAL SERVICES DAY CARE,Adult Social Care & Health,Homecare - new framework,A56127
Royal Borough of Kingston,08/05/2023,90238614,819.35,ALPENBEST LTD,SOCIAL SERVICES DAY CARE,Adult Social Care & Health,Homecare - new framework,A56127
Royal Borough of Kingston,08/05/2023,90238647,567.24,ALPENBEST LTD,SOCIAL SERVICES DAY CARE,Adult Social Care & Health,Homecare - new framework,A56127
Royal Borough of Kingston,08/05/2023,90238659,639.27,ALPENBEST LTD,SOCIAL SERVICES DAY CARE,Adult Social Care & Health,Homecare - new framework,A56127
Royal Borough of Kingston,08/05/2023,90238661,567.24,ALPENBEST LTD,SOCIAL SERVICES DAY CARE,Adult Social Care & Health,Homecare - new framework,A56127
Royal Borough of Kingston,08/05/2023,90238668,630.27,ALPENBEST LTD,SOCIAL SERVICES DAY CARE,Adult Social Care & Health,Homecare - new framework,A56127
Royal Borough of Kingston,08/05/2023,90238751,819.35,ALPENBEST LTD,SOCIAL SERVICES DAY CARE,Adult Social Care & Health,Homecare - new framework,A56127
Royal Borough of Kingston,08/05/2023,90238773,567.24,ALPENBEST LTD,SOCIAL SERVICES DAY CARE,Adult Social Care & Health,Homecare - new framework,A56127
Royal Borough of Kingston,08/05/2023,90238782,756.32,ALPENBEST LTD,SOCIAL SERVICES DAY CARE,Adult Social Care & Health,Homecare - new framework,A56127
Royal Borough of Kingston,08/05/2023,90238804,648.28,ALPENBEST LTD,SOCIAL SERVICES DAY CARE,Adult Social Care & Health,Homecare - new framework,A56127
Royal Borough of Kingston,08/05/2023,90238925,525.00,ALPENBEST LTD,SOCIAL SERVICES DAY CARE,Adult Social Care & Health,Homecare - new framework,A56127
Royal Borough of Kingston,08/05/2023,90238927,-525.00,ALPENBEST LTD,SOCIAL SERVICES DAY CARE,Adult Social Care & Health,Homecare - new framework,A56127
Royal Borough of Kingston,08/05/2023,90238931,525.00,ALPENBEST LTD,SOCIAL SERVICES DAY CARE,Adult Social Care & Health,Homecare - new framework,A56127
Royal Borough of Kingston,08/05/2023,90238933,-546.88,ALPENBEST LTD,SOCIAL SERVICES DAY CARE,Adult Social Care & Health,Homecare - new framework,A56127
Royal Borough of Kingston,08/05/2023,90238937,525.00,ALPENBEST LTD,SOCIAL SERVICES DAY CARE,Adult Social Care & Health,Homecare - new framework,A56127
Royal Borough of Kingston,08/05/2023,90238939,-525.00,ALPENBEST LTD,SOCIAL SERVICES DAY CARE,Adult Social Care & Health,Homecare - new framework,A56127
Royal Borough of Kingston,08/05/2023,90238943,525.00,ALPENBEST LTD,SOCIAL SERVICES DAY CARE,Adult Social Care & Health,Homecare - new framework,A56127
Royal Borough of Kingston,08/05/2023,90238945,-525.00,ALPENBEST LTD,SOCIAL SERVICES DAY CARE,Adult Social Care & Health,Homecare - new framework,A56127
Royal Borough of Kingston,08/05/2023,90238949,525.00,ALPENBEST LTD,SOCIAL SERVICES DAY CARE,Adult Social Care & Health,Homecare - new framework,A56127
Royal Borough of Kingston,08/05/2023,90238951,-525.00,ALPENBEST LTD,SOCIAL SERVICES DAY CARE,Adult Social Care & Health,Homecare - new framework,A56127
Royal Borough of Kingston,08/05/2023,90238955,525.00,ALPENBEST LTD,SOCIAL SERVICES DAY CARE,Adult Social Care & Health,Homecare - new framework,A56127
Royal Borough of Kingston,08/05/2023,90238957,-525.00,ALPENBEST LTD,SOCIAL SERVICES DAY CARE,Adult Social Care & Health,Homecare - new framework,A56127
Royal Borough of Kingston,08/05/2023,90238961,525.00,ALPENBEST LTD,SOCIAL SERVICES DAY CARE,Adult Social Care & Health,Homecare - new framework,A56127
Royal Borough of Kingston,08/05/2023,90238963,-525.00,ALPENBEST LTD,SOCIAL SERVICES DAY CARE,Adult Social Care & Health,Homecare - new framework,A56127
Royal Borough of Kingston,08/05/2023,90238967,525.00,ALPENBEST LTD,SOCIAL SERVICES DAY CARE,Adult Social Care & Health,Homecare - new framework,A56127
Royal Borough of Kingston,08/05/2023,90238969,-525.00,ALPENBEST LTD,SOCIAL SERVICES DAY CARE,Adult Social Care & Health,Homecare - new framework,A56127
Royal Borough of Kingston,08/05/2023,90238973,525.00,ALPENBEST LTD,SOCIAL SERVICES DAY CARE,Adult Social Care & Health,Homecare - new framework,A56127
Royal Borough of Kingston,08/05/2023,90238975,-525.00,ALPENBEST LTD,SOCIAL SERVICES DAY CARE,Adult Social Care & Health,Homecare - new framework,A56127
Royal Borough of Kingston,08/05/2023,90238979,525.00,ALPENBEST LTD,SOCIAL SERVICES DAY CARE,Adult Social Care & Health,Homecare - new framework,A56127
Royal Borough of Kingston,08/05/2023,90238981,-525.00,ALPENBEST LTD,SOCIAL SERVICES DAY CARE,Adult Social Care & Health,Homecare - new framework,A56127
Royal Borough of Kingston,08/05/2023,90238985,525.00,ALPENBEST LTD,SOCIAL SERVICES DAY CARE,Adult Social Care & Health,Homecare - new framework,A56127
Royal Borough of Kingston,08/05/2023,90238987,-525.00,ALPENBEST LTD,SOCIAL SERVICES DAY CARE,Adult Social Care & Health,Homecare - new framework,A56127
Royal Borough of Kingston,08/05/2023,90238991,525.00,ALPENBEST LTD,SOCIAL SERVICES DAY CARE,Adult Social Care & Health,Homecare - new framework,A56127
Royal Borough of Kingston,08/05/2023,90238993,-525.00,ALPENBEST LTD,SOCIAL SERVICES DAY CARE,Adult Social Care & Health,Homecare - new framework,A56127
Royal Borough of Kingston,08/05/2023,90238997,525.00,ALPENBEST LTD,SOCIAL SERVICES DAY CARE,Adult Social Care & Health,Homecare - new framework,A56127
Royal Borough of Kingston,08/05/2023,90238999,-525.00,ALPENBEST LTD,SOCIAL SERVICES DAY CARE,Adult Social Care & Health,Homecare - new framework,A56127
Royal Borough of Kingston,08/05/2023,90239003,525.00,ALPENBEST LTD,SOCIAL SERVICES DAY CARE,Adult Social Care & Health,Homecare - new framework,A56127
Royal Borough of Kingston,08/05/2023,90239005,-525.00,ALPENBEST LTD,SOCIAL SERVICES DAY CARE,Adult Social Care & Health,Homecare - new framework,A56127
Royal Borough of Kingston,08/05/2023,90239009,525.00,ALPENBEST LTD,SOCIAL SERVICES DAY CARE,Adult Social Care & Health,Homecare - new framework,A56127
Royal Borough of Kingston,08/05/2023,90239011,-525.00,ALPENBEST LTD,SOCIAL SERVICES DAY CARE,Adult Social Care & Health,Homecare - new framework,A56127
Royal Borough of Kingston,08/05/2023,90239015,525.00,ALPENBEST LTD,SOCIAL SERVICES DAY CARE,Adult Social Care & Health,Homecare - new framework,A56127
Royal Borough of Kingston,08/05/2023,90239017,-525.00,ALPENBEST LTD,SOCIAL SERVICES DAY CARE,Adult Social Care & Health,Homecare - new framework,A56127
Royal Borough of Kingston,08/05/2023,90239021,525.00,ALPENBEST LTD,SOCIAL SERVICES DAY CARE,Adult Social Care & Health,Homecare - new framework,A56127
Royal Borough of Kingston,08/05/2023,90239023,-525.00,ALPENBEST LTD,SOCIAL SERVICES DAY CARE,Adult Social Care & Health,Homecare - new framework,A56127
Royal Borough of Kingston,08/05/2023,90239027,525.00,ALPENBEST LTD,SOCIAL SERVICES DAY CARE,Adult Social Care & Health,Homecare - new framework,A56127
Royal Borough of Kingston,08/05/2023,90239029,-525.00,ALPENBEST LTD,SOCIAL SERVICES DAY CARE,Adult Social Care & Health,Homecare - new framework,A56127
Royal Borough of Kingston,08/05/2023,90239033,525.00,ALPENBEST LTD,SOCIAL SERVICES DAY CARE,Adult Social Care & Health,Homecare - new framework,A56127
Royal Borough of Kingston,08/05/2023,90239035,-525.00,ALPENBEST LTD,SOCIAL SERVICES DAY CARE,Adult Social Care & Health,Homecare - new framework,A56127
Royal Borough of Kingston,08/05/2023,90239039,525.00,ALPENBEST LTD,SOCIAL SERVICES DAY CARE,Adult Social Care & Health,Homecare - new framework,A56127
Royal Borough of Kingston,08/05/2023,90239041,-525.00,ALPENBEST LTD,SOCIAL SERVICES DAY CARE,Adult Social Care & Health,Homecare - new framework,A56127
Royal Borough of Kingston,08/05/2023,90239045,525.00,ALPENBEST LTD,SOCIAL SERVICES DAY CARE,Adult Social Care & Health,Homecare - new framework,A56127
Royal Borough of Kingston,08/05/2023,90239047,-525.00,ALPENBEST LTD,SOCIAL SERVICES DAY CARE,Adult Social Care & Health,Homecare - new framework,A56127
Royal Borough of Kingston,08/05/2023,90239051,525.00,ALPENBEST LTD,SOCIAL SERVICES DAY CARE,Adult Social Care & Health,Homecare - new framework,A56127
Royal Borough of Kingston,08/05/2023,90239053,-525.00,ALPENBEST LTD,SOCIAL SERVICES DAY CARE,Adult Social Care & Health,Homecare - new framework,A56127
Royal Borough of Kingston,08/05/2023,90239057,525.00,ALPENBEST LTD,SOCIAL SERVICES DAY CARE,Adult Social Care & Health,Homecare - new framework,A56127
Royal Borough of Kingston,08/05/2023,90239059,-525.00,ALPENBEST LTD,SOCIAL SERVICES DAY CARE,Adult Social Care & Health,Homecare - new framework,A56127
Royal Borough of Kingston,08/05/2023,90239063,525.00,ALPENBEST LTD,SOCIAL SERVICES DAY CARE,Adult Social Care & Health,Homecare - new framework,A56127
Royal Borough of Kingston,08/05/2023,90239065,-525.00,ALPENBEST LTD,SOCIAL SERVICES DAY CARE,Adult Social Care & Health,Homecare - new framework,A56127
Royal Borough of Kingston,08/05/2023,90239069,525.00,ALPENBEST LTD,SOCIAL SERVICES DAY CARE,Adult Social Care & Health,Homecare - new framework,A56127
Royal Borough of Kingston,08/05/2023,90239071,-525.00,ALPENBEST LTD,SOCIAL SERVICES DAY CARE,Adult Social Care & Health,Homecare - new framework,A56127
Royal Borough of Kingston,08/05/2023,90239075,525.00,ALPENBEST LTD,SOCIAL SERVICES DAY CARE,Adult Social Care & Health,Homecare - new framework,A56127
Royal Borough of Kingston,08/05/2023,90239077,-525.00,ALPENBEST LTD,SOCIAL SERVICES DAY CARE,Adult Social Care & Health,Homecare - new framework,A56127
Royal Borough of Kingston,08/05/2023,90239081,525.00,ALPENBEST LTD,SOCIAL SERVICES DAY CARE,Adult Social Care & Health,Homecare - new framework,A56127
Royal Borough of Kingston,08/05/2023,90239083,-525.00,ALPENBEST LTD,SOCIAL SERVICES DAY CARE,Adult Social Care & Health,Homecare - new framework,A56127
Royal Borough of Kingston,08/05/2023,90239087,525.00,ALPENBEST LTD,SOCIAL SERVICES DAY CARE,Adult Social Care & Health,Homecare - new framework,A56127
Royal Borough of Kingston,08/05/2023,90239089,-525.00,ALPENBEST LTD,SOCIAL SERVICES DAY CARE,Adult Social Care & Health,Homecare - new framework,A56127
Royal Borough of Kingston,08/05/2023,90239093,525.00,ALPENBEST LTD,SOCIAL SERVICES DAY CARE,Adult Social Care & Health,Homecare - new framework,A56127
Royal Borough of Kingston,08/05/2023,90239095,-525.00,ALPENBEST LTD,SOCIAL SERVICES DAY CARE,Adult Social Care & Health,Homecare - new framework,A56127
Royal Borough of Kingston,08/05/2023,90239099,525.00,ALPENBEST LTD,SOCIAL SERVICES DAY CARE,Adult Social Care & Health,Homecare - new framework,A56127
Royal Borough of Kingston,08/05/2023,90239101,-525.00,ALPENBEST LTD,SOCIAL SERVICES DAY CARE,Adult Social Care & Health,Homecare - new framework,A56127
Royal Borough of Kingston,08/05/2023,90239105,525.00,ALPENBEST LTD,SOCIAL SERVICES DAY CARE,Adult Social Care & Health,Homecare - new framework,A56127
Royal Borough of Kingston,08/05/2023,90239107,-525.00,ALPENBEST LTD,SOCIAL SERVICES DAY CARE,Adult Social Care & Health,Homecare - new framework,A56127
Royal Borough of Kingston,08/05/2023,90239111,525.00,ALPENBEST LTD,SOCIAL SERVICES DAY CARE,Adult Social Care & Health,Homecare - new framework,A56127
Royal Borough of Kingston,08/05/2023,90239113,-525.00,ALPENBEST LTD,SOCIAL SERVICES DAY CARE,Adult Social Care & Health,Homecare - new framework,A56127
Royal Borough of Kingston,08/05/2023,90239117,525.00,ALPENBEST LTD,SOCIAL SERVICES DAY CARE,Adult Social Care & Health,Homecare - new framework,A56127
Royal Borough of Kingston,08/05/2023,90239119,-525.00,ALPENBEST LTD,SOCIAL SERVICES DAY CARE,Adult Social Care & Health,Homecare - new framework,A56127
Royal Borough of Kingston,08/05/2023,90239123,525.00,ALPENBEST LTD,SOCIAL SERVICES DAY CARE,Adult Social Care & Health,Homecare - new framework,A56127
Royal Borough of Kingston,08/05/2023,90239125,-525.00,ALPENBEST LTD,SOCIAL SERVICES DAY CARE,Adult Social Care & Health,Homecare - new framework,A56127
Royal Borough of Kingston,08/05/2023,90239129,525.00,ALPENBEST LTD,SOCIAL SERVICES DAY CARE,Adult Social Care & Health,Homecare - new framework,A56127
Royal Borough of Kingston,08/05/2023,90239131,-525.00,ALPENBEST LTD,SOCIAL SERVICES DAY CARE,Adult Social Care & Health,Homecare - new framework,A56127
Royal Borough of Kingston,08/05/2023,90239135,525.00,ALPENBEST LTD,SOCIAL SERVICES DAY CARE,Adult Social Care & Health,Homecare - new framework,A56127
Royal Borough of Kingston,08/05/2023,90239137,-525.00,ALPENBEST LTD,SOCIAL SERVICES DAY CARE,Adult Social Care & Health,Homecare - new framework,A56127
Royal Borough of Kingston,08/05/2023,90239141,525.00,ALPENBEST LTD,SOCIAL SERVICES DAY CARE,Adult Social Care & Health,Homecare - new framework,A56127
Royal Borough of Kingston,08/05/2023,90239143,-525.00,ALPENBEST LTD,SOCIAL SERVICES DAY CARE,Adult Social Care & Health,Homecare - new framework,A56127
Royal Borough of Kingston,08/05/2023,90239147,525.00,ALPENBEST LTD,SOCIAL SERVICES DAY CARE,Adult Social Care & Health,Homecare - new framework,A56127
Royal Borough of Kingston,08/05/2023,90239149,-525.00,ALPENBEST LTD,SOCIAL SERVICES DAY CARE,Adult Social Care & Health,Homecare - new framework,A56127
Royal Borough of Kingston,08/05/2023,90239153,525.00,ALPENBEST LTD,SOCIAL SERVICES DAY CARE,Adult Social Care & Health,Homecare - new framework,A56127
Royal Borough of Kingston,08/05/2023,90239155,-525.00,ALPENBEST LTD,SOCIAL SERVICES DAY CARE,Adult Social Care & Health,Homecare - new framework,A56127
Royal Borough of Kingston,08/05/2023,90239159,525.00,ALPENBEST LTD,SOCIAL SERVICES DAY CARE,Adult Social Care & Health,Homecare - new framework,A56127
Royal Borough of Kingston,08/05/2023,90239161,-525.00,ALPENBEST LTD,SOCIAL SERVICES DAY CARE,Adult Social Care & Health,Homecare - new framework,A56127
Royal Borough of Kingston,08/05/2023,90239165,525.00,ALPENBEST LTD,SOCIAL SERVICES DAY CARE,Adult Social Care & Health,Homecare - new framework,A56127
Royal Borough of Kingston,08/05/2023,90239167,-525.00,ALPENBEST LTD,SOCIAL SERVICES DAY CARE,Adult Social Care & Health,Homecare - new framework,A56127
Royal Borough of Kingston,08/05/2023,90239171,525.00,ALPENBEST LTD,SOCIAL SERVICES DAY CARE,Adult Social Care & Health,Homecare - new framework,A56127
Royal Borough of Kingston,08/05/2023,90239173,-560.00,ALPENBEST LTD,SOCIAL SERVICES DAY CARE,Adult Social Care & Health,Homecare - new framework,A56127
Royal Borough of Kingston,08/05/2023,90239189,540.23,ALPENBEST LTD,SOCIAL SERVICES DAY CARE,Adult Social Care & Health,Homecare - new framework,A56127
Royal Borough of Kingston,08/05/2023,90239191,-540.23,ALPENBEST LTD,SOCIAL SERVICES DAY CARE,Adult Social Care & Health,Homecare - new framework,A56127
Royal Borough of Kingston,08/05/2023,90239199,621.26,ALPENBEST LTD,SOCIAL SERVICES DAY CARE,Adult Social Care & Health,Homecare - new framework,A56127
Royal Borough of Kingston,08/05/2023,90239208,630.27,ALPENBEST LTD,SOCIAL SERVICES DAY CARE,Adult Social Care & Health,Homecare - new framework,A56127
Royal Borough of Kingston,08/05/2023,90239212,783.33,ALPENBEST LTD,SOCIAL SERVICES DAY CARE,Adult Social Care & Health,Homecare - new framework,A56127
Royal Borough of Kingston,08/05/2023,90239234,630.27,ALPENBEST LTD,SOCIAL SERVICES DAY CARE,Adult Social Care & Health,Homecare - new framework,A56127
Royal Borough of Kingston,08/05/2023,90239328,648.28,ALPENBEST LTD,SOCIAL SERVICES DAY CARE,Adult Social Care & Health,Homecare - new framework,A56127
Royal Borough of Kingston,08/05/2023,90239345,504.21,ALPENBEST LTD,SOCIAL SERVICES DAY CARE,Adult Social Care & Health,Homecare - new framework,A56127
Royal Borough of Kingston,08/05/2023,90240335,630.27,ALPENBEST LTD,SOCIAL SERVICES DAY CARE,Adult Social Care & Health,Personal Budget - Third Party,A61019
Royal Borough of Kingston,30/03/2023,70045218,"1,730.00",Alpha Parking Limited,SUNDRY SUPPLIER - FINANCE,Corporate & Communities,Staff Development And Training,A15022
Royal Borough of Kingston,25/05/2023,90236203,"1,136.00",REDACTED - PERSONAL DATA,PLS LANDLORDS,Place,PSL Payments To Landlords,A22031
Royal Borough of Kingston,30/04/2023,70045869,"2,780.00",ANA TREATMENT CENTRES LTD,SOCIAL SERVICES RESIDENTIAL,Adult Social Care & Health,Independent Placements,A56006
Royal Borough of Kingston,30/04/2023,70045871,695.00,ANA TREATMENT CENTRES LTD,SOCIAL SERVICES RESIDENTIAL,Adult Social Care & Health,Independent Placements,A56006
Royal Borough of Kingston,25/05/2023,90236561,"1,383.33",REDACTED - PERSONAL DATA,PLS LANDLORDS,Place,PSL Payments To Landlords,A22031
Royal Borough of Kingston,25/05/2023,90236539,"1,314.00",REDACTED - PERSONAL DATA,PLS LANDLORDS,Place,PSL Payments To Landlords,A22031
Royal Borough of Kingston,25/05/2023,90236462,"1,094.00",REDACTED - PERSONAL DATA,PLS LANDLORDS,Place,PSL Payments To Landlords,A22031
Royal Borough of Kingston,08/04/2023,70046371,"1,739.11",ANGLIAN WATER BUSINESS NATIONAL LTD,UTILITIES,Housing Revenue Account,Water Services,A24005
Royal Borough of Kingston,19/04/2023,70046374,"7,455.28",ANGLIAN WATER BUSINESS NATIONAL LTD,UTILITIES,Place,Water Services,A24005
Royal Borough of Kingston,18/05/2023,70047060,605.12,ANGLIAN WATER BUSINESS NATIONAL LTD,UTILITIES,Housing Revenue Account,Water Services,A24005
Royal Borough of Kingston,25/05/2023,90236232,"1,094.00",REDACTED - PERSONAL DATA,PLS LANDLORDS,Place,PSL Payments To Landlords,A22031
Royal Borough of Kingston,25/05/2023,90236584,"1,047.00",REDACTED - PERSONAL DATA,PLS LANDLORDS,Place,PSL Payments To Landlords,A22031
Royal Borough of Kingston,20/04/2023,70046145,"35,662.08",AON UK LTD,FINANCIAL / INSURANCE INSTNS,Corporate & Communities,General Insurance (Excl Premises & Transport),A44260
Royal Borough of Kingston,27/03/2023,70046146,"3,080.00",AON UK LTD,FINANCIAL / INSURANCE INSTNS,Corporate & Communities,General Insurance (Excl Premises & Transport),A44260
Royal Borough of Kingston,24/03/2023,70046153,"4,859.68",AON UK LTD,FINANCIAL / INSURANCE INSTNS,Corporate & Communities,General Insurance (Excl Premises & Transport),A44260
Royal Borough of Kingston,24/03/2023,70046154,"23,520.00",AON UK LTD,FINANCIAL / INSURANCE INSTNS,Corporate & Communities,General Insurance (Excl Premises & Transport),A44260
Royal Borough of Kingston,27/03/2023,70046155,"167,877.16",AON UK LTD,FINANCIAL / INSURANCE INSTNS,Corporate & Communities,General Insurance (Excl Premises & Transport),A44260
Royal Borough of Kingston,03/05/2023,70045889,900.00,AP RENTAL INC LTD,LANDLORDS,Adult Social Care & Health,Housing Benefit - Rent Allowances -Private Tenants Only,A62009
Royal Borough of Kingston,03/05/2023,70045891,"1,110.00",AP RENTAL INC LTD,LANDLORDS,Adult Social Care & Health,Housing Benefit - Rent Allowances -Private Tenants Only,A62009
Royal Borough of Kingston,03/05/2023,70045892,"1,060.00",AP RENTAL INC LTD,LANDLORDS,Adult Social Care & Health,Housing Benefit - Rent Allowances -Private Tenants Only,A62009
Royal Borough of Kingston,03/05/2023,70045893,"1,260.00",AP RENTAL INC LTD,LANDLORDS,Adult Social Care & Health,Housing Benefit - Rent Allowances -Private Tenants Only,A62009
Royal Borough of Kingston,03/05/2023,70045895,"1,225.00",AP RENTAL INC LTD,LANDLORDS,Adult Social Care & Health,Housing Benefit - Rent Allowances -Private Tenants Only,A62009
Royal Borough of Kingston,30/04/2023,70046031,"1,320.00",APEX HOUSING SOLUTIONS LTD,ACCOMMODATION BED & BREAKFAST,Place,Bed & Breakfast,A56000
Royal Borough of Kingston,30/04/2023,70046032,"1,650.00",APEX HOUSING SOLUTIONS LTD,ACCOMMODATION BED & BREAKFAST,Place,Bed & Breakfast,A56000
Royal Borough of Kingston,30/04/2023,70046033,"1,740.00",APEX HOUSING SOLUTIONS LTD,ACCOMMODATION BED & BREAKFAST,Place,Bed & Breakfast,A56000
Royal Borough of Kingston,01/04/2023,70046034,"1,617.00",APEX HOUSING SOLUTIONS LTD,ACCOMMODATION BED & BREAKFAST,Place,Bed & Breakfast,A56000
Royal Borough of Kingston,30/04/2023,70046035,"1,650.00",APEX HOUSING SOLUTIONS LTD,ACCOMMODATION BED & BREAKFAST,Place,Bed & Breakfast,A56000
Royal Borough of Kingston,01/04/2023,70046037,"1,617.00",APEX HOUSING SOLUTIONS LTD,ACCOMMODATION BED & BREAKFAST,Place,Bed & Breakfast,A56000
Royal Borough of Kingston,30/04/2023,70046038,"2,100.00",APEX HOUSING SOLUTIONS LTD,ACCOMMODATION BED & BREAKFAST,Place,Bed & Breakfast,A56000
Royal Borough of Kingston,30/04/2023,70046039,"2,070.00",APEX HOUSING SOLUTIONS LTD,ACCOMMODATION BED & BREAKFAST,Place,Bed & Breakfast,A56000
Royal Borough of Kingston,30/04/2023,70046040,"1,650.00",APEX HOUSING SOLUTIONS LTD,ACCOMMODATION BED & BREAKFAST,Place,Bed & Breakfast,A56000
Royal Borough of Kingston,30/04/2023,70046041,"1,650.00",APEX HOUSING SOLUTIONS LTD,ACCOMMODATION BED & BREAKFAST,Place,Bed & Breakfast,A56000
Royal Borough of Kingston,30/04/2023,70046042,"1,557.00",APEX HOUSING SOLUTIONS LTD,ACCOMMODATION BED & BREAKFAST,Place,Bed & Breakfast,A56000
Royal Borough of Kingston,30/04/2023,70046043,"1,200.00",APEX HOUSING SOLUTIONS LTD,ACCOMMODATION BED & BREAKFAST,Place,Bed & Breakfast,A56000
Royal Borough of Kingston,01/04/2023,70046044,"1,740.00",APEX HOUSING SOLUTIONS LTD,ACCOMMODATION BED & BREAKFAST,Place,Bed & Breakfast,A56000
Royal Borough of Kingston,01/04/2023,70046045,"1,497.00",APEX HOUSING SOLUTIONS LTD,ACCOMMODATION BED & BREAKFAST,Place,Bed & Breakfast,A56000
Royal Borough of Kingston,01/04/2023,70046046,"1,740.00",APEX HOUSING SOLUTIONS LTD,ACCOMMODATION BED & BREAKFAST,Place,Bed & Breakfast,A56000
Royal Borough of Kingston,01/04/2023,70046047,"1,740.00",APEX HOUSING SOLUTIONS LTD,ACCOMMODATION BED & BREAKFAST,Place,Bed & Breakfast,A56000
Royal Borough of Kingston,01/04/2023,70046048,"1,617.00",APEX HOUSING SOLUTIONS LTD,ACCOMMODATION BED & BREAKFAST,Place,Bed & Breakfast,A56000
Royal Borough of Kingston,01/04/2023,70046049,"2,280.00",APEX HOUSING SOLUTIONS LTD,ACCOMMODATION BED & BREAKFAST,Place,Bed & Breakfast,A56000
Royal Borough of Kingston,30/04/2023,70046050,"1,350.00",APEX HOUSING SOLUTIONS LTD,ACCOMMODATION BED & BREAKFAST,Place,Bed & Breakfast,A56000
Royal Borough of Kingston,01/04/2023,70046051,"2,100.00",APEX HOUSING SOLUTIONS LTD,ACCOMMODATION BED & BREAKFAST,Place,Bed & Breakfast,A56000
Royal Borough of Kingston,30/04/2023,70046052,"3,150.00",APEX HOUSING SOLUTIONS LTD,ACCOMMODATION BED & BREAKFAST,Place,Bed & Breakfast,A56000
Royal Borough of Kingston,30/04/2023,70046055,"1,557.00",APEX HOUSING SOLUTIONS LTD,ACCOMMODATION BED & BREAKFAST,Place,Bed & Breakfast,A56000
Royal Borough of Kingston,30/04/2023,70046057,"1,650.00",APEX HOUSING SOLUTIONS LTD,ACCOMMODATION BED & BREAKFAST,Place,Bed & Breakfast,A56000
Royal Borough of Kingston,30/04/2023,70046058,"1,497.00",APEX HOUSING SOLUTIONS LTD,ACCOMMODATION BED & BREAKFAST,Place,Bed & Breakfast,A56000
Royal Borough of Kingston,28/04/2023,70045948,"6,600.00",AQUAVENT LIMITED,BUILDING MNTCE - SERVICES,Housing Revenue Account,Water Testing & Treatment,A20037
Royal Borough of Kingston,20/04/2023,70045590,"5,650.00",ASCENDIT LIFTS LTD,BUILDING MNTCE - SERVICES,Place,Grants Given For Capital Purposes,C20004
Royal Borough of Kingston,02/05/2023,70046093,"6,878.00",ASCENDIT LIFTS LTD,BUILDING MNTCE - SERVICES,Housing Revenue Account,Disabled Adaptations,C20003
Royal Borough of Kingston,01/05/2023,90237400,"6,405.43",ASHCROFT CARE SERVICES LIMITED,SOCIAL SERVICES RESIDENTIAL,Adult Social Care & Health,Independent Placements,A56006
Royal Borough of Kingston,01/05/2023,90237401,"-6,100.41",ASHCROFT CARE SERVICES LIMITED,SOCIAL SERVICES RESIDENTIAL,Adult Social Care & Health,Independent Placements,A56006
Royal Borough of Kingston,01/05/2023,90237402,"6,618.94",ASHCROFT CARE SERVICES LIMITED,SOCIAL SERVICES RESIDENTIAL,Adult Social Care & Health,Independent Placements,A56006
Royal Borough of Kingston,01/05/2023,90240537,-534.97,ASHCROFT CARE SERVICES LIMITED,SOCIAL SERVICES RESIDENTIAL,Adult Social Care & Health,Financially Assessed Contributions clients � Non VAT,A92047
Royal Borough of Kingston,01/05/2023,90240225,967.80,ASHINGTON HOUSE LTD,SOCIAL SERVICES RESIDENTIAL,Adult Social Care & Health,Personal Budget - Third Party,A61019
Royal Borough of Kingston,01/05/2023,90240226,-921.60,ASHINGTON HOUSE LTD,SOCIAL SERVICES RESIDENTIAL,Adult Social Care & Health,Personal Budget - Third Party,A61019
Royal Borough of Kingston,01/05/2023,90240227,"1,000.06",ASHINGTON HOUSE LTD,SOCIAL SERVICES RESIDENTIAL,Adult Social Care & Health,Personal Budget - Third Party,A61019
Royal Borough of Kingston,01/05/2023,90240028,"1,371.00",ASHPRIME PROPERTIES LTD,SOCIAL SERVICES RESIDENTIAL,Adult Social Care & Health,Personal Budget - Third Party,A61019
Royal Borough of Kingston,01/05/2023,90240029,"-1,305.73",ASHPRIME PROPERTIES LTD,SOCIAL SERVICES RESIDENTIAL,Adult Social Care & Health,Personal Budget - Third Party,A61019
Royal Borough of Kingston,01/05/2023,90240030,"1,416.70",ASHPRIME PROPERTIES LTD,SOCIAL SERVICES RESIDENTIAL,Adult Social Care & Health,Personal Budget - Third Party,A61019
Royal Borough of Kingston,01/05/2023,90231649,"4,051.58",ASHTON LODGE LTD,SOCIAL SERVICES RESIDENTIAL,Adult Social Care & Health,Independent Placements,A56006
Royal Borough of Kingston,01/05/2023,90231650,"1,869.96",ASHTON LODGE LTD,SOCIAL SERVICES RESIDENTIAL,Adult Social Care & Health,Independent Placements,A56006
Royal Borough of Kingston,01/05/2023,90234078,"2,142.86",ASHTON LODGE LTD,SOCIAL SERVICES RESIDENTIAL,Adult Social Care & Health,Independent Placements,A56006
Royal Borough of Kingston,25/05/2023,90236473,710.80,REDACTED - PERSONAL DATA,PLS LANDLORDS,Place,PSL Payments To Landlords,A22031
Royal Borough of Kingston,01/05/2023,90240164,"2,698.33",Aspirations Care Ltd,SOCIAL SERVICES - OTHER,Adult Social Care & Health,Personal Budget - Third Party,A61019
Royal Borough of Kingston,01/05/2023,90240165,"-2,569.84",Aspirations Care Ltd,SOCIAL SERVICES - OTHER,Adult Social Care & Health,Personal Budget - Third Party,A61019
Royal Borough of Kingston,01/05/2023,90240166,"2,788.27",Aspirations Care Ltd,SOCIAL SERVICES - OTHER,Adult Social Care & Health,Personal Budget - Third Party,A61019
Royal Borough of Kingston,01/05/2023,90237071,"3,966.00",ASPREY HEALTHCARE LTD,SOCIAL SERVICES RESIDENTIAL,Adult Social Care & Health,Independent Placements,A56006
Royal Borough of Kingston,01/05/2023,90237072,"-3,822.77",ASPREY HEALTHCARE LTD,SOCIAL SERVICES RESIDENTIAL,Adult Social Care & Health,Independent Placements,A56006
Royal Borough of Kingston,01/05/2023,90237073,"4,098.20",ASPREY HEALTHCARE LTD,SOCIAL SERVICES RESIDENTIAL,Adult Social Care & Health,Independent Placements,A56006
Royal Borough of Kingston,01/05/2023,90236850,"4,852.08",ASTORIA HEALTHCARE LTD,SOCIAL SERVICES RESIDENTIAL,Adult Social Care & Health,Independent Placements,A56006
Royal Borough of Kingston,25/05/2023,90236404,"1,094.34",AUMKARA INVESTMENTS LTD,PLS LANDLORDS,Place,PSL Payments To Landlords,A22031
Royal Borough of Kingston,25/05/2023,90236405,"1,094.34",AUMKARA INVESTMENTS LTD,PLS LANDLORDS,Place,PSL Payments To Landlords,A22031
Royal Borough of Kingston,25/05/2023,90236406,"1,094.34",AUMKARA INVESTMENTS LTD,PLS LANDLORDS,Place,PSL Payments To Landlords,A22031
Royal Borough of Kingston,01/05/2023,90237211,"11,528.01",AUTISM CONSULTANTS LTD,SOCIAL SERVICES RESIDENTIAL,Adult Social Care & Health,Independent Placements,A56006
Royal Borough of Kingston,01/05/2023,90237212,"-10,979.06",AUTISM CONSULTANTS LTD,SOCIAL SERVICES RESIDENTIAL,Adult Social Care & Health,Independent Placements,A56006
Royal Borough of Kingston,01/05/2023,90237213,"11,912.28",AUTISM CONSULTANTS LTD,SOCIAL SERVICES RESIDENTIAL,Adult Social Care & Health,Independent Placements,A56006
Royal Borough of Kingston,30/04/2023,70045999,714.95,AVICENNA PSYCHIATRY,SOCIAL SERVICES - OTHER,Adult Social Care & Health,Other Private Contractors - Third Party,A56080
Royal Borough of Kingston,06/05/2023,70046515,714.95,AVICENNA PSYCHIATRY,SOCIAL SERVICES - OTHER,Adult Social Care & Health,Other Private Contractors - Third Party,A56080
Royal Borough of Kingston,27/04/2023,70045559,"3,250.00",Avida Go Ltd,SUNDRY SUPPLIER - HOUSING,Place,Prevention Of Homelessness,A44141
Royal Borough of Kingston,22/02/2023,70041141,"7,305.75",AXIS EUROPE PLC,CONSTRUCTION INDUSTRY,Housing Revenue Account,Council Dwellings - Capitalised Voids,C10001
Royal Borough of Kingston,19/04/2023,70045127,623.26,AXIS EUROPE PLC,CONSTRUCTION INDUSTRY,Adult Social Care & Health,Lift Servicing And Repairs,A20006
Royal Borough of Kingston,06/02/2023,70045408,730.22,AXIS EUROPE PLC,CONSTRUCTION INDUSTRY,Housing Revenue Account,Other Private Contractors - Third Party,A56080
Royal Borough of Kingston,26/04/2023,70045436,"2,189.25",AXIS EUROPE PLC,CONSTRUCTION INDUSTRY,Housing Revenue Account,Council Dwellings - Construction & Renovation,C10002
Royal Borough of Kingston,26/04/2023,70045437,"2,480.60",AXIS EUROPE PLC,CONSTRUCTION INDUSTRY,Housing Revenue Account,Council Dwellings - Construction & Renovation,C10002
Royal Borough of Kingston,26/04/2023,70045438,"2,276.60",AXIS EUROPE PLC,CONSTRUCTION INDUSTRY,Housing Revenue Account,Council Dwellings - Construction & Renovation,C10002
Royal Borough of Kingston,26/04/2023,70045439,"2,123.75",AXIS EUROPE PLC,CONSTRUCTION INDUSTRY,Housing Revenue Account,Council Dwellings - Construction & Renovation,C10002
Royal Borough of Kingston,26/04/2023,70045440,"2,249.14",AXIS EUROPE PLC,CONSTRUCTION INDUSTRY,Housing Revenue Account,Council Dwellings - Construction & Renovation,C10002
Royal Borough of Kingston,26/04/2023,70045443,"2,487.41",AXIS EUROPE PLC,CONSTRUCTION INDUSTRY,Housing Revenue Account,Council Dwellings - Construction & Renovation,C10002
Royal Borough of Kingston,26/04/2023,70045444,"2,461.95",AXIS EUROPE PLC,CONSTRUCTION INDUSTRY,Housing Revenue Account,Council Dwellings - Construction & Renovation,C10002
Royal Borough of Kingston,26/04/2023,70045445,"2,267.06",AXIS EUROPE PLC,CONSTRUCTION INDUSTRY,Housing Revenue Account,Council Dwellings - Construction & Renovation,C10002
Royal Borough of Kingston,26/04/2023,70045449,"2,461.09",AXIS EUROPE PLC,CONSTRUCTION INDUSTRY,Housing Revenue Account,Council Dwellings - Construction & Renovation,C10002
Royal Borough of Kingston,26/04/2023,70045450,"2,466.97",AXIS EUROPE PLC,CONSTRUCTION INDUSTRY,Housing Revenue Account,Council Dwellings - Construction & Renovation,C10002
Royal Borough of Kingston,26/04/2023,70045451,"2,239.62",AXIS EUROPE PLC,CONSTRUCTION INDUSTRY,Housing Revenue Account,Council Dwellings - Construction & Renovation,C10002
Royal Borough of Kingston,26/04/2023,70045452,679.92,AXIS EUROPE PLC,CONSTRUCTION INDUSTRY,Housing Revenue Account,Council Dwellings - Construction & Renovation,C10002
Royal Borough of Kingston,26/04/2023,70045454,"2,616.24",AXIS EUROPE PLC,CONSTRUCTION INDUSTRY,Housing Revenue Account,Council Dwellings - Construction & Renovation,C10002
Royal Borough of Kingston,26/04/2023,70045455,"2,172.79",AXIS EUROPE PLC,CONSTRUCTION INDUSTRY,Housing Revenue Account,Council Dwellings - Construction & Renovation,C10002
Royal Borough of Kingston,26/04/2023,70045456,"2,986.50",AXIS EUROPE PLC,CONSTRUCTION INDUSTRY,Housing Revenue Account,Council Dwellings - Construction & Renovation,C10002
Royal Borough of Kingston,26/04/2023,70045457,"2,197.43",AXIS EUROPE PLC,CONSTRUCTION INDUSTRY,Housing Revenue Account,Council Dwellings - Construction & Renovation,C10002
Royal Borough of Kingston,26/04/2023,70045458,"2,429.38",AXIS EUROPE PLC,CONSTRUCTION INDUSTRY,Housing Revenue Account,Council Dwellings - Construction & Renovation,C10002
Royal Borough of Kingston,02/05/2023,70045784,"-99,000.06",AXIS EUROPE PLC,CONSTRUCTION INDUSTRY,Housing Revenue Account,Housing - Heating & Ventilation,A20045
Royal Borough of Kingston,30/04/2023,70045809,"1,970.34",AXIS EUROPE PLC,CONSTRUCTION INDUSTRY,Housing Revenue Account,Council Dwellings - Construction & Renovation,C10002
Royal Borough of Kingston,30/04/2023,70045810,"1,015.71",AXIS EUROPE PLC,CONSTRUCTION INDUSTRY,Housing Revenue Account,Council Dwellings - Fire Safety,C10004
Royal Borough of Kingston,30/04/2023,70045811,513.36,AXIS EUROPE PLC,CONSTRUCTION INDUSTRY,Housing Revenue Account,Other Private Contractors - Third Party,A56080
Royal Borough of Kingston,30/04/2023,70045812,"1,115.47",AXIS EUROPE PLC,CONSTRUCTION INDUSTRY,Housing Revenue Account,Buildings - Project Management,C14003
Royal Borough of Kingston,30/04/2023,70045813,"3,505.06",AXIS EUROPE PLC,CONSTRUCTION INDUSTRY,Housing Revenue Account,Council Dwellings - Construction & Renovation,C10002
Royal Borough of Kingston,30/04/2023,70045814,"1,015.71",AXIS EUROPE PLC,CONSTRUCTION INDUSTRY,Housing Revenue Account,Council Dwellings - Fire Safety,C10004
Royal Borough of Kingston,30/04/2023,70045815,"1,015.71",AXIS EUROPE PLC,CONSTRUCTION INDUSTRY,Housing Revenue Account,Council Dwellings - Fire Safety,C10004
Royal Borough of Kingston,30/04/2023,70045817,"1,244.86",AXIS EUROPE PLC,CONSTRUCTION INDUSTRY,Housing Revenue Account,Asbestos Removal,C10000
Royal Borough of Kingston,30/04/2023,70045818,"4,595.35",AXIS EUROPE PLC,CONSTRUCTION INDUSTRY,Housing Revenue Account,Asbestos Removal,C10000
Royal Borough of Kingston,30/04/2023,70045819,"1,819.11",AXIS EUROPE PLC,CONSTRUCTION INDUSTRY,Housing Revenue Account,Asbestos Removal,C10000
Royal Borough of Kingston,26/04/2023,70045852,"2,368.59",AXIS EUROPE PLC,CONSTRUCTION INDUSTRY,Housing Revenue Account,Council Dwellings - Construction & Renovation,C10002
Royal Borough of Kingston,20/02/2023,70045872,"-14,226.76",AXIS EUROPE PLC,CONSTRUCTION INDUSTRY,Housing Revenue Account,Void Property Repairs,A20036
Royal Borough of Kingston,20/02/2023,70045873,"-47,623.77",AXIS EUROPE PLC,CONSTRUCTION INDUSTRY,Housing Revenue Account,Property Repairs & Maintenance & Alterations - Responsive,A20011
Royal Borough of Kingston,30/04/2023,70045983,"2,073.57",AXIS EUROPE PLC,CONSTRUCTION INDUSTRY,Place,External Site Works,A20050
Royal Borough of Kingston,30/04/2023,70045984,"1,225.11",AXIS EUROPE PLC,CONSTRUCTION INDUSTRY,Housing Revenue Account,Council Dwellings - Fire Safety,C10004
Royal Borough of Kingston,31/03/2023,70047025,"6,503.54",AXIS EUROPE PLC,CONSTRUCTION INDUSTRY,Housing Revenue Account,Council Dwellings - Construction & Renovation,C10002
Royal Borough of Kingston,25/05/2023,90236403,"1,314.00",REDACTED - PERSONAL DATA,PLS LANDLORDS,Place,PSL Payments To Landlords,A22031
Royal Borough of Kingston,25/05/2023,90236521,"1,094.00",REDACTED - PERSONAL DATA,PLS LANDLORDS,Place,PSL Payments To Landlords,A22031
Royal Borough of Kingston,25/05/2023,90236189,758.33,REDACTED - PERSONAL DATA,PLS LANDLORDS,Place,PSL Payments To Landlords,A22031
Royal Borough of Kingston,28/03/2023,70044295,"29,199.65",BALANCE (SUPPORT) C.I.C,SOCIAL SERVICES - OTHER,Adult Social Care & Health,Professional Fees,A44066
Royal Borough of Kingston,01/05/2023,70046716,"5,787.84",BALANCE (SUPPORT) C.I.C,SOCIAL SERVICES - OTHER,Adult Social Care & Health,Other Property Repairs & Maintenance,A20007
Royal Borough of Kingston,01/05/2023,90237607,"2,486.20",BALANCE (SUPPORT) C.I.C,SOCIAL SERVICES - OTHER,Adult Social Care & Health,Supported Living - new framework,A56126
Royal Borough of Kingston,01/05/2023,90237608,618.28,BALANCE (SUPPORT) C.I.C,SOCIAL SERVICES - OTHER,Adult Social Care & Health,Supported Living - new framework,A56126
Royal Borough of Kingston,01/05/2023,90237616,-701.98,BALANCE (SUPPORT) C.I.C,SOCIAL SERVICES - OTHER,Adult Social Care & Health,Supported Living - new framework,A56126
Royal Borough of Kingston,01/05/2023,90237617,-679.33,BALANCE (SUPPORT) C.I.C,SOCIAL SERVICES - OTHER,Adult Social Care & Health,Supported Living - new framework,A56126
Royal Borough of Kingston,01/05/2023,90237618,-701.98,BALANCE (SUPPORT) C.I.C,SOCIAL SERVICES - OTHER,Adult Social Care & Health,Supported Living - new framework,A56126
Royal Borough of Kingston,01/05/2023,90237619,-679.33,BALANCE (SUPPORT) C.I.C,SOCIAL SERVICES - OTHER,Adult Social Care & Health,Supported Living - new framework,A56126
Royal Borough of Kingston,01/05/2023,90237620,-701.98,BALANCE (SUPPORT) C.I.C,SOCIAL SERVICES - OTHER,Adult Social Care & Health,Supported Living - new framework,A56126
Royal Borough of Kingston,01/05/2023,90237621,-701.98,BALANCE (SUPPORT) C.I.C,SOCIAL SERVICES - OTHER,Adult Social Care & Health,Supported Living - new framework,A56126
Royal Borough of Kingston,01/05/2023,90237622,-634.04,BALANCE (SUPPORT) C.I.C,SOCIAL SERVICES - OTHER,Adult Social Care & Health,Supported Living - new framework,A56126
Royal Borough of Kingston,01/05/2023,90237623,-701.98,BALANCE (SUPPORT) C.I.C,SOCIAL SERVICES - OTHER,Adult Social Care & Health,Supported Living - new framework,A56126
Royal Borough of Kingston,01/05/2023,90237624,-679.33,BALANCE (SUPPORT) C.I.C,SOCIAL SERVICES - OTHER,Adult Social Care & Health,Supported Living - new framework,A56126
Royal Borough of Kingston,01/05/2023,90237625,"1,864.64",BALANCE (SUPPORT) C.I.C,SOCIAL SERVICES - OTHER,Adult Social Care & Health,Supported Living - new framework,A56126
Royal Borough of Kingston,01/05/2023,90237634,"1,621.62",BALANCE (SUPPORT) C.I.C,SOCIAL SERVICES - OTHER,Adult Social Care & Health,Supported Living - new framework,A56126
Royal Borough of Kingston,01/05/2023,90237635,"-1,544.40",BALANCE (SUPPORT) C.I.C,SOCIAL SERVICES - OTHER,Adult Social Care & Health,Supported Living - new framework,A56126
Royal Borough of Kingston,01/05/2023,90237640,"1,675.67",BALANCE (SUPPORT) C.I.C,SOCIAL SERVICES - OTHER,Adult Social Care & Health,Supported Living - new framework,A56126
Royal Borough of Kingston,01/05/2023,90237657,900.90,BALANCE (SUPPORT) C.I.C,SOCIAL SERVICES - OTHER,Adult Social Care & Health,Supported Living - new framework,A56126
Royal Borough of Kingston,01/05/2023,90237658,"1,722.97",BALANCE (SUPPORT) C.I.C,SOCIAL SERVICES - OTHER,Adult Social Care & Health,Supported Living - new framework,A56126
Royal Borough of Kingston,01/05/2023,90237659,-858.00,BALANCE (SUPPORT) C.I.C,SOCIAL SERVICES - OTHER,Adult Social Care & Health,Supported Living - new framework,A56126
Royal Borough of Kingston,01/05/2023,90237660,"-1,640.93",BALANCE (SUPPORT) C.I.C,SOCIAL SERVICES - OTHER,Adult Social Care & Health,Supported Living - new framework,A56126
Royal Borough of Kingston,01/05/2023,90237661,930.93,BALANCE (SUPPORT) C.I.C,SOCIAL SERVICES - OTHER,Adult Social Care & Health,Supported Living - new framework,A56126
Royal Borough of Kingston,01/05/2023,90237662,"1,780.40",BALANCE (SUPPORT) C.I.C,SOCIAL SERVICES - OTHER,Adult Social Care & Health,Supported Living - new framework,A56126
Royal Borough of Kingston,01/05/2023,90237678,900.90,BALANCE (SUPPORT) C.I.C,SOCIAL SERVICES - OTHER,Adult Social Care & Health,Supported Living - new framework,A56126
Royal Borough of Kingston,01/05/2023,90237679,"2,297.30",BALANCE (SUPPORT) C.I.C,SOCIAL SERVICES - OTHER,Adult Social Care & Health,Supported Living - new framework,A56126
Royal Borough of Kingston,01/05/2023,90237680,-858.00,BALANCE (SUPPORT) C.I.C,SOCIAL SERVICES - OTHER,Adult Social Care & Health,Supported Living - new framework,A56126
Royal Borough of Kingston,01/05/2023,90237681,"-2,187.90",BALANCE (SUPPORT) C.I.C,SOCIAL SERVICES - OTHER,Adult Social Care & Health,Supported Living - new framework,A56126
Royal Borough of Kingston,01/05/2023,90237682,930.93,BALANCE (SUPPORT) C.I.C,SOCIAL SERVICES - OTHER,Adult Social Care & Health,Supported Living - new framework,A56126
Royal Borough of Kingston,01/05/2023,90237683,"2,373.87",BALANCE (SUPPORT) C.I.C,SOCIAL SERVICES - OTHER,Adult Social Care & Health,Supported Living - new framework,A56126
Royal Borough of Kingston,01/05/2023,90237684,583.83,BALANCE (SUPPORT) C.I.C,SOCIAL SERVICES - OTHER,Adult Social Care & Health,Supported Living - new framework,A56126
Royal Borough of Kingston,01/05/2023,90237701,"1,171.17",BALANCE (SUPPORT) C.I.C,SOCIAL SERVICES - OTHER,Adult Social Care & Health,Supported Living - new framework,A56126
Royal Borough of Kingston,01/05/2023,90237702,"2,297.30",BALANCE (SUPPORT) C.I.C,SOCIAL SERVICES - OTHER,Adult Social Care & Health,Supported Living - new framework,A56126
Royal Borough of Kingston,01/05/2023,90237703,"-1,115.40",BALANCE (SUPPORT) C.I.C,SOCIAL SERVICES - OTHER,Adult Social Care & Health,Supported Living - new framework,A56126
Royal Borough of Kingston,01/05/2023,90237704,"-2,187.90",BALANCE (SUPPORT) C.I.C,SOCIAL SERVICES - OTHER,Adult Social Care & Health,Supported Living - new framework,A56126
Royal Borough of Kingston,01/05/2023,90237705,"1,210.21",BALANCE (SUPPORT) C.I.C,SOCIAL SERVICES - OTHER,Adult Social Care & Health,Supported Living - new framework,A56126
Royal Borough of Kingston,01/05/2023,90237706,"2,373.87",BALANCE (SUPPORT) C.I.C,SOCIAL SERVICES - OTHER,Adult Social Care & Health,Supported Living - new framework,A56126
Royal Borough of Kingston,01/05/2023,90237707,583.83,BALANCE (SUPPORT) C.I.C,SOCIAL SERVICES - OTHER,Adult Social Care & Health,Supported Living - new framework,A56126
Royal Borough of Kingston,01/05/2023,90237708,"1,864.64",BALANCE (SUPPORT) C.I.C,SOCIAL SERVICES - OTHER,Adult Social Care & Health,Supported Living - new framework,A56126
Royal Borough of Kingston,01/05/2023,90237709,701.98,BALANCE (SUPPORT) C.I.C,SOCIAL SERVICES - OTHER,Adult Social Care & Health,Supported Living - new framework,A56126
Royal Borough of Kingston,01/05/2023,90237711,"2,297.30",BALANCE (SUPPORT) C.I.C,SOCIAL SERVICES - OTHER,Adult Social Care & Health,Supported Living - new framework,A56126
Royal Borough of Kingston,01/05/2023,90237712,"-2,187.90",BALANCE (SUPPORT) C.I.C,SOCIAL SERVICES - OTHER,Adult Social Care & Health,Supported Living - new framework,A56126
Royal Borough of Kingston,01/05/2023,90237713,"2,373.87",BALANCE (SUPPORT) C.I.C,SOCIAL SERVICES - OTHER,Adult Social Care & Health,Supported Living - new framework,A56126
Royal Borough of Kingston,01/05/2023,90237714,583.83,BALANCE (SUPPORT) C.I.C,SOCIAL SERVICES - OTHER,Adult Social Care & Health,Supported Living - new framework,A56126
Royal Borough of Kingston,01/05/2023,90237715,630.63,BALANCE (SUPPORT) C.I.C,SOCIAL SERVICES - OTHER,Adult Social Care & Health,Supported Living - new framework,A56126
Royal Borough of Kingston,01/05/2023,90237716,-600.60,BALANCE (SUPPORT) C.I.C,SOCIAL SERVICES - OTHER,Adult Social Care & Health,Supported Living - new framework,A56126
Royal Borough of Kingston,01/05/2023,90237721,651.65,BALANCE (SUPPORT) C.I.C,SOCIAL SERVICES - OTHER,Adult Social Care & Health,Supported Living - new framework,A56126
Royal Borough of Kingston,01/05/2023,90237738,990.99,BALANCE (SUPPORT) C.I.C,SOCIAL SERVICES - OTHER,Adult Social Care & Health,Supported Living - new framework,A56126
Royal Borough of Kingston,01/05/2023,90237739,"1,722.97",BALANCE (SUPPORT) C.I.C,SOCIAL SERVICES - OTHER,Adult Social Care & Health,Supported Living - new framework,A56126
Royal Borough of Kingston,01/05/2023,90237740,-943.80,BALANCE (SUPPORT) C.I.C,SOCIAL SERVICES - OTHER,Adult Social Care & Health,Supported Living - new framework,A56126
Royal Borough of Kingston,01/05/2023,90237741,"-1,640.93",BALANCE (SUPPORT) C.I.C,SOCIAL SERVICES - OTHER,Adult Social Care & Health,Supported Living - new framework,A56126
Royal Borough of Kingston,01/05/2023,90237742,"1,024.02",BALANCE (SUPPORT) C.I.C,SOCIAL SERVICES - OTHER,Adult Social Care & Health,Supported Living - new framework,A56126
Royal Borough of Kingston,01/05/2023,90237743,"1,780.40",BALANCE (SUPPORT) C.I.C,SOCIAL SERVICES - OTHER,Adult Social Care & Health,Supported Living - new framework,A56126
Royal Borough of Kingston,01/05/2023,90237758,"1,722.97",BALANCE (SUPPORT) C.I.C,SOCIAL SERVICES - OTHER,Adult Social Care & Health,Supported Living - new framework,A56126
Royal Borough of Kingston,01/05/2023,90237759,"-1,640.93",BALANCE (SUPPORT) C.I.C,SOCIAL SERVICES - OTHER,Adult Social Care & Health,Supported Living - new framework,A56126
Royal Borough of Kingston,01/05/2023,90237760,"1,780.40",BALANCE (SUPPORT) C.I.C,SOCIAL SERVICES - OTHER,Adult Social Care & Health,Supported Living - new framework,A56126
Royal Borough of Kingston,01/05/2023,90237762,-709.28,BALANCE (SUPPORT) C.I.C,SOCIAL SERVICES - OTHER,Adult Social Care & Health,Supported Living - new framework,A56126
Royal Borough of Kingston,01/05/2023,90237763,-686.40,BALANCE (SUPPORT) C.I.C,SOCIAL SERVICES - OTHER,Adult Social Care & Health,Supported Living - new framework,A56126
Royal Borough of Kingston,01/05/2023,90237764,-709.28,BALANCE (SUPPORT) C.I.C,SOCIAL SERVICES - OTHER,Adult Social Care & Health,Supported Living - new framework,A56126
Royal Borough of Kingston,01/05/2023,90237765,-686.40,BALANCE (SUPPORT) C.I.C,SOCIAL SERVICES - OTHER,Adult Social Care & Health,Supported Living - new framework,A56126
Royal Borough of Kingston,01/05/2023,90237766,-709.28,BALANCE (SUPPORT) C.I.C,SOCIAL SERVICES - OTHER,Adult Social Care & Health,Supported Living - new framework,A56126
Royal Borough of Kingston,01/05/2023,90237767,-709.28,BALANCE (SUPPORT) C.I.C,SOCIAL SERVICES - OTHER,Adult Social Care & Health,Supported Living - new framework,A56126
Royal Borough of Kingston,01/05/2023,90237768,-640.64,BALANCE (SUPPORT) C.I.C,SOCIAL SERVICES - OTHER,Adult Social Care & Health,Supported Living - new framework,A56126
Royal Borough of Kingston,01/05/2023,90237769,-709.28,BALANCE (SUPPORT) C.I.C,SOCIAL SERVICES - OTHER,Adult Social Care & Health,Supported Living - new framework,A56126
Royal Borough of Kingston,01/05/2023,90237770,-686.40,BALANCE (SUPPORT) C.I.C,SOCIAL SERVICES - OTHER,Adult Social Care & Health,Supported Living - new framework,A56126
Royal Borough of Kingston,01/05/2023,90237778,810.81,BALANCE (SUPPORT) C.I.C,SOCIAL SERVICES - OTHER,Adult Social Care & Health,Supported Living - new framework,A56126
Royal Borough of Kingston,01/05/2023,90237779,-772.20,BALANCE (SUPPORT) C.I.C,SOCIAL SERVICES - OTHER,Adult Social Care & Health,Supported Living - new framework,A56126
Royal Borough of Kingston,01/05/2023,90237780,837.84,BALANCE (SUPPORT) C.I.C,SOCIAL SERVICES - OTHER,Adult Social Care & Health,Supported Living - new framework,A56126
Royal Borough of Kingston,01/05/2023,90237809,630.60,BALANCE (SUPPORT) C.I.C,SOCIAL SERVICES - OTHER,Adult Social Care & Health,Supported Living - new framework,A56126
Royal Borough of Kingston,01/05/2023,90237810,-600.60,BALANCE (SUPPORT) C.I.C,SOCIAL SERVICES - OTHER,Adult Social Care & Health,Supported Living - new framework,A56126
Royal Borough of Kingston,01/05/2023,90237811,630.60,BALANCE (SUPPORT) C.I.C,SOCIAL SERVICES - OTHER,Adult Social Care & Health,Supported Living - new framework,A56126
Royal Borough of Kingston,01/05/2023,90237822,504.48,BALANCE (SUPPORT) C.I.C,SOCIAL SERVICES - OTHER,Adult Social Care & Health,Supported Living - new framework,A56126
Royal Borough of Kingston,01/05/2023,90237823,504.48,BALANCE (SUPPORT) C.I.C,SOCIAL SERVICES - OTHER,Adult Social Care & Health,Supported Living - new framework,A56126
Royal Borough of Kingston,01/05/2023,90237849,560.56,BALANCE (SUPPORT) C.I.C,SOCIAL SERVICES - OTHER,Adult Social Care & Health,Supported Living - new framework,A56126
Royal Borough of Kingston,01/05/2023,90237850,560.56,BALANCE (SUPPORT) C.I.C,SOCIAL SERVICES - OTHER,Adult Social Care & Health,Supported Living - new framework,A56126
Royal Borough of Kingston,01/05/2023,90237851,560.56,BALANCE (SUPPORT) C.I.C,SOCIAL SERVICES - OTHER,Adult Social Care & Health,Supported Living - new framework,A56126
Royal Borough of Kingston,01/05/2023,90237852,560.56,BALANCE (SUPPORT) C.I.C,SOCIAL SERVICES - OTHER,Adult Social Care & Health,Supported Living - new framework,A56126
Royal Borough of Kingston,01/05/2023,90237853,560.56,BALANCE (SUPPORT) C.I.C,SOCIAL SERVICES - OTHER,Adult Social Care & Health,Supported Living - new framework,A56126
Royal Borough of Kingston,01/05/2023,90237854,560.56,BALANCE (SUPPORT) C.I.C,SOCIAL SERVICES - OTHER,Adult Social Care & Health,Supported Living - new framework,A56126
Royal Borough of Kingston,01/05/2023,90237855,560.56,BALANCE (SUPPORT) C.I.C,SOCIAL SERVICES - OTHER,Adult Social Care & Health,Supported Living - new framework,A56126
Royal Borough of Kingston,01/05/2023,90237857,520.52,BALANCE (SUPPORT) C.I.C,SOCIAL SERVICES - OTHER,Adult Social Care & Health,Supported Living - new framework,A56126
Royal Borough of Kingston,01/05/2023,90237858,588.56,BALANCE (SUPPORT) C.I.C,SOCIAL SERVICES - OTHER,Adult Social Care & Health,Supported Living - new framework,A56126
Royal Borough of Kingston,01/05/2023,90237873,660.66,BALANCE (SUPPORT) C.I.C,SOCIAL SERVICES - OTHER,Adult Social Care & Health,Supported Living - new framework,A56126
Royal Borough of Kingston,01/05/2023,90237874,880.88,BALANCE (SUPPORT) C.I.C,SOCIAL SERVICES - OTHER,Adult Social Care & Health,Supported Living - new framework,A56126
Royal Borough of Kingston,01/05/2023,90237875,880.88,BALANCE (SUPPORT) C.I.C,SOCIAL SERVICES - OTHER,Adult Social Care & Health,Supported Living - new framework,A56126
Royal Borough of Kingston,01/05/2023,90237876,880.88,BALANCE (SUPPORT) C.I.C,SOCIAL SERVICES - OTHER,Adult Social Care & Health,Supported Living - new framework,A56126
Royal Borough of Kingston,01/05/2023,90237877,880.88,BALANCE (SUPPORT) C.I.C,SOCIAL SERVICES - OTHER,Adult Social Care & Health,Supported Living - new framework,A56126
Royal Borough of Kingston,01/05/2023,90237878,880.88,BALANCE (SUPPORT) C.I.C,SOCIAL SERVICES - OTHER,Adult Social Care & Health,Supported Living - new framework,A56126
Royal Borough of Kingston,01/05/2023,90237879,880.88,BALANCE (SUPPORT) C.I.C,SOCIAL SERVICES - OTHER,Adult Social Care & Health,Supported Living - new framework,A56126
Royal Borough of Kingston,01/05/2023,90237880,880.88,BALANCE (SUPPORT) C.I.C,SOCIAL SERVICES - OTHER,Adult Social Care & Health,Supported Living - new framework,A56126
Royal Borough of Kingston,01/05/2023,90237882,817.96,BALANCE (SUPPORT) C.I.C,SOCIAL SERVICES - OTHER,Adult Social Care & Health,Supported Living - new framework,A56126
Royal Borough of Kingston,01/05/2023,90237883,924.88,BALANCE (SUPPORT) C.I.C,SOCIAL SERVICES - OTHER,Adult Social Care & Health,Supported Living - new framework,A56126
Royal Borough of Kingston,01/05/2023,90237884,924.88,BALANCE (SUPPORT) C.I.C,SOCIAL SERVICES - OTHER,Adult Social Care & Health,Supported Living - new framework,A56126
Royal Borough of Kingston,01/05/2023,90237911,"1,261.20",BALANCE (SUPPORT) C.I.C,SOCIAL SERVICES - OTHER,Adult Social Care & Health,Supported Living - new framework,A56126
Royal Borough of Kingston,01/05/2023,90237912,"-1,201.20",BALANCE (SUPPORT) C.I.C,SOCIAL SERVICES - OTHER,Adult Social Care & Health,Supported Living - new framework,A56126
Royal Borough of Kingston,01/05/2023,90237913,"1,261.20",BALANCE (SUPPORT) C.I.C,SOCIAL SERVICES - OTHER,Adult Social Care & Health,Supported Living - new framework,A56126
Royal Borough of Kingston,01/05/2023,90237915,640.64,BALANCE (SUPPORT) C.I.C,SOCIAL SERVICES - OTHER,Adult Social Care & Health,Supported Living - new framework,A56126
Royal Borough of Kingston,01/05/2023,90237916,640.64,BALANCE (SUPPORT) C.I.C,SOCIAL SERVICES - OTHER,Adult Social Care & Health,Supported Living - new framework,A56126
Royal Borough of Kingston,01/05/2023,90237917,640.64,BALANCE (SUPPORT) C.I.C,SOCIAL SERVICES - OTHER,Adult Social Care & Health,Supported Living - new framework,A56126
Royal Borough of Kingston,01/05/2023,90237918,640.64,BALANCE (SUPPORT) C.I.C,SOCIAL SERVICES - OTHER,Adult Social Care & Health,Supported Living - new framework,A56126
Royal Borough of Kingston,01/05/2023,90237919,640.64,BALANCE (SUPPORT) C.I.C,SOCIAL SERVICES - OTHER,Adult Social Care & Health,Supported Living - new framework,A56126
Royal Borough of Kingston,01/05/2023,90237920,640.64,BALANCE (SUPPORT) C.I.C,SOCIAL SERVICES - OTHER,Adult Social Care & Health,Supported Living - new framework,A56126
Royal Borough of Kingston,01/05/2023,90237921,640.64,BALANCE (SUPPORT) C.I.C,SOCIAL SERVICES - OTHER,Adult Social Care & Health,Supported Living - new framework,A56126
Royal Borough of Kingston,01/05/2023,90237923,594.88,BALANCE (SUPPORT) C.I.C,SOCIAL SERVICES - OTHER,Adult Social Care & Health,Supported Living - new framework,A56126
Royal Borough of Kingston,01/05/2023,90237924,672.64,BALANCE (SUPPORT) C.I.C,SOCIAL SERVICES - OTHER,Adult Social Care & Health,Supported Living - new framework,A56126
Royal Borough of Kingston,01/05/2023,90237925,672.64,BALANCE (SUPPORT) C.I.C,SOCIAL SERVICES - OTHER,Adult Social Care & Health,Supported Living - new framework,A56126
Royal Borough of Kingston,01/05/2023,90237960,504.48,BALANCE (SUPPORT) C.I.C,SOCIAL SERVICES - OTHER,Adult Social Care & Health,Supported Living - new framework,A56126
Royal Borough of Kingston,01/05/2023,90237961,504.48,BALANCE (SUPPORT) C.I.C,SOCIAL SERVICES - OTHER,Adult Social Care & Health,Supported Living - new framework,A56126
Royal Borough of Kingston,01/05/2023,90237967,960.96,BALANCE (SUPPORT) C.I.C,SOCIAL SERVICES - OTHER,Adult Social Care & Health,Supported Living - new framework,A56126
Royal Borough of Kingston,01/05/2023,90237968,"1,281.28",BALANCE (SUPPORT) C.I.C,SOCIAL SERVICES - OTHER,Adult Social Care & Health,Supported Living - new framework,A56126
Royal Borough of Kingston,01/05/2023,90237969,"1,281.28",BALANCE (SUPPORT) C.I.C,SOCIAL SERVICES - OTHER,Adult Social Care & Health,Supported Living - new framework,A56126
Royal Borough of Kingston,01/05/2023,90237970,"1,281.28",BALANCE (SUPPORT) C.I.C,SOCIAL SERVICES - OTHER,Adult Social Care & Health,Supported Living - new framework,A56126
Royal Borough of Kingston,01/05/2023,90237971,"1,281.28",BALANCE (SUPPORT) C.I.C,SOCIAL SERVICES - OTHER,Adult Social Care & Health,Supported Living - new framework,A56126
Royal Borough of Kingston,01/05/2023,90237972,"1,281.28",BALANCE (SUPPORT) C.I.C,SOCIAL SERVICES - OTHER,Adult Social Care & Health,Supported Living - new framework,A56126
Royal Borough of Kingston,01/05/2023,90237973,"1,281.28",BALANCE (SUPPORT) C.I.C,SOCIAL SERVICES - OTHER,Adult Social Care & Health,Supported Living - new framework,A56126
Royal Borough of Kingston,01/05/2023,90237974,"1,281.28",BALANCE (SUPPORT) C.I.C,SOCIAL SERVICES - OTHER,Adult Social Care & Health,Supported Living - new framework,A56126
Royal Borough of Kingston,01/05/2023,90237976,"1,189.76",BALANCE (SUPPORT) C.I.C,SOCIAL SERVICES - OTHER,Adult Social Care & Health,Supported Living - new framework,A56126
Royal Borough of Kingston,01/05/2023,90237977,"1,345.28",BALANCE (SUPPORT) C.I.C,SOCIAL SERVICES - OTHER,Adult Social Care & Health,Supported Living - new framework,A56126
Royal Borough of Kingston,01/05/2023,90237978,"1,345.28",BALANCE (SUPPORT) C.I.C,SOCIAL SERVICES - OTHER,Adult Social Care & Health,Supported Living - new framework,A56126
Royal Borough of Kingston,01/05/2023,90237985,560.56,BALANCE (SUPPORT) C.I.C,SOCIAL SERVICES - OTHER,Adult Social Care & Health,Supported Living - new framework,A56126
Royal Borough of Kingston,01/05/2023,90237986,560.56,BALANCE (SUPPORT) C.I.C,SOCIAL SERVICES - OTHER,Adult Social Care & Health,Supported Living - new framework,A56126
Royal Borough of Kingston,01/05/2023,90237987,560.56,BALANCE (SUPPORT) C.I.C,SOCIAL SERVICES - OTHER,Adult Social Care & Health,Supported Living - new framework,A56126
Royal Borough of Kingston,01/05/2023,90237988,560.56,BALANCE (SUPPORT) C.I.C,SOCIAL SERVICES - OTHER,Adult Social Care & Health,Supported Living - new framework,A56126
Royal Borough of Kingston,01/05/2023,90237989,560.56,BALANCE (SUPPORT) C.I.C,SOCIAL SERVICES - OTHER,Adult Social Care & Health,Supported Living - new framework,A56126
Royal Borough of Kingston,01/05/2023,90237990,560.56,BALANCE (SUPPORT) C.I.C,SOCIAL SERVICES - OTHER,Adult Social Care & Health,Supported Living - new framework,A56126
Royal Borough of Kingston,01/05/2023,90237991,560.56,BALANCE (SUPPORT) C.I.C,SOCIAL SERVICES - OTHER,Adult Social Care & Health,Supported Living - new framework,A56126
Royal Borough of Kingston,01/05/2023,90237993,520.52,BALANCE (SUPPORT) C.I.C,SOCIAL SERVICES - OTHER,Adult Social Care & Health,Supported Living - new framework,A56126
Royal Borough of Kingston,01/05/2023,90237994,588.56,BALANCE (SUPPORT) C.I.C,SOCIAL SERVICES - OTHER,Adult Social Care & Health,Supported Living - new framework,A56126
Royal Borough of Kingston,01/05/2023,90237995,588.56,BALANCE (SUPPORT) C.I.C,SOCIAL SERVICES - OTHER,Adult Social Care & Health,Supported Living - new framework,A56126
Royal Borough of Kingston,01/05/2023,90237997,640.64,BALANCE (SUPPORT) C.I.C,SOCIAL SERVICES - OTHER,Adult Social Care & Health,Supported Living - new framework,A56126
Royal Borough of Kingston,01/05/2023,90237998,640.64,BALANCE (SUPPORT) C.I.C,SOCIAL SERVICES - OTHER,Adult Social Care & Health,Supported Living - new framework,A56126
Royal Borough of Kingston,01/05/2023,90237999,640.64,BALANCE (SUPPORT) C.I.C,SOCIAL SERVICES - OTHER,Adult Social Care & Health,Supported Living - new framework,A56126
Royal Borough of Kingston,01/05/2023,90238000,640.64,BALANCE (SUPPORT) C.I.C,SOCIAL SERVICES - OTHER,Adult Social Care & Health,Supported Living - new framework,A56126
Royal Borough of Kingston,01/05/2023,90238001,640.64,BALANCE (SUPPORT) C.I.C,SOCIAL SERVICES - OTHER,Adult Social Care & Health,Supported Living - new framework,A56126
Royal Borough of Kingston,01/05/2023,90238002,640.64,BALANCE (SUPPORT) C.I.C,SOCIAL SERVICES - OTHER,Adult Social Care & Health,Supported Living - new framework,A56126
Royal Borough of Kingston,01/05/2023,90238003,640.64,BALANCE (SUPPORT) C.I.C,SOCIAL SERVICES - OTHER,Adult Social Care & Health,Supported Living - new framework,A56126
Royal Borough of Kingston,01/05/2023,90238005,594.88,BALANCE (SUPPORT) C.I.C,SOCIAL SERVICES - OTHER,Adult Social Care & Health,Supported Living - new framework,A56126
Royal Borough of Kingston,01/05/2023,90238006,672.64,BALANCE (SUPPORT) C.I.C,SOCIAL SERVICES - OTHER,Adult Social Care & Health,Supported Living - new framework,A56126
Royal Borough of Kingston,01/05/2023,90238007,672.64,BALANCE (SUPPORT) C.I.C,SOCIAL SERVICES - OTHER,Adult Social Care & Health,Supported Living - new framework,A56126
Royal Borough of Kingston,01/05/2023,90238008,"1,021.02",BALANCE (SUPPORT) C.I.C,SOCIAL SERVICES - OTHER,Adult Social Care & Health,Supported Living - new framework,A56126
Royal Borough of Kingston,01/05/2023,90238009,"1,361.36",BALANCE (SUPPORT) C.I.C,SOCIAL SERVICES - OTHER,Adult Social Care & Health,Supported Living - new framework,A56126
Royal Borough of Kingston,01/05/2023,90238010,"1,361.36",BALANCE (SUPPORT) C.I.C,SOCIAL SERVICES - OTHER,Adult Social Care & Health,Supported Living - new framework,A56126
Royal Borough of Kingston,01/05/2023,90238011,"1,361.36",BALANCE (SUPPORT) C.I.C,SOCIAL SERVICES - OTHER,Adult Social Care & Health,Supported Living - new framework,A56126
Royal Borough of Kingston,01/05/2023,90238012,"1,361.36",BALANCE (SUPPORT) C.I.C,SOCIAL SERVICES - OTHER,Adult Social Care & Health,Supported Living - new framework,A56126
Royal Borough of Kingston,01/05/2023,90238013,"1,361.36",BALANCE (SUPPORT) C.I.C,SOCIAL SERVICES - OTHER,Adult Social Care & Health,Supported Living - new framework,A56126
Royal Borough of Kingston,01/05/2023,90238014,"1,361.36",BALANCE (SUPPORT) C.I.C,SOCIAL SERVICES - OTHER,Adult Social Care & Health,Supported Living - new framework,A56126
Royal Borough of Kingston,01/05/2023,90238015,"1,361.36",BALANCE (SUPPORT) C.I.C,SOCIAL SERVICES - OTHER,Adult Social Care & Health,Supported Living - new framework,A56126
Royal Borough of Kingston,01/05/2023,90238017,"1,264.12",BALANCE (SUPPORT) C.I.C,SOCIAL SERVICES - OTHER,Adult Social Care & Health,Supported Living - new framework,A56126
Royal Borough of Kingston,01/05/2023,90238018,"1,429.36",BALANCE (SUPPORT) C.I.C,SOCIAL SERVICES - OTHER,Adult Social Care & Health,Supported Living - new framework,A56126
Royal Borough of Kingston,01/05/2023,90238019,"1,429.36",BALANCE (SUPPORT) C.I.C,SOCIAL SERVICES - OTHER,Adult Social Care & Health,Supported Living - new framework,A56126
Royal Borough of Kingston,01/05/2023,90238035,504.48,BALANCE (SUPPORT) C.I.C,SOCIAL SERVICES - OTHER,Adult Social Care & Health,Supported Living - new framework,A56126
Royal Borough of Kingston,01/05/2023,90238036,504.48,BALANCE (SUPPORT) C.I.C,SOCIAL SERVICES - OTHER,Adult Social Care & Health,Supported Living - new framework,A56126
Royal Borough of Kingston,01/05/2023,90238047,504.48,BALANCE (SUPPORT) C.I.C,SOCIAL SERVICES - OTHER,Adult Social Care & Health,Supported Living - new framework,A56126
Royal Borough of Kingston,01/05/2023,90238048,504.48,BALANCE (SUPPORT) C.I.C,SOCIAL SERVICES - OTHER,Adult Social Care & Health,Supported Living - new framework,A56126
Royal Borough of Kingston,01/05/2023,90238063,840.80,BALANCE (SUPPORT) C.I.C,SOCIAL SERVICES - OTHER,Adult Social Care & Health,Supported Living - new framework,A56126
Royal Borough of Kingston,01/05/2023,90238064,-800.80,BALANCE (SUPPORT) C.I.C,SOCIAL SERVICES - OTHER,Adult Social Care & Health,Supported Living - new framework,A56126
Royal Borough of Kingston,01/05/2023,90238065,840.80,BALANCE (SUPPORT) C.I.C,SOCIAL SERVICES - OTHER,Adult Social Care & Health,Supported Living - new framework,A56126
Royal Borough of Kingston,01/05/2023,90238068,756.72,BALANCE (SUPPORT) C.I.C,SOCIAL SERVICES - OTHER,Adult Social Care & Health,Supported Living - new framework,A56126
Royal Borough of Kingston,01/05/2023,90238069,-720.72,BALANCE (SUPPORT) C.I.C,SOCIAL SERVICES - OTHER,Adult Social Care & Health,Supported Living - new framework,A56126
Royal Borough of Kingston,01/05/2023,90238070,756.72,BALANCE (SUPPORT) C.I.C,SOCIAL SERVICES - OTHER,Adult Social Care & Health,Supported Living - new framework,A56126
Royal Borough of Kingston,01/05/2023,90238076,"1,021.02",BALANCE (SUPPORT) C.I.C,SOCIAL SERVICES - OTHER,Adult Social Care & Health,Supported Living - new framework,A56126
Royal Borough of Kingston,01/05/2023,90238077,"1,361.36",BALANCE (SUPPORT) C.I.C,SOCIAL SERVICES - OTHER,Adult Social Care & Health,Supported Living - new framework,A56126
Royal Borough of Kingston,01/05/2023,90238078,"1,361.36",BALANCE (SUPPORT) C.I.C,SOCIAL SERVICES - OTHER,Adult Social Care & Health,Supported Living - new framework,A56126
Royal Borough of Kingston,01/05/2023,90238079,"1,361.36",BALANCE (SUPPORT) C.I.C,SOCIAL SERVICES - OTHER,Adult Social Care & Health,Supported Living - new framework,A56126
Royal Borough of Kingston,01/05/2023,90238080,"1,361.36",BALANCE (SUPPORT) C.I.C,SOCIAL SERVICES - OTHER,Adult Social Care & Health,Supported Living - new framework,A56126
Royal Borough of Kingston,01/05/2023,90238081,"1,361.36",BALANCE (SUPPORT) C.I.C,SOCIAL SERVICES - OTHER,Adult Social Care & Health,Supported Living - new framework,A56126
Royal Borough of Kingston,01/05/2023,90238082,"1,361.36",BALANCE (SUPPORT) C.I.C,SOCIAL SERVICES - OTHER,Adult Social Care & Health,Supported Living - new framework,A56126
Royal Borough of Kingston,01/05/2023,90238083,"1,361.36",BALANCE (SUPPORT) C.I.C,SOCIAL SERVICES - OTHER,Adult Social Care & Health,Supported Living - new framework,A56126
Royal Borough of Kingston,01/05/2023,90238085,"1,264.12",BALANCE (SUPPORT) C.I.C,SOCIAL SERVICES - OTHER,Adult Social Care & Health,Supported Living - new framework,A56126
Royal Borough of Kingston,01/05/2023,90238086,"1,429.36",BALANCE (SUPPORT) C.I.C,SOCIAL SERVICES - OTHER,Adult Social Care & Health,Supported Living - new framework,A56126
Royal Borough of Kingston,01/05/2023,90238087,"1,429.36",BALANCE (SUPPORT) C.I.C,SOCIAL SERVICES - OTHER,Adult Social Care & Health,Supported Living - new framework,A56126
Royal Borough of Kingston,01/05/2023,90238101,640.64,BALANCE (SUPPORT) C.I.C,SOCIAL SERVICES - OTHER,Adult Social Care & Health,Supported Living - new framework,A56126
Royal Borough of Kingston,01/05/2023,90238102,640.64,BALANCE (SUPPORT) C.I.C,SOCIAL SERVICES - OTHER,Adult Social Care & Health,Supported Living - new framework,A56126
Royal Borough of Kingston,01/05/2023,90238103,640.64,BALANCE (SUPPORT) C.I.C,SOCIAL SERVICES - OTHER,Adult Social Care & Health,Supported Living - new framework,A56126
Royal Borough of Kingston,01/05/2023,90238104,640.64,BALANCE (SUPPORT) C.I.C,SOCIAL SERVICES - OTHER,Adult Social Care & Health,Supported Living - new framework,A56126
Royal Borough of Kingston,01/05/2023,90238105,640.64,BALANCE (SUPPORT) C.I.C,SOCIAL SERVICES - OTHER,Adult Social Care & Health,Supported Living - new framework,A56126
Royal Borough of Kingston,01/05/2023,90238106,640.64,BALANCE (SUPPORT) C.I.C,SOCIAL SERVICES - OTHER,Adult Social Care & Health,Supported Living - new framework,A56126
Royal Borough of Kingston,01/05/2023,90238107,640.64,BALANCE (SUPPORT) C.I.C,SOCIAL SERVICES - OTHER,Adult Social Care & Health,Supported Living - new framework,A56126
Royal Borough of Kingston,01/05/2023,90238109,594.88,BALANCE (SUPPORT) C.I.C,SOCIAL SERVICES - OTHER,Adult Social Care & Health,Supported Living - new framework,A56126
Royal Borough of Kingston,01/05/2023,90238110,672.64,BALANCE (SUPPORT) C.I.C,SOCIAL SERVICES - OTHER,Adult Social Care & Health,Supported Living - new framework,A56126
Royal Borough of Kingston,01/05/2023,90238111,672.64,BALANCE (SUPPORT) C.I.C,SOCIAL SERVICES - OTHER,Adult Social Care & Health,Supported Living - new framework,A56126
Royal Borough of Kingston,01/05/2023,90238112,780.78,BALANCE (SUPPORT) C.I.C,SOCIAL SERVICES - OTHER,Adult Social Care & Health,Supported Living - new framework,A56126
Royal Borough of Kingston,01/05/2023,90238113,"1,041.04",BALANCE (SUPPORT) C.I.C,SOCIAL SERVICES - OTHER,Adult Social Care & Health,Supported Living - new framework,A56126
Royal Borough of Kingston,01/05/2023,90238114,"1,041.04",BALANCE (SUPPORT) C.I.C,SOCIAL SERVICES - OTHER,Adult Social Care & Health,Supported Living - new framework,A56126
Royal Borough of Kingston,01/05/2023,90238115,"1,041.04",BALANCE (SUPPORT) C.I.C,SOCIAL SERVICES - OTHER,Adult Social Care & Health,Supported Living - new framework,A56126
Royal Borough of Kingston,01/05/2023,90238116,"1,041.04",BALANCE (SUPPORT) C.I.C,SOCIAL SERVICES - OTHER,Adult Social Care & Health,Supported Living - new framework,A56126
Royal Borough of Kingston,01/05/2023,90238117,"1,041.04",BALANCE (SUPPORT) C.I.C,SOCIAL SERVICES - OTHER,Adult Social Care & Health,Supported Living - new framework,A56126
Royal Borough of Kingston,01/05/2023,90238118,"1,041.04",BALANCE (SUPPORT) C.I.C,SOCIAL SERVICES - OTHER,Adult Social Care & Health,Supported Living - new framework,A56126
Royal Borough of Kingston,01/05/2023,90238119,"1,041.04",BALANCE (SUPPORT) C.I.C,SOCIAL SERVICES - OTHER,Adult Social Care & Health,Supported Living - new framework,A56126
Royal Borough of Kingston,01/05/2023,90238121,966.68,BALANCE (SUPPORT) C.I.C,SOCIAL SERVICES - OTHER,Adult Social Care & Health,Supported Living - new framework,A56126
Royal Borough of Kingston,01/05/2023,90238122,"1,093.04",BALANCE (SUPPORT) C.I.C,SOCIAL SERVICES - OTHER,Adult Social Care & Health,Supported Living - new framework,A56126
Royal Borough of Kingston,01/05/2023,90238123,"1,093.04",BALANCE (SUPPORT) C.I.C,SOCIAL SERVICES - OTHER,Adult Social Care & Health,Supported Living - new framework,A56126
Royal Borough of Kingston,01/05/2023,90238136,"1,081.08",BALANCE (SUPPORT) C.I.C,SOCIAL SERVICES - OTHER,Adult Social Care & Health,Supported Living - new framework,A56126
Royal Borough of Kingston,01/05/2023,90238137,"1,441.44",BALANCE (SUPPORT) C.I.C,SOCIAL SERVICES - OTHER,Adult Social Care & Health,Supported Living - new framework,A56126
Royal Borough of Kingston,01/05/2023,90238138,"1,441.44",BALANCE (SUPPORT) C.I.C,SOCIAL SERVICES - OTHER,Adult Social Care & Health,Supported Living - new framework,A56126
Royal Borough of Kingston,01/05/2023,90238139,"1,441.44",BALANCE (SUPPORT) C.I.C,SOCIAL SERVICES - OTHER,Adult Social Care & Health,Supported Living - new framework,A56126
Royal Borough of Kingston,01/05/2023,90238140,"1,441.44",BALANCE (SUPPORT) C.I.C,SOCIAL SERVICES - OTHER,Adult Social Care & Health,Supported Living - new framework,A56126
Royal Borough of Kingston,01/05/2023,90238141,"1,441.44",BALANCE (SUPPORT) C.I.C,SOCIAL SERVICES - OTHER,Adult Social Care & Health,Supported Living - new framework,A56126
Royal Borough of Kingston,01/05/2023,90238142,"1,441.44",BALANCE (SUPPORT) C.I.C,SOCIAL SERVICES - OTHER,Adult Social Care & Health,Supported Living - new framework,A56126
Royal Borough of Kingston,01/05/2023,90238143,"1,441.44",BALANCE (SUPPORT) C.I.C,SOCIAL SERVICES - OTHER,Adult Social Care & Health,Supported Living - new framework,A56126
Royal Borough of Kingston,01/05/2023,90238145,"1,338.48",BALANCE (SUPPORT) C.I.C,SOCIAL SERVICES - OTHER,Adult Social Care & Health,Supported Living - new framework,A56126
Royal Borough of Kingston,01/05/2023,90238146,"1,513.44",BALANCE (SUPPORT) C.I.C,SOCIAL SERVICES - OTHER,Adult Social Care & Health,Supported Living - new framework,A56126
Royal Borough of Kingston,01/05/2023,90238147,"1,513.44",BALANCE (SUPPORT) C.I.C,SOCIAL SERVICES - OTHER,Adult Social Care & Health,Supported Living - new framework,A56126
Royal Borough of Kingston,01/05/2023,90238160,"1,177.12",BALANCE (SUPPORT) C.I.C,SOCIAL SERVICES - OTHER,Adult Social Care & Health,Supported Living - new framework,A56126
Royal Borough of Kingston,01/05/2023,90238161,"-1,121.12",BALANCE (SUPPORT) C.I.C,SOCIAL SERVICES - OTHER,Adult Social Care & Health,Supported Living - new framework,A56126
Royal Borough of Kingston,01/05/2023,90238162,"1,177.12",BALANCE (SUPPORT) C.I.C,SOCIAL SERVICES - OTHER,Adult Social Care & Health,Supported Living - new framework,A56126
Royal Borough of Kingston,01/05/2023,90238330,504.48,BALANCE (SUPPORT) C.I.C,SOCIAL SERVICES - OTHER,Adult Social Care & Health,Supported Living - new framework,A56126
Royal Borough of Kingston,01/05/2023,90238332,504.48,BALANCE (SUPPORT) C.I.C,SOCIAL SERVICES - OTHER,Adult Social Care & Health,Supported Living - new framework,A56126
Royal Borough of Kingston,01/05/2023,90238367,504.48,BALANCE (SUPPORT) C.I.C,SOCIAL SERVICES - OTHER,Adult Social Care & Health,Supported Living - new framework,A56126
Royal Borough of Kingston,01/05/2023,90238369,504.48,BALANCE (SUPPORT) C.I.C,SOCIAL SERVICES - OTHER,Adult Social Care & Health,Supported Living - new framework,A56126
Royal Borough of Kingston,01/05/2023,90238387,"1,008.96",BALANCE (SUPPORT) C.I.C,SOCIAL SERVICES - OTHER,Adult Social Care & Health,Supported Living - new framework,A56126
Royal Borough of Kingston,01/05/2023,90238388,-960.96,BALANCE (SUPPORT) C.I.C,SOCIAL SERVICES - OTHER,Adult Social Care & Health,Supported Living - new framework,A56126
Royal Borough of Kingston,01/05/2023,90238389,"1,008.96",BALANCE (SUPPORT) C.I.C,SOCIAL SERVICES - OTHER,Adult Social Care & Health,Supported Living - new framework,A56126
Royal Borough of Kingston,01/05/2023,90238401,640.64,BALANCE (SUPPORT) C.I.C,SOCIAL SERVICES - OTHER,Adult Social Care & Health,Supported Living - new framework,A56126
Royal Borough of Kingston,01/05/2023,90238403,594.88,BALANCE (SUPPORT) C.I.C,SOCIAL SERVICES - OTHER,Adult Social Care & Health,Supported Living - new framework,A56126
Royal Borough of Kingston,01/05/2023,90238404,672.64,BALANCE (SUPPORT) C.I.C,SOCIAL SERVICES - OTHER,Adult Social Care & Health,Supported Living - new framework,A56126
Royal Borough of Kingston,01/05/2023,90238405,672.64,BALANCE (SUPPORT) C.I.C,SOCIAL SERVICES - OTHER,Adult Social Care & Health,Supported Living - new framework,A56126
Royal Borough of Kingston,01/05/2023,90239425,548.27,BALANCE (SUPPORT) C.I.C,SOCIAL SERVICES - OTHER,Adult Social Care & Health,Personal Budget - Third Party,A61019
Royal Borough of Kingston,01/05/2023,90239426,548.27,BALANCE (SUPPORT) C.I.C,SOCIAL SERVICES - OTHER,Adult Social Care & Health,Personal Budget - Third Party,A61019
Royal Borough of Kingston,01/05/2023,90239427,"12,933.64",BALANCE (SUPPORT) C.I.C,SOCIAL SERVICES - OTHER,Adult Social Care & Health,Personal Budget - Third Party,A61019
Royal Borough of Kingston,24/04/2023,90239519,683.43,BALANCE (SUPPORT) C.I.C,SOCIAL SERVICES - OTHER,Adult Social Care & Health,Personal Budget - Third Party,A61019
Royal Borough of Kingston,24/04/2023,90239520,832.00,BALANCE (SUPPORT) C.I.C,SOCIAL SERVICES - OTHER,Adult Social Care & Health,Personal Budget - Third Party,A61019
Royal Borough of Kingston,24/04/2023,90239641,854.29,BALANCE (SUPPORT) C.I.C,SOCIAL SERVICES - OTHER,Adult Social Care & Health,Personal Budget - Third Party,A61019
Royal Borough of Kingston,24/04/2023,90239642,"1,040.00",BALANCE (SUPPORT) C.I.C,SOCIAL SERVICES - OTHER,Adult Social Care & Health,Personal Budget - Third Party,A61019
Royal Borough of Kingston,24/04/2023,90239643,683.43,BALANCE (SUPPORT) C.I.C,SOCIAL SERVICES - OTHER,Adult Social Care & Health,Personal Budget - Third Party,A61019
Royal Borough of Kingston,24/04/2023,90239644,832.00,BALANCE (SUPPORT) C.I.C,SOCIAL SERVICES - OTHER,Adult Social Care & Health,Personal Budget - Third Party,A61019
Royal Borough of Kingston,24/04/2023,90239651,854.29,BALANCE (SUPPORT) C.I.C,SOCIAL SERVICES - OTHER,Adult Social Care & Health,Personal Budget - Third Party,A61019
Royal Borough of Kingston,24/04/2023,90239652,"1,040.00",BALANCE (SUPPORT) C.I.C,SOCIAL SERVICES - OTHER,Adult Social Care & Health,Personal Budget - Third Party,A61019
Royal Borough of Kingston,01/05/2023,90239665,"-1,054.97",BALANCE (SUPPORT) C.I.C,SOCIAL SERVICES - OTHER,Adult Social Care & Health,Personal Budget - Third Party,A61019
Royal Borough of Kingston,01/05/2023,90239666,"-1,020.94",BALANCE (SUPPORT) C.I.C,SOCIAL SERVICES - OTHER,Adult Social Care & Health,Personal Budget - Third Party,A61019
Royal Borough of Kingston,01/05/2023,90239667,"-1,054.97",BALANCE (SUPPORT) C.I.C,SOCIAL SERVICES - OTHER,Adult Social Care & Health,Personal Budget - Third Party,A61019
Royal Borough of Kingston,01/05/2023,90239668,"-1,020.94",BALANCE (SUPPORT) C.I.C,SOCIAL SERVICES - OTHER,Adult Social Care & Health,Personal Budget - Third Party,A61019
Royal Borough of Kingston,01/05/2023,90239669,"-1,054.97",BALANCE (SUPPORT) C.I.C,SOCIAL SERVICES - OTHER,Adult Social Care & Health,Personal Budget - Third Party,A61019
Royal Borough of Kingston,01/05/2023,90239670,"-1,054.97",BALANCE (SUPPORT) C.I.C,SOCIAL SERVICES - OTHER,Adult Social Care & Health,Personal Budget - Third Party,A61019
Royal Borough of Kingston,01/05/2023,90239671,-952.88,BALANCE (SUPPORT) C.I.C,SOCIAL SERVICES - OTHER,Adult Social Care & Health,Personal Budget - Third Party,A61019
Royal Borough of Kingston,01/05/2023,90239672,"-1,054.97",BALANCE (SUPPORT) C.I.C,SOCIAL SERVICES - OTHER,Adult Social Care & Health,Personal Budget - Third Party,A61019
Royal Borough of Kingston,01/05/2023,90239673,"-1,020.94",BALANCE (SUPPORT) C.I.C,SOCIAL SERVICES - OTHER,Adult Social Care & Health,Personal Budget - Third Party,A61019
Royal Borough of Kingston,01/05/2023,90239690,584.74,BALANCE (SUPPORT) C.I.C,SOCIAL SERVICES - OTHER,Adult Social Care & Health,Personal Budget - Third Party,A61019
Royal Borough of Kingston,01/05/2023,90239691,-556.89,BALANCE (SUPPORT) C.I.C,SOCIAL SERVICES - OTHER,Adult Social Care & Health,Personal Budget - Third Party,A61019
Royal Borough of Kingston,01/05/2023,90239692,604.23,BALANCE (SUPPORT) C.I.C,SOCIAL SERVICES - OTHER,Adult Social Care & Health,Personal Budget - Third Party,A61019
Royal Borough of Kingston,01/05/2023,90239730,974.57,BALANCE (SUPPORT) C.I.C,SOCIAL SERVICES - OTHER,Adult Social Care & Health,Personal Budget - Third Party,A61019
Royal Borough of Kingston,01/05/2023,90239731,-928.16,BALANCE (SUPPORT) C.I.C,SOCIAL SERVICES - OTHER,Adult Social Care & Health,Personal Budget - Third Party,A61019
Royal Borough of Kingston,01/05/2023,90239732,"1,007.06",BALANCE (SUPPORT) C.I.C,SOCIAL SERVICES - OTHER,Adult Social Care & Health,Personal Budget - Third Party,A61019
Royal Borough of Kingston,01/05/2023,90239736,"1,364.36",BALANCE (SUPPORT) C.I.C,SOCIAL SERVICES - OTHER,Adult Social Care & Health,Personal Budget - Third Party,A61019
Royal Borough of Kingston,01/05/2023,90239737,"-1,299.39",BALANCE (SUPPORT) C.I.C,SOCIAL SERVICES - OTHER,Adult Social Care & Health,Personal Budget - Third Party,A61019
Royal Borough of Kingston,01/05/2023,90239738,"1,409.84",BALANCE (SUPPORT) C.I.C,SOCIAL SERVICES - OTHER,Adult Social Care & Health,Personal Budget - Third Party,A61019
Royal Borough of Kingston,01/05/2023,90239739,974.57,BALANCE (SUPPORT) C.I.C,SOCIAL SERVICES - OTHER,Adult Social Care & Health,Personal Budget - Third Party,A61019
Royal Borough of Kingston,01/05/2023,90239740,-928.16,BALANCE (SUPPORT) C.I.C,SOCIAL SERVICES - OTHER,Adult Social Care & Health,Personal Budget - Third Party,A61019
Royal Borough of Kingston,01/05/2023,90239741,"1,007.06",BALANCE (SUPPORT) C.I.C,SOCIAL SERVICES - OTHER,Adult Social Care & Health,Personal Budget - Third Party,A61019
Royal Borough of Kingston,01/05/2023,90239742,536.01,BALANCE (SUPPORT) C.I.C,SOCIAL SERVICES - OTHER,Adult Social Care & Health,Personal Budget - Third Party,A61019
Royal Borough of Kingston,01/05/2023,90239743,-510.47,BALANCE (SUPPORT) C.I.C,SOCIAL SERVICES - OTHER,Adult Social Care & Health,Personal Budget - Third Party,A61019
Royal Borough of Kingston,01/05/2023,90239744,553.88,BALANCE (SUPPORT) C.I.C,SOCIAL SERVICES - OTHER,Adult Social Care & Health,Personal Budget - Third Party,A61019
Royal Borough of Kingston,01/05/2023,90239763,"1,315.67",BALANCE (SUPPORT) C.I.C,SOCIAL SERVICES - OTHER,Adult Social Care & Health,Personal Budget - Third Party,A61019
Royal Borough of Kingston,01/05/2023,90239764,"-1,253.01",BALANCE (SUPPORT) C.I.C,SOCIAL SERVICES - OTHER,Adult Social Care & Health,Personal Budget - Third Party,A61019
Royal Borough of Kingston,01/05/2023,90239765,"1,359.53",BALANCE (SUPPORT) C.I.C,SOCIAL SERVICES - OTHER,Adult Social Care & Health,Personal Budget - Third Party,A61019
Royal Borough of Kingston,01/05/2023,90239769,584.74,BALANCE (SUPPORT) C.I.C,SOCIAL SERVICES - OTHER,Adult Social Care & Health,Personal Budget - Third Party,A61019
Royal Borough of Kingston,01/05/2023,90239770,-556.89,BALANCE (SUPPORT) C.I.C,SOCIAL SERVICES - OTHER,Adult Social Care & Health,Personal Budget - Third Party,A61019
Royal Borough of Kingston,01/05/2023,90239771,604.23,BALANCE (SUPPORT) C.I.C,SOCIAL SERVICES - OTHER,Adult Social Care & Health,Personal Budget - Third Party,A61019
Royal Borough of Kingston,01/05/2023,90239801,"2,241.47",BALANCE (SUPPORT) C.I.C,SOCIAL SERVICES - OTHER,Adult Social Care & Health,Personal Budget - Third Party,A61019
Royal Borough of Kingston,01/05/2023,90239802,"-2,134.71",BALANCE (SUPPORT) C.I.C,SOCIAL SERVICES - OTHER,Adult Social Care & Health,Personal Budget - Third Party,A61019
Royal Borough of Kingston,01/05/2023,90239803,"2,316.19",BALANCE (SUPPORT) C.I.C,SOCIAL SERVICES - OTHER,Adult Social Care & Health,Personal Budget - Third Party,A61019
Royal Borough of Kingston,01/05/2023,90239813,"1,461.81",BALANCE (SUPPORT) C.I.C,SOCIAL SERVICES - OTHER,Adult Social Care & Health,Personal Budget - Third Party,A61019
Royal Borough of Kingston,01/05/2023,90239814,"-1,392.21",BALANCE (SUPPORT) C.I.C,SOCIAL SERVICES - OTHER,Adult Social Care & Health,Personal Budget - Third Party,A61019
Royal Borough of Kingston,01/05/2023,90239815,"1,510.54",BALANCE (SUPPORT) C.I.C,SOCIAL SERVICES - OTHER,Adult Social Care & Health,Personal Budget - Third Party,A61019
Royal Borough of Kingston,01/05/2023,90239846,584.74,BALANCE (SUPPORT) C.I.C,SOCIAL SERVICES - OTHER,Adult Social Care & Health,Personal Budget - Third Party,A61019
Royal Borough of Kingston,01/05/2023,90239847,-556.89,BALANCE (SUPPORT) C.I.C,SOCIAL SERVICES - OTHER,Adult Social Care & Health,Personal Budget - Third Party,A61019
Royal Borough of Kingston,01/05/2023,90239850,604.23,BALANCE (SUPPORT) C.I.C,SOCIAL SERVICES - OTHER,Adult Social Care & Health,Personal Budget - Third Party,A61019
Royal Borough of Kingston,01/05/2023,90239855,584.74,BALANCE (SUPPORT) C.I.C,SOCIAL SERVICES - OTHER,Adult Social Care & Health,Personal Budget - Third Party,A61019
Royal Borough of Kingston,01/05/2023,90239856,-556.89,BALANCE (SUPPORT) C.I.C,SOCIAL SERVICES - OTHER,Adult Social Care & Health,Personal Budget - Third Party,A61019
Royal Borough of Kingston,01/05/2023,90239857,604.23,BALANCE (SUPPORT) C.I.C,SOCIAL SERVICES - OTHER,Adult Social Care & Health,Personal Budget - Third Party,A61019
Royal Borough of Kingston,01/05/2023,90239864,"-1,534.50",BALANCE (SUPPORT) C.I.C,SOCIAL SERVICES - OTHER,Adult Social Care & Health,Personal Budget - Third Party,A61019
Royal Borough of Kingston,01/05/2023,90239865,"-1,485.00",BALANCE (SUPPORT) C.I.C,SOCIAL SERVICES - OTHER,Adult Social Care & Health,Personal Budget - Third Party,A61019
Royal Borough of Kingston,01/05/2023,90239866,"-1,534.50",BALANCE (SUPPORT) C.I.C,SOCIAL SERVICES - OTHER,Adult Social Care & Health,Personal Budget - Third Party,A61019
Royal Borough of Kingston,01/05/2023,90239867,"-1,485.00",BALANCE (SUPPORT) C.I.C,SOCIAL SERVICES - OTHER,Adult Social Care & Health,Personal Budget - Third Party,A61019
Royal Borough of Kingston,01/05/2023,90239868,"-1,534.50",BALANCE (SUPPORT) C.I.C,SOCIAL SERVICES - OTHER,Adult Social Care & Health,Personal Budget - Third Party,A61019
Royal Borough of Kingston,01/05/2023,90239869,"-1,534.50",BALANCE (SUPPORT) C.I.C,SOCIAL SERVICES - OTHER,Adult Social Care & Health,Personal Budget - Third Party,A61019
Royal Borough of Kingston,01/05/2023,90239870,"-1,386.00",BALANCE (SUPPORT) C.I.C,SOCIAL SERVICES - OTHER,Adult Social Care & Health,Personal Budget - Third Party,A61019
Royal Borough of Kingston,01/05/2023,90239871,"-1,534.50",BALANCE (SUPPORT) C.I.C,SOCIAL SERVICES - OTHER,Adult Social Care & Health,Personal Budget - Third Party,A61019
Royal Borough of Kingston,01/05/2023,90239872,"-1,485.00",BALANCE (SUPPORT) C.I.C,SOCIAL SERVICES - OTHER,Adult Social Care & Health,Personal Budget - Third Party,A61019
Royal Borough of Kingston,01/05/2023,90239878,503.48,BALANCE (SUPPORT) C.I.C,SOCIAL SERVICES - OTHER,Adult Social Care & Health,Personal Budget - Third Party,A61019
Royal Borough of Kingston,01/05/2023,90239881,503.48,BALANCE (SUPPORT) C.I.C,SOCIAL SERVICES - OTHER,Adult Social Care & Health,Personal Budget - Third Party,A61019
Royal Borough of Kingston,01/05/2023,90239886,"2,687.40",BALANCE (SUPPORT) C.I.C,SOCIAL SERVICES - OTHER,Adult Social Care & Health,Personal Budget - Third Party,A61019
Royal Borough of Kingston,01/05/2023,90239887,"-2,559.43",BALANCE (SUPPORT) C.I.C,SOCIAL SERVICES - OTHER,Adult Social Care & Health,Personal Budget - Third Party,A61019
Royal Borough of Kingston,01/05/2023,90239888,"2,776.98",BALANCE (SUPPORT) C.I.C,SOCIAL SERVICES - OTHER,Adult Social Care & Health,Personal Budget - Third Party,A61019
Royal Borough of Kingston,01/05/2023,90239889,-671.37,BALANCE (SUPPORT) C.I.C,SOCIAL SERVICES - OTHER,Adult Social Care & Health,Personal Budget - Third Party,A61019
Royal Borough of Kingston,01/05/2023,90239890,-649.71,BALANCE (SUPPORT) C.I.C,SOCIAL SERVICES - OTHER,Adult Social Care & Health,Personal Budget - Third Party,A61019
Royal Borough of Kingston,01/05/2023,90239891,-671.37,BALANCE (SUPPORT) C.I.C,SOCIAL SERVICES - OTHER,Adult Social Care & Health,Personal Budget - Third Party,A61019
Royal Borough of Kingston,01/05/2023,90239892,-649.71,BALANCE (SUPPORT) C.I.C,SOCIAL SERVICES - OTHER,Adult Social Care & Health,Personal Budget - Third Party,A61019
Royal Borough of Kingston,01/05/2023,90239893,-671.37,BALANCE (SUPPORT) C.I.C,SOCIAL SERVICES - OTHER,Adult Social Care & Health,Personal Budget - Third Party,A61019
Royal Borough of Kingston,01/05/2023,90239894,-671.37,BALANCE (SUPPORT) C.I.C,SOCIAL SERVICES - OTHER,Adult Social Care & Health,Personal Budget - Third Party,A61019
Royal Borough of Kingston,01/05/2023,90239895,-606.40,BALANCE (SUPPORT) C.I.C,SOCIAL SERVICES - OTHER,Adult Social Care & Health,Personal Budget - Third Party,A61019
Royal Borough of Kingston,01/05/2023,90239896,-671.37,BALANCE (SUPPORT) C.I.C,SOCIAL SERVICES - OTHER,Adult Social Care & Health,Personal Budget - Third Party,A61019
Royal Borough of Kingston,01/05/2023,90239897,-649.71,BALANCE (SUPPORT) C.I.C,SOCIAL SERVICES - OTHER,Adult Social Care & Health,Personal Budget - Third Party,A61019
Royal Borough of Kingston,01/05/2023,90239901,-767.25,BALANCE (SUPPORT) C.I.C,SOCIAL SERVICES - OTHER,Adult Social Care & Health,Personal Budget - Third Party,A61019
Royal Borough of Kingston,01/05/2023,90239902,-742.50,BALANCE (SUPPORT) C.I.C,SOCIAL SERVICES - OTHER,Adult Social Care & Health,Personal Budget - Third Party,A61019
Royal Borough of Kingston,01/05/2023,90239903,-767.25,BALANCE (SUPPORT) C.I.C,SOCIAL SERVICES - OTHER,Adult Social Care & Health,Personal Budget - Third Party,A61019
Royal Borough of Kingston,01/05/2023,90239904,-742.50,BALANCE (SUPPORT) C.I.C,SOCIAL SERVICES - OTHER,Adult Social Care & Health,Personal Budget - Third Party,A61019
Royal Borough of Kingston,01/05/2023,90239905,-767.25,BALANCE (SUPPORT) C.I.C,SOCIAL SERVICES - OTHER,Adult Social Care & Health,Personal Budget - Third Party,A61019
Royal Borough of Kingston,01/05/2023,90239906,-767.25,BALANCE (SUPPORT) C.I.C,SOCIAL SERVICES - OTHER,Adult Social Care & Health,Personal Budget - Third Party,A61019
Royal Borough of Kingston,01/05/2023,90239907,-544.50,BALANCE (SUPPORT) C.I.C,SOCIAL SERVICES - OTHER,Adult Social Care & Health,Personal Budget - Third Party,A61019
Royal Borough of Kingston,01/05/2023,90239914,"-1,630.42",BALANCE (SUPPORT) C.I.C,SOCIAL SERVICES - OTHER,Adult Social Care & Health,Personal Budget - Third Party,A61019
Royal Borough of Kingston,01/05/2023,90239915,"-1,577.83",BALANCE (SUPPORT) C.I.C,SOCIAL SERVICES - OTHER,Adult Social Care & Health,Personal Budget - Third Party,A61019
Royal Borough of Kingston,01/05/2023,90239916,"-1,630.42",BALANCE (SUPPORT) C.I.C,SOCIAL SERVICES - OTHER,Adult Social Care & Health,Personal Budget - Third Party,A61019
Royal Borough of Kingston,01/05/2023,90239917,"-1,577.83",BALANCE (SUPPORT) C.I.C,SOCIAL SERVICES - OTHER,Adult Social Care & Health,Personal Budget - Third Party,A61019
Royal Borough of Kingston,01/05/2023,90239918,"-1,630.42",BALANCE (SUPPORT) C.I.C,SOCIAL SERVICES - OTHER,Adult Social Care & Health,Personal Budget - Third Party,A61019
Royal Borough of Kingston,01/05/2023,90239919,"-1,630.42",BALANCE (SUPPORT) C.I.C,SOCIAL SERVICES - OTHER,Adult Social Care & Health,Personal Budget - Third Party,A61019
Royal Borough of Kingston,01/05/2023,90239920,"-1,472.64",BALANCE (SUPPORT) C.I.C,SOCIAL SERVICES - OTHER,Adult Social Care & Health,Personal Budget - Third Party,A61019
Royal Borough of Kingston,01/05/2023,90239921,"-1,630.42",BALANCE (SUPPORT) C.I.C,SOCIAL SERVICES - OTHER,Adult Social Care & Health,Personal Budget - Third Party,A61019
Royal Borough of Kingston,01/05/2023,90239922,"-1,577.83",BALANCE (SUPPORT) C.I.C,SOCIAL SERVICES - OTHER,Adult Social Care & Health,Personal Budget - Third Party,A61019
Royal Borough of Kingston,01/05/2023,90239938,"1,461.81",BALANCE (SUPPORT) C.I.C,SOCIAL SERVICES - OTHER,Adult Social Care & Health,Personal Budget - Third Party,A61019
Royal Borough of Kingston,01/05/2023,90239939,"-1,392.21",BALANCE (SUPPORT) C.I.C,SOCIAL SERVICES - OTHER,Adult Social Care & Health,Personal Budget - Third Party,A61019
Royal Borough of Kingston,01/05/2023,90239940,"1,510.54",BALANCE (SUPPORT) C.I.C,SOCIAL SERVICES - OTHER,Adult Social Care & Health,Personal Budget - Third Party,A61019
Royal Borough of Kingston,01/05/2023,90239956,877.11,BALANCE (SUPPORT) C.I.C,SOCIAL SERVICES - OTHER,Adult Social Care & Health,Personal Budget - Third Party,A61019
Royal Borough of Kingston,01/05/2023,90239957,-835.33,BALANCE (SUPPORT) C.I.C,SOCIAL SERVICES - OTHER,Adult Social Care & Health,Personal Budget - Third Party,A61019
Royal Borough of Kingston,01/05/2023,90239958,906.35,BALANCE (SUPPORT) C.I.C,SOCIAL SERVICES - OTHER,Adult Social Care & Health,Personal Budget - Third Party,A61019
Royal Borough of Kingston,01/05/2023,90239962,"1,245.17",BALANCE (SUPPORT) C.I.C,SOCIAL SERVICES - OTHER,Adult Social Care & Health,Personal Budget - Third Party,A61019
Royal Borough of Kingston,01/05/2023,90239963,"-1,185.86",BALANCE (SUPPORT) C.I.C,SOCIAL SERVICES - OTHER,Adult Social Care & Health,Personal Budget - Third Party,A61019
Royal Borough of Kingston,01/05/2023,90239964,"1,286.68",BALANCE (SUPPORT) C.I.C,SOCIAL SERVICES - OTHER,Adult Social Care & Health,Personal Budget - Third Party,A61019
Royal Borough of Kingston,01/05/2023,90239971,-575.45,BALANCE (SUPPORT) C.I.C,SOCIAL SERVICES - OTHER,Adult Social Care & Health,Personal Budget - Third Party,A61019
Royal Borough of Kingston,01/05/2023,90239972,-556.89,BALANCE (SUPPORT) C.I.C,SOCIAL SERVICES - OTHER,Adult Social Care & Health,Personal Budget - Third Party,A61019
Royal Borough of Kingston,01/05/2023,90239973,-575.45,BALANCE (SUPPORT) C.I.C,SOCIAL SERVICES - OTHER,Adult Social Care & Health,Personal Budget - Third Party,A61019
Royal Borough of Kingston,01/05/2023,90239974,-556.89,BALANCE (SUPPORT) C.I.C,SOCIAL SERVICES - OTHER,Adult Social Care & Health,Personal Budget - Third Party,A61019
Royal Borough of Kingston,01/05/2023,90239975,-575.45,BALANCE (SUPPORT) C.I.C,SOCIAL SERVICES - OTHER,Adult Social Care & Health,Personal Budget - Third Party,A61019
Royal Borough of Kingston,01/05/2023,90239976,-575.45,BALANCE (SUPPORT) C.I.C,SOCIAL SERVICES - OTHER,Adult Social Care & Health,Personal Budget - Third Party,A61019
Royal Borough of Kingston,01/05/2023,90239977,-519.76,BALANCE (SUPPORT) C.I.C,SOCIAL SERVICES - OTHER,Adult Social Care & Health,Personal Budget - Third Party,A61019
Royal Borough of Kingston,01/05/2023,90239978,-575.45,BALANCE (SUPPORT) C.I.C,SOCIAL SERVICES - OTHER,Adult Social Care & Health,Personal Budget - Third Party,A61019
Royal Borough of Kingston,01/05/2023,90239979,-556.89,BALANCE (SUPPORT) C.I.C,SOCIAL SERVICES - OTHER,Adult Social Care & Health,Personal Budget - Third Party,A61019
Royal Borough of Kingston,01/05/2023,90239980,584.74,BALANCE (SUPPORT) C.I.C,SOCIAL SERVICES - OTHER,Adult Social Care & Health,Personal Budget - Third Party,A61019
Royal Borough of Kingston,01/05/2023,90239981,-556.89,BALANCE (SUPPORT) C.I.C,SOCIAL SERVICES - OTHER,Adult Social Care & Health,Personal Budget - Third Party,A61019
Royal Borough of Kingston,01/05/2023,90239982,604.23,BALANCE (SUPPORT) C.I.C,SOCIAL SERVICES - OTHER,Adult Social Care & Health,Personal Budget - Third Party,A61019
Royal Borough of Kingston,01/05/2023,90239998,-649.80,BALANCE (SUPPORT) C.I.C,SOCIAL SERVICES - OTHER,Adult Social Care & Health,Personal Budget - Third Party,A61019
Royal Borough of Kingston,01/05/2023,90239999,-519.84,BALANCE (SUPPORT) C.I.C,SOCIAL SERVICES - OTHER,Adult Social Care & Health,Personal Budget - Third Party,A61019
Royal Borough of Kingston,01/05/2023,90240000,-649.80,BALANCE (SUPPORT) C.I.C,SOCIAL SERVICES - OTHER,Adult Social Care & Health,Personal Budget - Third Party,A61019
Royal Borough of Kingston,01/05/2023,90240001,-519.84,BALANCE (SUPPORT) C.I.C,SOCIAL SERVICES - OTHER,Adult Social Care & Health,Personal Budget - Third Party,A61019
Royal Borough of Kingston,01/05/2023,90240002,-519.84,BALANCE (SUPPORT) C.I.C,SOCIAL SERVICES - OTHER,Adult Social Care & Health,Personal Budget - Third Party,A61019
Royal Borough of Kingston,01/05/2023,90240003,-649.80,BALANCE (SUPPORT) C.I.C,SOCIAL SERVICES - OTHER,Adult Social Care & Health,Personal Budget - Third Party,A61019
Royal Borough of Kingston,01/05/2023,90240004,-519.84,BALANCE (SUPPORT) C.I.C,SOCIAL SERVICES - OTHER,Adult Social Care & Health,Personal Budget - Third Party,A61019
Royal Borough of Kingston,01/05/2023,90240005,-519.84,BALANCE (SUPPORT) C.I.C,SOCIAL SERVICES - OTHER,Adult Social Care & Health,Personal Budget - Third Party,A61019
Royal Borough of Kingston,01/05/2023,90240006,-519.84,BALANCE (SUPPORT) C.I.C,SOCIAL SERVICES - OTHER,Adult Social Care & Health,Personal Budget - Third Party,A61019
Royal Borough of Kingston,01/05/2023,90240021,503.48,BALANCE (SUPPORT) C.I.C,SOCIAL SERVICES - OTHER,Adult Social Care & Health,Personal Budget - Third Party,A61019
Royal Borough of Kingston,01/05/2023,90240088,779.61,BALANCE (SUPPORT) C.I.C,SOCIAL SERVICES - OTHER,Adult Social Care & Health,Personal Budget - Third Party,A61019
Royal Borough of Kingston,01/05/2023,90240089,-742.50,BALANCE (SUPPORT) C.I.C,SOCIAL SERVICES - OTHER,Adult Social Care & Health,Personal Budget - Third Party,A61019
Royal Borough of Kingston,01/05/2023,90240090,805.60,BALANCE (SUPPORT) C.I.C,SOCIAL SERVICES - OTHER,Adult Social Care & Health,Personal Budget - Third Party,A61019
Royal Borough of Kingston,01/05/2023,90240097,"1,656.73",BALANCE (SUPPORT) C.I.C,SOCIAL SERVICES - OTHER,Adult Social Care & Health,Personal Budget - Third Party,A61019
Royal Borough of Kingston,01/05/2023,90240098,"-1,577.83",BALANCE (SUPPORT) C.I.C,SOCIAL SERVICES - OTHER,Adult Social Care & Health,Personal Budget - Third Party,A61019
Royal Borough of Kingston,01/05/2023,90240099,"1,711.95",BALANCE (SUPPORT) C.I.C,SOCIAL SERVICES - OTHER,Adult Social Care & Health,Personal Budget - Third Party,A61019
Royal Borough of Kingston,01/05/2023,90240103,552.09,BALANCE (SUPPORT) C.I.C,SOCIAL SERVICES - OTHER,Adult Social Care & Health,Personal Budget - Third Party,A61019
Royal Borough of Kingston,01/05/2023,90240104,-525.86,BALANCE (SUPPORT) C.I.C,SOCIAL SERVICES - OTHER,Adult Social Care & Health,Personal Budget - Third Party,A61019
Royal Borough of Kingston,01/05/2023,90240105,570.49,BALANCE (SUPPORT) C.I.C,SOCIAL SERVICES - OTHER,Adult Social Care & Health,Personal Budget - Third Party,A61019
Royal Borough of Kingston,01/05/2023,90240167,584.74,BALANCE (SUPPORT) C.I.C,SOCIAL SERVICES - OTHER,Adult Social Care & Health,Personal Budget - Third Party,A61019
Royal Borough of Kingston,01/05/2023,90240168,-556.89,BALANCE (SUPPORT) C.I.C,SOCIAL SERVICES - OTHER,Adult Social Care & Health,Personal Budget - Third Party,A61019
Royal Borough of Kingston,01/05/2023,90240169,604.23,BALANCE (SUPPORT) C.I.C,SOCIAL SERVICES - OTHER,Adult Social Care & Health,Personal Budget - Third Party,A61019
Royal Borough of Kingston,01/05/2023,90240173,"1,364.36",BALANCE (SUPPORT) C.I.C,SOCIAL SERVICES - OTHER,Adult Social Care & Health,Personal Budget - Third Party,A61019
Royal Borough of Kingston,01/05/2023,90240174,"-1,299.39",BALANCE (SUPPORT) C.I.C,SOCIAL SERVICES - OTHER,Adult Social Care & Health,Personal Budget - Third Party,A61019
Royal Borough of Kingston,01/05/2023,90240175,"1,409.84",BALANCE (SUPPORT) C.I.C,SOCIAL SERVICES - OTHER,Adult Social Care & Health,Personal Budget - Third Party,A61019
Royal Borough of Kingston,01/05/2023,90240179,"-1,246.82",BALANCE (SUPPORT) C.I.C,SOCIAL SERVICES - OTHER,Adult Social Care & Health,Personal Budget - Third Party,A61019
Royal Borough of Kingston,01/05/2023,90240180,"-1,206.60",BALANCE (SUPPORT) C.I.C,SOCIAL SERVICES - OTHER,Adult Social Care & Health,Personal Budget - Third Party,A61019
Royal Borough of Kingston,01/05/2023,90240181,"-1,246.82",BALANCE (SUPPORT) C.I.C,SOCIAL SERVICES - OTHER,Adult Social Care & Health,Personal Budget - Third Party,A61019
Royal Borough of Kingston,01/05/2023,90240182,"-1,206.60",BALANCE (SUPPORT) C.I.C,SOCIAL SERVICES - OTHER,Adult Social Care & Health,Personal Budget - Third Party,A61019
Royal Borough of Kingston,01/05/2023,90240183,"-1,246.82",BALANCE (SUPPORT) C.I.C,SOCIAL SERVICES - OTHER,Adult Social Care & Health,Personal Budget - Third Party,A61019
Royal Borough of Kingston,01/05/2023,90240184,"-1,246.82",BALANCE (SUPPORT) C.I.C,SOCIAL SERVICES - OTHER,Adult Social Care & Health,Personal Budget - Third Party,A61019
Royal Borough of Kingston,01/05/2023,90240185,"-1,126.16",BALANCE (SUPPORT) C.I.C,SOCIAL SERVICES - OTHER,Adult Social Care & Health,Personal Budget - Third Party,A61019
Royal Borough of Kingston,01/05/2023,90240186,"-1,246.82",BALANCE (SUPPORT) C.I.C,SOCIAL SERVICES - OTHER,Adult Social Care & Health,Personal Budget - Third Party,A61019
Royal Borough of Kingston,01/05/2023,90240187,"-1,206.60",BALANCE (SUPPORT) C.I.C,SOCIAL SERVICES - OTHER,Adult Social Care & Health,Personal Budget - Third Party,A61019
Royal Borough of Kingston,01/05/2023,90240188,584.74,BALANCE (SUPPORT) C.I.C,SOCIAL SERVICES - OTHER,Adult Social Care & Health,Personal Budget - Third Party,A61019
Royal Borough of Kingston,01/05/2023,90240189,-556.89,BALANCE (SUPPORT) C.I.C,SOCIAL SERVICES - OTHER,Adult Social Care & Health,Personal Budget - Third Party,A61019
Royal Borough of Kingston,01/05/2023,90240190,604.23,BALANCE (SUPPORT) C.I.C,SOCIAL SERVICES - OTHER,Adult Social Care & Health,Personal Budget - Third Party,A61019
Royal Borough of Kingston,01/05/2023,90240200,"1,754.19",BALANCE (SUPPORT) C.I.C,SOCIAL SERVICES - OTHER,Adult Social Care & Health,Personal Budget - Third Party,A61019
Royal Borough of Kingston,01/05/2023,90240201,"-1,670.66",BALANCE (SUPPORT) C.I.C,SOCIAL SERVICES - OTHER,Adult Social Care & Health,Personal Budget - Third Party,A61019
Royal Borough of Kingston,01/05/2023,90240202,"1,812.66",BALANCE (SUPPORT) C.I.C,SOCIAL SERVICES - OTHER,Adult Social Care & Health,Personal Budget - Third Party,A61019
Royal Borough of Kingston,01/05/2023,90240221,503.48,BALANCE (SUPPORT) C.I.C,SOCIAL SERVICES - OTHER,Adult Social Care & Health,Personal Budget - Third Party,A61019
Royal Borough of Kingston,01/05/2023,90240234,-671.37,BALANCE (SUPPORT) C.I.C,SOCIAL SERVICES - OTHER,Adult Social Care & Health,Personal Budget - Third Party,A61019
Royal Borough of Kingston,01/05/2023,90240235,-649.71,BALANCE (SUPPORT) C.I.C,SOCIAL SERVICES - OTHER,Adult Social Care & Health,Personal Budget - Third Party,A61019
Royal Borough of Kingston,01/05/2023,90240236,-671.37,BALANCE (SUPPORT) C.I.C,SOCIAL SERVICES - OTHER,Adult Social Care & Health,Personal Budget - Third Party,A61019
Royal Borough of Kingston,01/05/2023,90240237,-649.71,BALANCE (SUPPORT) C.I.C,SOCIAL SERVICES - OTHER,Adult Social Care & Health,Personal Budget - Third Party,A61019
Royal Borough of Kingston,01/05/2023,90240238,-671.37,BALANCE (SUPPORT) C.I.C,SOCIAL SERVICES - OTHER,Adult Social Care & Health,Personal Budget - Third Party,A61019
Royal Borough of Kingston,01/05/2023,90240239,-671.37,BALANCE (SUPPORT) C.I.C,SOCIAL SERVICES - OTHER,Adult Social Care & Health,Personal Budget - Third Party,A61019
Royal Borough of Kingston,01/05/2023,90240240,-606.40,BALANCE (SUPPORT) C.I.C,SOCIAL SERVICES - OTHER,Adult Social Care & Health,Personal Budget - Third Party,A61019
Royal Borough of Kingston,01/05/2023,90240241,-671.37,BALANCE (SUPPORT) C.I.C,SOCIAL SERVICES - OTHER,Adult Social Care & Health,Personal Budget - Third Party,A61019
Royal Borough of Kingston,01/05/2023,90240242,-649.71,BALANCE (SUPPORT) C.I.C,SOCIAL SERVICES - OTHER,Adult Social Care & Health,Personal Budget - Third Party,A61019
Royal Borough of Kingston,27/04/2023,70045945,637.91,Banner Group Ltd,OFFICE SUPPLIES,Corporate & Communities,Stationery,A43015
Royal Borough of Kingston,01/05/2023,90236675,"3,647.36",BARCHESTER HEALTHCARE,SOCIAL SERVICES RESIDENTIAL,Adult Social Care & Health,Independent Placements,A56006
Royal Borough of Kingston,01/05/2023,90236676,"-3,508.84",BARCHESTER HEALTHCARE,SOCIAL SERVICES RESIDENTIAL,Adult Social Care & Health,Independent Placements,A56006
Royal Borough of Kingston,01/05/2023,90236677,"3,768.94",BARCHESTER HEALTHCARE,SOCIAL SERVICES RESIDENTIAL,Adult Social Care & Health,Independent Placements,A56006
Royal Borough of Kingston,03/02/2023,70046221,"1,080.00",BARNARDO'S,TRAINING,Corporate & Communities,Training - Professional Qualification,A15024
Royal Borough of Kingston,27/04/2023,70046158,559.40,REDACTED - PERSONAL DATA,LEGAL & PROFESSIONAL SERVICES,Adult Social Care & Health,Other Private Contractors - Third Party,A56080
Royal Borough of Kingston,01/05/2023,90237075,"4,486.28",BAVANI CARE HOME LIMITED,SOCIAL SERVICES RESIDENTIAL,Adult Social Care & Health,Independent Placements,A56006
Royal Borough of Kingston,01/05/2023,90237086,"3,985.71",BAVANI CARE HOME LIMITED,SOCIAL SERVICES RESIDENTIAL,Adult Social Care & Health,Independent Placements,A56006
Royal Borough of Kingston,01/05/2023,90237150,"4,085.71",BAVANI CARE HOME LIMITED,SOCIAL SERVICES RESIDENTIAL,Adult Social Care & Health,Independent Placements,A56006
Royal Borough of Kingston,24/04/2023,70045840,"1,405.08",BDT HEALTHCARE LTD,SOCIAL SERVICES - OTHER,Adult Social Care & Health,Other Private Contractors - Third Party,A56080
Royal Borough of Kingston,24/04/2023,70045957,709.55,BDT HEALTHCARE LTD,SOCIAL SERVICES - OTHER,Adult Social Care & Health,Other Private Contractors - Third Party,A56080
Royal Borough of Kingston,24/04/2023,70045961,710.81,BDT HEALTHCARE LTD,SOCIAL SERVICES - OTHER,Adult Social Care & Health,Other Private Contractors - Third Party,A56080
Royal Borough of Kingston,24/04/2023,70046070,552.65,BDT HEALTHCARE LTD,SOCIAL SERVICES - OTHER,Adult Social Care & Health,Other Private Contractors - Third Party,A56080
Royal Borough of Kingston,23/02/2023,70044901,"1,028.39",BES Commercial Electricity Ltd,UTILITIES,Place,Electricity,A21000
Royal Borough of Kingston,03/05/2023,70046063,"1,500.00",BEVAN BRITTAN LLP,LEGAL & PROFESSIONAL SERVICES,Place,Property-Related Professional Fees,A20035
Royal Borough of Kingston,25/05/2023,90236173,"1,317.76",REDACTED - PERSONAL DATA,PLS LANDLORDS,Place,PSL Payments To Landlords,A22031
Royal Borough of Kingston,31/01/2023,70040124,"1,723.30",BLAKE MORGAN LLP,LEGAL & PROFESSIONAL SERVICES,Place,Buildings - Design & Planning,C14001
Royal Borough of Kingston,28/02/2023,70042066,"3,154.60",BLAKE MORGAN LLP,LEGAL & PROFESSIONAL SERVICES,Place,Buildings - Design & Planning,C14001
Royal Borough of Kingston,24/04/2023,90234947,745.36,BLUE ARROW CARE LTD,SOCIAL SERVICES-HOME CARE,Adult Social Care & Health,Personal Budget - Third Party,A61019
Royal Borough of Kingston,24/04/2023,90234977,559.02,BLUE ARROW CARE LTD,SOCIAL SERVICES-HOME CARE,Adult Social Care & Health,Personal Budget - Third Party,A61019
Royal Borough of Kingston,01/05/2023,90236039,559.02,BLUE ARROW CARE LTD,SOCIAL SERVICES-HOME CARE,Adult Social Care & Health,Personal Budget - Third Party,A61019
Royal Borough of Kingston,08/05/2023,90240336,559.02,BLUE ARROW CARE LTD,SOCIAL SERVICES-HOME CARE,Adult Social Care & Health,Personal Budget - Third Party,A61019
Royal Borough of Kingston,01/05/2023,90236636,"3,284.57",BONDCARE (LONDON) LTD ,SOCIAL SERVICES RESIDENTIAL,Adult Social Care & Health,Independent Placements,A56006
Royal Borough of Kingston,01/05/2023,90236637,"-3,128.14",BONDCARE (LONDON) LTD ,SOCIAL SERVICES RESIDENTIAL,Adult Social Care & Health,Independent Placements,A56006
Royal Borough of Kingston,01/05/2023,90236638,"3,394.06",BONDCARE (LONDON) LTD ,SOCIAL SERVICES RESIDENTIAL,Adult Social Care & Health,Independent Placements,A56006
Royal Borough of Kingston,01/05/2023,90236705,"5,314.29",BONDCARE (LONDON) LTD ,SOCIAL SERVICES RESIDENTIAL,Adult Social Care & Health,Independent Placements,A56006
Royal Borough of Kingston,25/05/2023,90236355,916.66,BONSOR PENNINGTONS LTD,PLS LANDLORDS,Place,PSL Payments To Landlords,A22031
Royal Borough of Kingston,01/03/2023,90237435,"12,810.00",Boulters Lock Residential Home,SOCIAL SERVICES RESIDENTIAL,Adult Social Care & Health,Independent Placements,A56006
Royal Borough of Kingston,01/03/2023,90237436,"5,200.00",Boulters Lock Residential Home,SOCIAL SERVICES RESIDENTIAL,Adult Social Care & Health,Independent Placements,A56006
Royal Borough of Kingston,25/05/2023,90236356,900.00,BR INVESTMENTS LIMITED,PLS LANDLORDS,Place,PSL Payments To Landlords,A22031
Royal Borough of Kingston,28/04/2023,70045960,760.00,Bridge Facilities Engineers Ltd,CONSTRUCTION INDUSTRY,Place,Property Repairs & Maintenance & Alterations - Responsive,A20011
Royal Borough of Kingston,09/05/2023,90232664,"20,594.25",BRIGHT HORIZONS FAMILY SOLUTIONS,ACADEMIC INSTNS - OTHER,Schools,PVI Providers,A60014
Royal Borough of Kingston,09/05/2023,90232749,"19,272.15",BRIGHT HORIZONS FAMILY SOLUTIONS,ACADEMIC INSTNS - OTHER,Schools,PVI Providers,A60014
Royal Borough of Kingston,09/05/2023,90232763,"20,024.73",BRIGHT HORIZONS FAMILY SOLUTIONS,ACADEMIC INSTNS - OTHER,Schools,PVI Providers,A60014
Royal Borough of Kingston,09/05/2023,90232767,"19,109.43",BRIGHT HORIZONS FAMILY SOLUTIONS,ACADEMIC INSTNS - OTHER,Schools,PVI Providers,A60014
Royal Borough of Kingston,09/05/2023,90232770,"29,493.00",BRIGHT HORIZONS FAMILY SOLUTIONS,ACADEMIC INSTNS - OTHER,Schools,PVI Providers,A60014
Royal Borough of Kingston,09/05/2023,90232812,729.00,BRIGHT HORIZONS FAMILY SOLUTIONS,ACADEMIC INSTNS - OTHER,Schools,2 Yr Old Place Funding,A60000
Royal Borough of Kingston,09/05/2023,90232818,"1,458.00",BRIGHT HORIZONS FAMILY SOLUTIONS,ACADEMIC INSTNS - OTHER,Schools,2 Yr Old Place Funding,A60000
Royal Borough of Kingston,09/05/2023,90232819,729.00,BRIGHT HORIZONS FAMILY SOLUTIONS,ACADEMIC INSTNS - OTHER,Schools,2 Yr Old Place Funding,A60000
Royal Borough of Kingston,14/02/2023,70046946,643.73,BRITISH GAS TRADING LTD,UTILITIES,Housing Revenue Account,Gas,A21003
Royal Borough of Kingston,13/04/2023,70045821,689.84,BRITISH TELECOMMUNICATIONS PLC,TELECOMS,Corporate & Communities,Telephones,A45020
Royal Borough of Kingston,18/04/2023,70045823,689.84,BRITISH TELECOMMUNICATIONS PLC,TELECOMS,Corporate & Communities,Telephones,A45020
Royal Borough of Kingston,09/05/2023,90232772,610.20,REDACTED - PERSONAL DATA,ACADEMIC INSTNS - OTHER,Schools,PVI Providers,A60014
Royal Borough of Kingston,02/05/2023,70046376,"1,620.00",Buildvantage Limited,ACCOMMODATION BED & BREAKFAST,Place,Bed & Breakfast,A56000
Royal Borough of Kingston,02/05/2023,70046377,"1,620.00",Buildvantage Limited,ACCOMMODATION BED & BREAKFAST,Place,Bed & Breakfast,A56000
Royal Borough of Kingston,02/05/2023,70046378,"1,620.00",Buildvantage Limited,ACCOMMODATION BED & BREAKFAST,Place,Bed & Breakfast,A56000
Royal Borough of Kingston,02/05/2023,70046379,"1,620.00",Buildvantage Limited,ACCOMMODATION BED & BREAKFAST,Place,Bed & Breakfast,A56000
Royal Borough of Kingston,02/05/2023,70046380,"1,620.00",Buildvantage Limited,ACCOMMODATION BED & BREAKFAST,Place,Bed & Breakfast,A56000
Royal Borough of Kingston,02/05/2023,70046381,"1,620.00",Buildvantage Limited,ACCOMMODATION BED & BREAKFAST,Place,Bed & Breakfast,A56000
Royal Borough of Kingston,02/05/2023,70046382,"1,620.00",Buildvantage Limited,ACCOMMODATION BED & BREAKFAST,Place,Bed & Breakfast,A56000
Royal Borough of Kingston,02/05/2023,70046383,"1,620.00",Buildvantage Limited,ACCOMMODATION BED & BREAKFAST,Place,Bed & Breakfast,A56000
Royal Borough of Kingston,02/05/2023,70046384,"1,620.00",Buildvantage Limited,ACCOMMODATION BED & BREAKFAST,Place,Bed & Breakfast,A56000
Royal Borough of Kingston,02/05/2023,70046385,"1,620.00",Buildvantage Limited,ACCOMMODATION BED & BREAKFAST,Place,Bed & Breakfast,A56000
Royal Borough of Kingston,02/05/2023,70046386,"2,100.00",Buildvantage Limited,ACCOMMODATION BED & BREAKFAST,Place,Bed & Breakfast,A56000
Royal Borough of Kingston,02/05/2023,70046387,"2,250.00",Buildvantage Limited,ACCOMMODATION BED & BREAKFAST,Place,Bed & Breakfast,A56000
Royal Borough of Kingston,02/05/2023,70046389,"1,470.00",Buildvantage Limited,ACCOMMODATION BED & BREAKFAST,Place,Bed & Breakfast,A56000
Royal Borough of Kingston,02/05/2023,70046390,"1,620.00",Buildvantage Limited,ACCOMMODATION BED & BREAKFAST,Place,Bed & Breakfast,A56000
Royal Borough of Kingston,02/05/2023,70046391,"1,470.00",Buildvantage Limited,ACCOMMODATION BED & BREAKFAST,Place,Bed & Breakfast,A56000
Royal Borough of Kingston,02/05/2023,70046392,"1,470.00",Buildvantage Limited,ACCOMMODATION BED & BREAKFAST,Place,Bed & Breakfast,A56000
Royal Borough of Kingston,02/05/2023,70046393,"1,470.00",Buildvantage Limited,ACCOMMODATION BED & BREAKFAST,Place,Bed & Breakfast,A56000
Royal Borough of Kingston,02/05/2023,70046394,"1,620.00",Buildvantage Limited,ACCOMMODATION BED & BREAKFAST,Place,Bed & Breakfast,A56000
Royal Borough of Kingston,02/05/2023,70046395,"1,620.00",Buildvantage Limited,ACCOMMODATION BED & BREAKFAST,Place,Bed & Breakfast,A56000
Royal Borough of Kingston,02/05/2023,70046396,"1,620.00",Buildvantage Limited,ACCOMMODATION BED & BREAKFAST,Place,Bed & Breakfast,A56000
Royal Borough of Kingston,02/05/2023,70046397,"1,620.00",Buildvantage Limited,ACCOMMODATION BED & BREAKFAST,Place,Bed & Breakfast,A56000
Royal Borough of Kingston,02/05/2023,70046399,"1,620.00",Buildvantage Limited,ACCOMMODATION BED & BREAKFAST,Place,Bed & Breakfast,A56000
Royal Borough of Kingston,15/03/2023,70045915,"2,550.00",BUNZL OUTSOURCING SVS UK LTD,CLOTHING & UNIFORMS,Housing Revenue Account,Equipment And Materials Purchase,A40000
Royal Borough of Kingston,01/05/2023,90236823,"3,658.84",BUPA CARE HOMES LTD,SOCIAL SERVICES RESIDENTIAL,Adult Social Care & Health,Independent Placements,A56006
Royal Borough of Kingston,01/05/2023,90236824,"-3,524.19",BUPA CARE HOMES LTD,SOCIAL SERVICES RESIDENTIAL,Adult Social Care & Health,Independent Placements,A56006
Royal Borough of Kingston,01/05/2023,90236825,"3,780.80",BUPA CARE HOMES LTD,SOCIAL SERVICES RESIDENTIAL,Adult Social Care & Health,Independent Placements,A56006
Royal Borough of Kingston,01/05/2023,90236854,"9,007.98",BUPA CARE HOMES LTD,SOCIAL SERVICES RESIDENTIAL,Adult Social Care & Health,Independent Placements,A56006
Royal Borough of Kingston,01/05/2023,90237052,"3,945.02",BUPA CARE HOMES LTD,SOCIAL SERVICES RESIDENTIAL,Adult Social Care & Health,Independent Placements,A56006
Royal Borough of Kingston,01/05/2023,90237420,"5,411.06",BUPA CARE HOMES LTD,SOCIAL SERVICES RESIDENTIAL,Adult Social Care & Health,Independent Placements,A56006
Royal Borough of Kingston,01/05/2023,90237421,"-5,153.40",BUPA CARE HOMES LTD,SOCIAL SERVICES RESIDENTIAL,Adult Social Care & Health,Independent Placements,A56006
Royal Borough of Kingston,01/05/2023,90237422,"5,591.43",BUPA CARE HOMES LTD,SOCIAL SERVICES RESIDENTIAL,Adult Social Care & Health,Independent Placements,A56006
Royal Borough of Kingston,04/05/2023,90231445,"152,546.80",BURLINGTON INFANT AND NURSERY SCHOOL,SCHOOL FUNDS,Schools,Miscellaneous Expenses,A49000
Royal Borough of Kingston,09/05/2023,90232717,"41,441.22",BURLINGTON INFANT AND NURSERY SCHOOL,SCHOOL FUNDS,Schools,Miscellaneous Expenses,A49000
Royal Borough of Kingston,12/05/2023,90233997,"24,910.00",BURLINGTON INFANT AND NURSERY SCHOOL,SCHOOL FUNDS,Schools,Miscellaneous Expenses,A49000
Royal Borough of Kingston,12/05/2023,90234024,"7,667.00",BURLINGTON INFANT AND NURSERY SCHOOL,SCHOOL FUNDS,Schools,Miscellaneous Expenses,A49000
Royal Borough of Kingston,12/05/2023,90234051,"2,320.00",BURLINGTON INFANT AND NURSERY SCHOOL,SCHOOL FUNDS,Schools,Miscellaneous Expenses,A49000
Royal Borough of Kingston,04/05/2023,90231446,"185,933.75",BURLINGTON JUNIOR SCHOOL,SCHOOL FUNDS,Schools,Miscellaneous Expenses,A49000
Royal Borough of Kingston,12/05/2023,90233998,"32,646.00",BURLINGTON JUNIOR SCHOOL,SCHOOL FUNDS,Schools,Miscellaneous Expenses,A49000
Royal Borough of Kingston,12/05/2023,90234025,"8,658.00",BURLINGTON JUNIOR SCHOOL,SCHOOL FUNDS,Schools,Miscellaneous Expenses,A49000
Royal Borough of Kingston,12/05/2023,90234052,"3,770.00",BURLINGTON JUNIOR SCHOOL,SCHOOL FUNDS,Schools,Miscellaneous Expenses,A49000
Royal Borough of Kingston,05/04/2023,70044280,"3,502.00",BYTES SOFTWARE SERVICES LTD,BUSINESS & COMPUTER SYSTEMS,Corporate & Communities,Purchase of Software & Licences,C13002
Royal Borough of Kingston,27/03/2023,70045178,"2,206.78",BYTES SOFTWARE SERVICES LTD,BUSINESS & COMPUTER SYSTEMS,Corporate & Communities,IT Software Maintenance,A45045
Royal Borough of Kingston,28/04/2023,70046504,"7,482.47",BYTES SOFTWARE SERVICES LTD,BUSINESS & COMPUTER SYSTEMS,Corporate & Communities,IT Hardware Purchase,A45005
Royal Borough of Kingston,28/04/2023,70046907,"1,889.64",BYTES SOFTWARE SERVICES LTD,BUSINESS & COMPUTER SYSTEMS,Corporate & Communities,Cloud Services,A45007
Royal Borough of Kingston,18/05/2023,70046909,"3,442.50",BYTES SOFTWARE SERVICES LTD,BUSINESS & COMPUTER SYSTEMS,Corporate & Communities,IT Hardware Purchase,A45005
Royal Borough of Kingston,17/05/2023,70046916,514.07,BYTES SOFTWARE SERVICES LTD,BUSINESS & COMPUTER SYSTEMS,Housing Revenue Account,IT Software Purchase,A45040
Royal Borough of Kingston,28/02/2023,70046125,533.84,C BREWER & SONS LTD,BUILDERS MERCHANTS / D.I.Y.,Corporate & Communities,Equipment And Materials Repairs & Maintenance,A40051
Royal Borough of Kingston,25/05/2023,90236298,"1,314.08",REDACTED - PERSONAL DATA,PLS LANDLORDS,Place,PSL Payments To Landlords,A22031
Royal Borough of Kingston,25/05/2023,90236300,"1,094.00",REDACTED - PERSONAL DATA,PLS LANDLORDS,Place,PSL Payments To Landlords,A22031
Royal Borough of Kingston,25/05/2023,90236423,"1,314.08",REDACTED - PERSONAL DATA,PLS LANDLORDS,Place,PSL Payments To Landlords,A22031
Royal Borough of Kingston,25/05/2023,90236424,"1,314.08",REDACTED - PERSONAL DATA,PLS LANDLORDS,Place,PSL Payments To Landlords,A22031
Royal Borough of Kingston,25/05/2023,90236425,"1,314.08",REDACTED - PERSONAL DATA,PLS LANDLORDS,Place,PSL Payments To Landlords,A22031
Royal Borough of Kingston,25/05/2023,90236426,"1,314.08",REDACTED - PERSONAL DATA,PLS LANDLORDS,Place,PSL Payments To Landlords,A22031
Royal Borough of Kingston,25/05/2023,90236383,"1,317.76",REDACTED - PERSONAL DATA,PLS LANDLORDS,Place,PSL Payments To Landlords,A22031
Royal Borough of Kingston,25/05/2023,90236367,"1,025.00",REDACTED - PERSONAL DATA,PLS LANDLORDS,Place,PSL Payments To Landlords,A22031
Royal Borough of Kingston,25/05/2023,90236511,"1,679.75",REDACTED - PERSONAL DATA,PLS LANDLORDS,Place,PSL Payments To Landlords,A22031
Royal Borough of Kingston,24/04/2023,70045343,"2,692.28",Cairds (Epsom) Ltd,SUNDRY SUPPLIER - HOUSING,Place,Prevention Of Homelessness,A44141
Royal Borough of Kingston,27/04/2023,70045950,"1,507.50",CANON (UK) LTD,OPERATIONAL EQUIPMENT/MATERIAL,Corporate & Communities,Printing And Photocopying,A43005
Royal Borough of Kingston,01/05/2023,90239950,"5,513.31",CARE MANAGEMENT GROUP LTD,SOCIAL SERVICES RESIDENTIAL,Adult Social Care & Health,Personal Budget - Third Party,A61019
Royal Borough of Kingston,01/05/2023,90239951,"-5,250.77",CARE MANAGEMENT GROUP LTD,SOCIAL SERVICES RESIDENTIAL,Adult Social Care & Health,Personal Budget - Third Party,A61019
Royal Borough of Kingston,01/05/2023,90239952,"5,697.09",CARE MANAGEMENT GROUP LTD,SOCIAL SERVICES RESIDENTIAL,Adult Social Care & Health,Personal Budget - Third Party,A61019
Royal Borough of Kingston,01/05/2023,90236897,"3,703.84",CARE UK COMMUNITY PARTNERSHIPS LTD,SOCIAL SERVICES RESIDENTIAL,Adult Social Care & Health,Independent Placements,A56006
Royal Borough of Kingston,01/05/2023,90236898,"-3,238.11",CARE UK COMMUNITY PARTNERSHIPS LTD,SOCIAL SERVICES RESIDENTIAL,Adult Social Care & Health,Independent Placements,A56006
Royal Borough of Kingston,01/05/2023,90237042,"3,387.86",CARE UK COMMUNITY PARTNERSHIPS LTD,SOCIAL SERVICES RESIDENTIAL,Adult Social Care & Health,Independent Placements,A56006
Royal Borough of Kingston,01/05/2023,90237111,"2,088.69",CARE UK COMMUNITY PARTNERSHIPS LTD,SOCIAL SERVICES RESIDENTIAL,Adult Social Care & Health,Independent Placements,A56006
Royal Borough of Kingston,01/05/2023,90237112,"-4,007.57",CARE UK COMMUNITY PARTNERSHIPS LTD,SOCIAL SERVICES RESIDENTIAL,Adult Social Care & Health,Independent Placements,A56006
Royal Borough of Kingston,01/05/2023,90237119,"4,281.04",CARE UK COMMUNITY PARTNERSHIPS LTD,SOCIAL SERVICES RESIDENTIAL,Adult Social Care & Health,Independent Placements,A56006
Royal Borough of Kingston,01/05/2023,90237120,"-4,242.86",CARE UK COMMUNITY PARTNERSHIPS LTD,SOCIAL SERVICES RESIDENTIAL,Adult Social Care & Health,Independent Placements,A56006
Royal Borough of Kingston,01/05/2023,90237121,"4,423.74",CARE UK COMMUNITY PARTNERSHIPS LTD,SOCIAL SERVICES RESIDENTIAL,Adult Social Care & Health,Independent Placements,A56006
Royal Borough of Kingston,01/05/2023,90237137,"2,833.33",CARE UK COMMUNITY PARTNERSHIPS LTD,SOCIAL SERVICES RESIDENTIAL,Adult Social Care & Health,Independent Placements,A56006
Royal Borough of Kingston,01/05/2023,90237138,"-2,698.41",CARE UK COMMUNITY PARTNERSHIPS LTD,SOCIAL SERVICES RESIDENTIAL,Adult Social Care & Health,Independent Placements,A56006
Royal Borough of Kingston,01/05/2023,90237139,"2,927.77",CARE UK COMMUNITY PARTNERSHIPS LTD,SOCIAL SERVICES RESIDENTIAL,Adult Social Care & Health,Independent Placements,A56006
Royal Borough of Kingston,09/05/2023,90232661,"18,458.55",CAREROOM LTD ,ACADEMIC INSTNS - OTHER,Schools,PVI Providers,A60014
Royal Borough of Kingston,09/05/2023,90232784,"1,701.00",CAREROOM LTD ,ACADEMIC INSTNS - OTHER,Schools,2 Yr Old Place Funding,A60000
Royal Borough of Kingston,01/05/2023,90236706,"3,683.57",Caring Homes Healthcare Group Limited,SOCIAL SERVICES RESIDENTIAL,Adult Social Care & Health,Independent Placements,A56006
Royal Borough of Kingston,01/05/2023,90236707,"-3,557.14",Caring Homes Healthcare Group Limited,SOCIAL SERVICES RESIDENTIAL,Adult Social Care & Health,Independent Placements,A56006
Royal Borough of Kingston,01/05/2023,90236708,"3,806.36",Caring Homes Healthcare Group Limited,SOCIAL SERVICES RESIDENTIAL,Adult Social Care & Health,Independent Placements,A56006
Royal Borough of Kingston,24/04/2023,90234326,504.21,CARLCARE LTD,SOCIAL SERVICES-HOME CARE,Adult Social Care & Health,Homecare - new framework,A56127
Royal Borough of Kingston,24/04/2023,90234781,612.26,CARLCARE LTD,SOCIAL SERVICES-HOME CARE,Adult Social Care & Health,Homecare - new framework,A56127
Royal Borough of Kingston,01/05/2023,90235451,756.32,CARLCARE LTD,SOCIAL SERVICES-HOME CARE,Adult Social Care & Health,Homecare - new framework,A56127
Royal Borough of Kingston,01/05/2023,90235511,504.21,CARLCARE LTD,SOCIAL SERVICES-HOME CARE,Adult Social Care & Health,Homecare - new framework,A56127
Royal Borough of Kingston,01/05/2023,90235852,612.26,CARLCARE LTD,SOCIAL SERVICES-HOME CARE,Adult Social Care & Health,Homecare - new framework,A56127
Royal Borough of Kingston,08/05/2023,90238521,756.32,CARLCARE LTD,SOCIAL SERVICES-HOME CARE,Adult Social Care & Health,Homecare - new framework,A56127
Royal Borough of Kingston,08/05/2023,90238573,504.21,CARLCARE LTD,SOCIAL SERVICES-HOME CARE,Adult Social Care & Health,Homecare - new framework,A56127
Royal Borough of Kingston,08/05/2023,90238724,567.24,CARLCARE LTD,SOCIAL SERVICES-HOME CARE,Adult Social Care & Health,Homecare - new framework,A56127
Royal Borough of Kingston,08/05/2023,90239203,612.26,CARLCARE LTD,SOCIAL SERVICES-HOME CARE,Adult Social Care & Health,Homecare - new framework,A56127
Royal Borough of Kingston,25/05/2023,90236399,"1,550.00",CARLISLE SECURITIES LTD,PLS LANDLORDS,Place,PSL Payments To Landlords,A22031
Royal Borough of Kingston,25/05/2023,90236210,"1,094.00",REDACTED - PERSONAL DATA,PLS LANDLORDS,Place,PSL Payments To Landlords,A22031
Royal Borough of Kingston,27/04/2023,70046124,"5,250.00",CARTER JONAS LLP,LEGAL & PROFESSIONAL SERVICES,Place,Property-Related Professional Fees,A20035
Royal Borough of Kingston,01/05/2023,90237298,"9,623.19",CARTREF HOMES,SOCIAL SERVICES RESIDENTIAL,Adult Social Care & Health,Independent Placements,A56006
Royal Borough of Kingston,01/05/2023,90237299,"-9,164.96",CARTREF HOMES,SOCIAL SERVICES RESIDENTIAL,Adult Social Care & Health,Independent Placements,A56006
Royal Borough of Kingston,01/05/2023,90237300,"9,943.96",CARTREF HOMES,SOCIAL SERVICES RESIDENTIAL,Adult Social Care & Health,Independent Placements,A56006
Royal Borough of Kingston,01/05/2023,90237217,"14,249.87",CAS CARE SERVICES LTD,SOCIAL SERVICES - OTHER,Adult Social Care & Health,Independent Placements,A56006
Royal Borough of Kingston,01/05/2023,90237218,"-13,571.31",CAS CARE SERVICES LTD,SOCIAL SERVICES - OTHER,Adult Social Care & Health,Independent Placements,A56006
Royal Borough of Kingston,01/05/2023,90237219,"14,724.87",CAS CARE SERVICES LTD,SOCIAL SERVICES - OTHER,Adult Social Care & Health,Independent Placements,A56006
Royal Borough of Kingston,01/05/2023,90237348,"14,249.87",CAS CARE SERVICES LTD,SOCIAL SERVICES - OTHER,Adult Social Care & Health,Independent Placements,A56006
Royal Borough of Kingston,01/05/2023,90237349,"-13,571.31",CAS CARE SERVICES LTD,SOCIAL SERVICES - OTHER,Adult Social Care & Health,Independent Placements,A56006
Royal Borough of Kingston,01/05/2023,90237350,"14,724.87",CAS CARE SERVICES LTD,SOCIAL SERVICES - OTHER,Adult Social Care & Health,Independent Placements,A56006
Royal Borough of Kingston,09/05/2023,90232718,"26,539.16",CASTLE HILL SCHOOL,SCHOOL FUNDS,Schools,Miscellaneous Expenses,A49000
Royal Borough of Kingston,09/05/2023,90232758,"5,497.74",CASTLE HILL SCHOOL,SCHOOL FUNDS,Schools,PVI Providers,A60014
Royal Borough of Kingston,09/05/2023,90232816,"1,093.50",CASTLE HILL SCHOOL,SCHOOL FUNDS,Schools,2 Yr Old Place Funding,A60000
Royal Borough of Kingston,25/05/2023,90236182,"2,149.00",CASTLE RESIDENTIAL PROPERTIES LTD,PLS LANDLORDS,Place,PSL Payments To Landlords,A22031
Royal Borough of Kingston,25/05/2023,90236299,"1,321.00",CASTLE RESIDENTIAL PROPERTIES LTD,PLS LANDLORDS,Place,PSL Payments To Landlords,A22031
Royal Borough of Kingston,25/05/2023,90236301,"1,049.98",CASTLE RESIDENTIAL PROPERTIES LTD,PLS LANDLORDS,Place,PSL Payments To Landlords,A22031
Royal Borough of Kingston,25/05/2023,90236472,"2,144.09",CASTLE RESIDENTIAL PROPERTIES LTD,PLS LANDLORDS,Place,PSL Payments To Landlords,A22031
Royal Borough of Kingston,25/05/2023,90236538,"2,144.09",CASTLE RESIDENTIAL PROPERTIES LTD,PLS LANDLORDS,Place,PSL Payments To Landlords,A22031
Royal Borough of Kingston,03/02/2023,70046053,448.58,CASTLE WATER LIMITED,UTILITIES,Corporate & Communities,Water Services,A24005
Royal Borough of Kingston,25/05/2023,90236179,"1,094.34",CASTLE WILDISH RESI LTD,PLS LANDLORDS,Place,PSL Payments To Landlords,A22031
Royal Borough of Kingston,25/05/2023,90236180,"1,094.34",CASTLE WILDISH RESI LTD,PLS LANDLORDS,Place,PSL Payments To Landlords,A22031
Royal Borough of Kingston,25/05/2023,90236181,"1,094.34",CASTLE WILDISH RESI LTD,PLS LANDLORDS,Place,PSL Payments To Landlords,A22031
Royal Borough of Kingston,25/05/2023,90236526,"1,626.00",CASTLE WILDISH RESI LTD,PLS LANDLORDS,Place,PSL Payments To Landlords,A22031
Royal Borough of Kingston,25/05/2023,90236527,"1,626.00",CASTLE WILDISH RESI LTD,PLS LANDLORDS,Place,PSL Payments To Landlords,A22031
Royal Borough of Kingston,25/05/2023,90236344,867.00,REDACTED - PERSONAL DATA,PLS LANDLORDS,Place,PSL Payments To Landlords,A22031
Royal Borough of Kingston,08/02/2023,70045929,"1,170.00",CATTANEO COMMERCIAL LIMITED,PROFESSIONAL ASSOCIATIONS TU,Place,Property-Related Professional Fees,A20035
Royal Borough of Kingston,30/11/2022,70045824,"112,300.00",Causeway Technologies Limited,IT EQUIPMENT MAINTENANCE,Corporate & Communities,IT Software Maintenance,A45045
Royal Borough of Kingston,01/05/2023,90237271,"11,331.99",Gresham Care Operations Limited,SOCIAL SERVICES RESIDENTIAL,Adult Social Care & Health,Independent Placements,A56006
Royal Borough of Kingston,01/05/2023,90237272,"-10,792.37",Gresham Care Operations Limited,SOCIAL SERVICES RESIDENTIAL,Adult Social Care & Health,Independent Placements,A56006
Royal Borough of Kingston,01/05/2023,90237273,"11,709.72",Gresham Care Operations Limited,SOCIAL SERVICES RESIDENTIAL,Adult Social Care & Health,Independent Placements,A56006
Royal Borough of Kingston,25/05/2023,90236328,850.00,REDACTED - PERSONAL DATA,PLS LANDLORDS,Place,PSL Payments To Landlords,A22031
Royal Borough of Kingston,09/05/2023,90232773,610.20,REDACTED - PERSONAL DATA,ACADEMIC INSTNS - OTHER,Schools,PVI Providers,A60014
Royal Borough of Kingston,31/03/2023,70044411,"4,104.75",CHAWTON HILL ASSOCIATES LIMITED,LEGAL & PROFESSIONAL SERVICES,Place,Buildings - Design & Planning,C14001
Royal Borough of Kingston,28/02/2023,70045958,"4,395.00",CHAWTON HILL ASSOCIATES LIMITED,LEGAL & PROFESSIONAL SERVICES,Place,Payments to Contractors,C14000
Royal Borough of Kingston,01/05/2023,90237019,"3,681.03",CHD (CARE HOMES) LTD,SOCIAL SERVICES RESIDENTIAL,Adult Social Care & Health,Independent Placements,A56006
Royal Borough of Kingston,01/05/2023,90237135,"4,871.43",CHD (CARE HOMES) LTD,SOCIAL SERVICES RESIDENTIAL,Adult Social Care & Health,Independent Placements,A56006
Royal Borough of Kingston,01/05/2023,90231662,"3,600.00",CHD CARE LTD,SOCIAL SERVICES RESIDENTIAL,Adult Social Care & Health,Independent Placements,A56006
Royal Borough of Kingston,01/05/2023,90231663,"2,442.86",CHD CARE LTD,SOCIAL SERVICES RESIDENTIAL,Adult Social Care & Health,Independent Placements,A56006
Royal Borough of Kingston,01/05/2023,90237088,"3,450.96",CHD CARE LTD,SOCIAL SERVICES RESIDENTIAL,Adult Social Care & Health,Independent Placements,A56006
Royal Borough of Kingston,01/05/2023,90237090,"5,176.47",CHD CARE LTD,SOCIAL SERVICES RESIDENTIAL,Adult Social Care & Health,Independent Placements,A56006
Royal Borough of Kingston,01/05/2023,90237023,"1,104.31",CHD LIVING,SOCIAL SERVICES RESIDENTIAL,Adult Social Care & Health,Independent Placements,A56006
Royal Borough of Kingston,09/05/2023,90232672,"7,871.58",CHILDS PLAY NURSERY SCHOOL LTD,GRANTS & EX GRATIA PAYMENTS,Schools,PVI Providers,A60014
Royal Borough of Kingston,01/05/2023,90236684,"4,371.22",CHISWICK NURSING CENTRE,SOCIAL SERVICES RESIDENTIAL,Adult Social Care & Health,Independent Placements,A56006
Royal Borough of Kingston,01/05/2023,90236843,"7,399.30",CHISWICK NURSING CENTRE,SOCIAL SERVICES RESIDENTIAL,Adult Social Care & Health,Independent Placements,A56006
Royal Borough of Kingston,01/05/2023,90237021,"3,755.03",CHISWICK NURSING CENTRE,SOCIAL SERVICES RESIDENTIAL,Adult Social Care & Health,Independent Placements,A56006
Royal Borough of Kingston,01/05/2023,90237065,"3,434.40",CHISWICK NURSING CENTRE,SOCIAL SERVICES RESIDENTIAL,Adult Social Care & Health,Independent Placements,A56006
Royal Borough of Kingston,01/05/2023,90237333,"8,263.93",CHOICE LTD,SOCIAL SERVICES RESIDENTIAL,Adult Social Care & Health,Independent Placements,A56006
Royal Borough of Kingston,01/05/2023,90237334,"-7,870.41",CHOICE LTD,SOCIAL SERVICES RESIDENTIAL,Adult Social Care & Health,Independent Placements,A56006
Royal Borough of Kingston,01/05/2023,90237335,"8,539.39",CHOICE LTD,SOCIAL SERVICES RESIDENTIAL,Adult Social Care & Health,Independent Placements,A56006
Royal Borough of Kingston,01/05/2023,90237351,"7,302.09",CHOICE LTD,SOCIAL SERVICES RESIDENTIAL,Adult Social Care & Health,Independent Placements,A56006
Royal Borough of Kingston,01/05/2023,90237352,"-6,954.39",CHOICE LTD,SOCIAL SERVICES RESIDENTIAL,Adult Social Care & Health,Independent Placements,A56006
Royal Borough of Kingston,01/05/2023,90237353,"7,545.49",CHOICE LTD,SOCIAL SERVICES RESIDENTIAL,Adult Social Care & Health,Independent Placements,A56006
Royal Borough of Kingston,04/05/2023,90231448,"167,164.50",CHRIST CHURCH  C. OF E.  PRIMARY SCHOOL (NEW MALDEN),SCHOOL FUNDS,Schools,Miscellaneous Expenses,A49000
Royal Borough of Kingston,09/05/2023,90232719,"27,726.84",CHRIST CHURCH  C. OF E.  PRIMARY SCHOOL (NEW MALDEN),SCHOOL FUNDS,Schools,Miscellaneous Expenses,A49000
Royal Borough of Kingston,12/05/2023,90234000,"27,008.00",CHRIST CHURCH  C. OF E.  PRIMARY SCHOOL (NEW MALDEN),SCHOOL FUNDS,Schools,Miscellaneous Expenses,A49000
Royal Borough of Kingston,12/05/2023,90234027,"8,162.00",CHRIST CHURCH  C. OF E.  PRIMARY SCHOOL (NEW MALDEN),SCHOOL FUNDS,Schools,Miscellaneous Expenses,A49000
Royal Borough of Kingston,12/05/2023,90234054,"1,413.75",CHRIST CHURCH  C. OF E.  PRIMARY SCHOOL (NEW MALDEN),SCHOOL FUNDS,Schools,Miscellaneous Expenses,A49000
Royal Borough of Kingston,02/05/2023,70046167,"1,104.00",CHRIST CHURCH C.OF E. PRIMARY SCHOOL - (SURBITON),SCHOOL FUNDS,Childrens Services,MSF Claims Teaching Staff - Internal Trading,A46107
Royal Borough of Kingston,19/05/2023,70046948,"1,840.00",CHRIST CHURCH C.OF E. PRIMARY SCHOOL - (SURBITON),SCHOOL FUNDS,Childrens Services,MSF Claims Teaching Staff - Internal Trading,A46107
Royal Borough of Kingston,04/05/2023,90231447,"172,686.54",CHRIST CHURCH C.OF E. PRIMARY SCHOOL - (SURBITON),SCHOOL FUNDS,Schools,Miscellaneous Expenses,A49000
Royal Borough of Kingston,12/05/2023,90233999,"29,078.00",CHRIST CHURCH C.OF E. PRIMARY SCHOOL - (SURBITON),SCHOOL FUNDS,Schools,Miscellaneous Expenses,A49000
Royal Borough of Kingston,12/05/2023,90234026,"8,412.00",CHRIST CHURCH C.OF E. PRIMARY SCHOOL - (SURBITON),SCHOOL FUNDS,Schools,Miscellaneous Expenses,A49000
Royal Borough of Kingston,12/05/2023,90234053,"1,232.50",CHRIST CHURCH C.OF E. PRIMARY SCHOOL - (SURBITON),SCHOOL FUNDS,Schools,Miscellaneous Expenses,A49000
Royal Borough of Kingston,01/05/2023,90239687,"6,035.10",CHRISTIES CARE LTD,SOCIAL SERVICES RESIDENTIAL,Adult Social Care & Health,Personal Budget - Third Party,A61019
Royal Borough of Kingston,01/05/2023,90239688,"-5,747.70",CHRISTIES CARE LTD,SOCIAL SERVICES RESIDENTIAL,Adult Social Care & Health,Personal Budget - Third Party,A61019
Royal Borough of Kingston,01/05/2023,90239689,"6,236.27",CHRISTIES CARE LTD,SOCIAL SERVICES RESIDENTIAL,Adult Social Care & Health,Personal Budget - Third Party,A61019
Royal Borough of Kingston,01/05/2023,90239926,"5,641.71",CHRISTIES CARE LTD,SOCIAL SERVICES RESIDENTIAL,Adult Social Care & Health,Personal Budget - Third Party,A61019
Royal Borough of Kingston,01/05/2023,90239927,"-5,373.04",CHRISTIES CARE LTD,SOCIAL SERVICES RESIDENTIAL,Adult Social Care & Health,Personal Budget - Third Party,A61019
Royal Borough of Kingston,01/05/2023,90239928,"5,829.77",CHRISTIES CARE LTD,SOCIAL SERVICES RESIDENTIAL,Adult Social Care & Health,Personal Budget - Third Party,A61019
Royal Borough of Kingston,01/05/2023,90239932,"5,870.14",CHRISTIES CARE LTD,SOCIAL SERVICES RESIDENTIAL,Adult Social Care & Health,Personal Budget - Third Party,A61019
Royal Borough of Kingston,01/05/2023,90239933,"-5,590.63",CHRISTIES CARE LTD,SOCIAL SERVICES RESIDENTIAL,Adult Social Care & Health,Personal Budget - Third Party,A61019
Royal Borough of Kingston,01/05/2023,90239934,"6,065.81",CHRISTIES CARE LTD,SOCIAL SERVICES RESIDENTIAL,Adult Social Care & Health,Personal Budget - Third Party,A61019
Royal Borough of Kingston,01/05/2023,90240051,"5,664.21",CHRISTIES CARE LTD,SOCIAL SERVICES RESIDENTIAL,Adult Social Care & Health,Personal Budget - Third Party,A61019
Royal Borough of Kingston,01/05/2023,90240052,"-5,394.47",CHRISTIES CARE LTD,SOCIAL SERVICES RESIDENTIAL,Adult Social Care & Health,Personal Budget - Third Party,A61019
Royal Borough of Kingston,01/05/2023,90240055,"5,853.02",CHRISTIES CARE LTD,SOCIAL SERVICES RESIDENTIAL,Adult Social Care & Health,Personal Budget - Third Party,A61019
Royal Borough of Kingston,28/04/2023,70045977,"2,443.74",CITRON HYGIENE LIMITED,REFUSE COLLECTION / DISPOSAL,Corporate & Communities,Clinical Waste,A56054
Royal Borough of Kingston,30/04/2023,70046649,709.56,CITYSPRINT (UK) LTD,OFFICE SERVICES,Corporate & Communities,Books,A43050
Royal Borough of Kingston,09/05/2023,90232792,729.00,REDACTED - PERSONAL DATA,ACADEMIC INSTNS - OTHER,Schools,2 Yr Old Place Funding,A60000
Royal Borough of Kingston,05/05/2023,70047022,"2,289.00",CLEAR SKIES SOFTWARE LTD,BUSINESS & COMPUTER SYSTEMS,Adult Social Care & Health,Equipment And Materials Purchase,A40000
Royal Borough of Kingston,01/05/2023,90237364,"8,953.59",CLEARWATER CARE (HACKNEY) LTD,SOCIAL SERVICES RESIDENTIAL,Adult Social Care & Health,Independent Placements,A56006
Royal Borough of Kingston,01/05/2023,90237365,"-8,527.24",CLEARWATER CARE (HACKNEY) LTD,SOCIAL SERVICES RESIDENTIAL,Adult Social Care & Health,Independent Placements,A56006
Royal Borough of Kingston,01/05/2023,90237366,"9,252.04",CLEARWATER CARE (HACKNEY) LTD,SOCIAL SERVICES RESIDENTIAL,Adult Social Care & Health,Independent Placements,A56006
Royal Borough of Kingston,31/03/2023,70045882,"7,462.00",Clemlec Group Ltd,SUNDRY SUPPLIER - HOUSING,Place,Grants Given For Capital Purposes,C20004
Royal Borough of Kingston,01/05/2023,90240438,"6,418.89",CLIA Care Ltd,ACCOMMODATION - OTHER,Adult Social Care & Health,Personal Budget - Third Party,A61019
Royal Borough of Kingston,01/05/2023,90240439,"-6,113.23",CLIA Care Ltd,ACCOMMODATION - OTHER,Adult Social Care & Health,Personal Budget - Third Party,A61019
Royal Borough of Kingston,01/05/2023,90240440,"6,632.85",CLIA Care Ltd,ACCOMMODATION - OTHER,Adult Social Care & Health,Personal Budget - Third Party,A61019
Royal Borough of Kingston,25/05/2023,90236422,"1,094.00",CLIFFE &  ROCHFORD,PLS LANDLORDS,Place,PSL Payments To Landlords,A22031
Royal Borough of Kingston,25/05/2023,90236242,"1,435.50",CLIQUE 187 LTD,PLS LANDLORDS,Place,PSL Payments To Landlords,A22031
Royal Borough of Kingston,01/05/2023,90239911,"3,099.39",CMG LIMITED,SOCIAL SERVICES - OTHER,Adult Social Care & Health,Personal Budget - Third Party,A61019
Royal Borough of Kingston,01/05/2023,90239912,"-2,951.79",CMG LIMITED,SOCIAL SERVICES - OTHER,Adult Social Care & Health,Personal Budget - Third Party,A61019
Royal Borough of Kingston,01/05/2023,90239913,"3,202.70",CMG LIMITED,SOCIAL SERVICES - OTHER,Adult Social Care & Health,Personal Budget - Third Party,A61019
Royal Borough of Kingston,01/05/2023,90239983,"5,623.29",CMG LIMITED,SOCIAL SERVICES - OTHER,Adult Social Care & Health,Personal Budget - Third Party,A61019
Royal Borough of Kingston,01/05/2023,90239984,"-5,355.51",CMG LIMITED,SOCIAL SERVICES - OTHER,Adult Social Care & Health,Personal Budget - Third Party,A61019
Royal Borough of Kingston,01/05/2023,90239985,"5,810.73",CMG LIMITED,SOCIAL SERVICES - OTHER,Adult Social Care & Health,Personal Budget - Third Party,A61019
Royal Borough of Kingston,01/05/2023,90239986,"5,589.94",CMG LIMITED,SOCIAL SERVICES - OTHER,Adult Social Care & Health,Personal Budget - Third Party,A61019
Royal Borough of Kingston,01/05/2023,90239987,"-5,323.76",CMG LIMITED,SOCIAL SERVICES - OTHER,Adult Social Care & Health,Personal Budget - Third Party,A61019
Royal Borough of Kingston,01/05/2023,90239988,"5,776.27",CMG LIMITED,SOCIAL SERVICES - OTHER,Adult Social Care & Health,Personal Budget - Third Party,A61019
Royal Borough of Kingston,01/05/2023,90240025,"6,137.96",CMG LIMITED,SOCIAL SERVICES - OTHER,Adult Social Care & Health,Personal Budget - Third Party,A61019
Royal Borough of Kingston,01/05/2023,90240026,"-5,845.67",CMG LIMITED,SOCIAL SERVICES - OTHER,Adult Social Care & Health,Personal Budget - Third Party,A61019
Royal Borough of Kingston,01/05/2023,90240027,"6,342.56",CMG LIMITED,SOCIAL SERVICES - OTHER,Adult Social Care & Health,Personal Budget - Third Party,A61019
Royal Borough of Kingston,01/05/2023,90240057,945.26,CMG LIMITED,SOCIAL SERVICES - OTHER,Adult Social Care & Health,Personal Budget - Third Party,A61019
Royal Borough of Kingston,01/05/2023,90240058,"4,083.86",CMG LIMITED,SOCIAL SERVICES - OTHER,Adult Social Care & Health,Personal Budget - Third Party,A61019
Royal Borough of Kingston,01/05/2023,90240059,"-3,889.37",CMG LIMITED,SOCIAL SERVICES - OTHER,Adult Social Care & Health,Personal Budget - Third Party,A61019
Royal Borough of Kingston,01/05/2023,90240060,-900.26,CMG LIMITED,SOCIAL SERVICES - OTHER,Adult Social Care & Health,Personal Budget - Third Party,A61019
Royal Borough of Kingston,01/05/2023,90240061,976.77,CMG LIMITED,SOCIAL SERVICES - OTHER,Adult Social Care & Health,Personal Budget - Third Party,A61019
Royal Borough of Kingston,01/05/2023,90240062,"4,219.99",CMG LIMITED,SOCIAL SERVICES - OTHER,Adult Social Care & Health,Personal Budget - Third Party,A61019
Royal Borough of Kingston,01/05/2023,90240228,"4,871.57",CMG LIMITED,SOCIAL SERVICES - OTHER,Adult Social Care & Health,Personal Budget - Third Party,A61019
Royal Borough of Kingston,01/05/2023,90240229,"-4,639.59",CMG LIMITED,SOCIAL SERVICES - OTHER,Adult Social Care & Health,Personal Budget - Third Party,A61019
Royal Borough of Kingston,01/05/2023,90240230,"5,033.96",CMG LIMITED,SOCIAL SERVICES - OTHER,Adult Social Care & Health,Personal Budget - Third Party,A61019
Royal Borough of Kingston,24/04/2023,90234250,567.24,CN Healthcare,SOCIAL SERVICES - OTHER,Adult Social Care & Health,Homecare - new framework,A56127
Royal Borough of Kingston,24/04/2023,90234328,945.40,CN Healthcare,SOCIAL SERVICES - OTHER,Adult Social Care & Health,Homecare - new framework,A56127
Royal Borough of Kingston,24/04/2023,90234828,693.29,CN Healthcare,SOCIAL SERVICES - OTHER,Adult Social Care & Health,Homecare - new framework,A56127
Royal Borough of Kingston,01/05/2023,90235426,567.24,CN Healthcare,SOCIAL SERVICES - OTHER,Adult Social Care & Health,Homecare - new framework,A56127
Royal Borough of Kingston,01/05/2023,90235513,945.40,CN Healthcare,SOCIAL SERVICES - OTHER,Adult Social Care & Health,Homecare - new framework,A56127
Royal Borough of Kingston,01/05/2023,90235633,630.27,CN Healthcare,SOCIAL SERVICES - OTHER,Adult Social Care & Health,Homecare - new framework,A56127
Royal Borough of Kingston,01/05/2023,90235886,693.29,CN Healthcare,SOCIAL SERVICES - OTHER,Adult Social Care & Health,Homecare - new framework,A56127
Royal Borough of Kingston,08/05/2023,90238500,567.24,CN Healthcare,SOCIAL SERVICES - OTHER,Adult Social Care & Health,Homecare - new framework,A56127
Royal Borough of Kingston,08/05/2023,90238575,945.40,CN Healthcare,SOCIAL SERVICES - OTHER,Adult Social Care & Health,Homecare - new framework,A56127
Royal Borough of Kingston,08/05/2023,90238685,630.27,CN Healthcare,SOCIAL SERVICES - OTHER,Adult Social Care & Health,Homecare - new framework,A56127
Royal Borough of Kingston,08/05/2023,90239239,693.29,CN Healthcare,SOCIAL SERVICES - OTHER,Adult Social Care & Health,Homecare - new framework,A56127
Royal Borough of Kingston,25/05/2023,90236463,"1,116.00",COBHAM RENTALS LTD,PLS LANDLORDS,Place,PSL Payments To Landlords,A22031
Royal Borough of Kingston,25/05/2023,90236464,"1,116.00",COBHAM RENTALS LTD,PLS LANDLORDS,Place,PSL Payments To Landlords,A22031
Royal Borough of Kingston,25/05/2023,90236465,"1,116.00",COBHAM RENTALS LTD,PLS LANDLORDS,Place,PSL Payments To Landlords,A22031
Royal Borough of Kingston,01/05/2023,90237429,"14,248.20",COGNITHAN,SOCIAL SERVICES RESIDENTIAL,Adult Social Care & Health,Independent Placements,A56006
Royal Borough of Kingston,01/05/2023,90237430,"-13,569.73",COGNITHAN,SOCIAL SERVICES RESIDENTIAL,Adult Social Care & Health,Independent Placements,A56006
Royal Borough of Kingston,01/05/2023,90237431,"14,723.14",COGNITHAN,SOCIAL SERVICES RESIDENTIAL,Adult Social Care & Health,Independent Placements,A56006
Royal Borough of Kingston,25/05/2023,90236284,"1,215.00",REDACTED - PERSONAL DATA,PLS LANDLORDS,Place,PSL Payments To Landlords,A22031
Royal Borough of Kingston,25/05/2023,90236303,"1,094.00",REDACTED - PERSONAL DATA,PLS LANDLORDS,Place,PSL Payments To Landlords,A22031
Royal Borough of Kingston,31/05/2023,70046107,514.39,COMETT LIMITED,ENTERTAINMENTS INDUSTRY,Adult Social Care & Health,Consultancy Services - Other,A44065
Royal Borough of Kingston,01/05/2023,90237540,"1,912.50",COMFORT CARE SERVICES UK LTD,SOCIAL SERVICES-HOME CARE,Adult Social Care & Health,Supported Living - new framework,A56126
Royal Borough of Kingston,01/05/2023,90237541,"3,061.91",COMFORT CARE SERVICES UK LTD,SOCIAL SERVICES-HOME CARE,Adult Social Care & Health,Supported Living - new framework,A56126
Royal Borough of Kingston,01/05/2023,90237542,"-1,821.43",COMFORT CARE SERVICES UK LTD,SOCIAL SERVICES-HOME CARE,Adult Social Care & Health,Supported Living - new framework,A56126
Royal Borough of Kingston,01/05/2023,90237543,"-2,916.11",COMFORT CARE SERVICES UK LTD,SOCIAL SERVICES-HOME CARE,Adult Social Care & Health,Supported Living - new framework,A56126
Royal Borough of Kingston,01/05/2023,90237544,"1,976.25",COMFORT CARE SERVICES UK LTD,SOCIAL SERVICES-HOME CARE,Adult Social Care & Health,Supported Living - new framework,A56126
Royal Borough of Kingston,01/05/2023,90237545,"3,163.98",COMFORT CARE SERVICES UK LTD,SOCIAL SERVICES-HOME CARE,Adult Social Care & Health,Supported Living - new framework,A56126
Royal Borough of Kingston,01/05/2023,90237547,"1,784.36",COMFORT CARE SERVICES UK LTD,SOCIAL SERVICES-HOME CARE,Adult Social Care & Health,Supported Living - new framework,A56126
Royal Borough of Kingston,01/05/2023,90237548,892.18,COMFORT CARE SERVICES UK LTD,SOCIAL SERVICES-HOME CARE,Adult Social Care & Health,Supported Living - new framework,A56126
Royal Borough of Kingston,01/05/2023,90237550,"-1,699.39",COMFORT CARE SERVICES UK LTD,SOCIAL SERVICES-HOME CARE,Adult Social Care & Health,Supported Living - new framework,A56126
Royal Borough of Kingston,01/05/2023,90237551,-849.70,COMFORT CARE SERVICES UK LTD,SOCIAL SERVICES-HOME CARE,Adult Social Care & Health,Supported Living - new framework,A56126
Royal Borough of Kingston,01/05/2023,90237553,"1,843.84",COMFORT CARE SERVICES UK LTD,SOCIAL SERVICES-HOME CARE,Adult Social Care & Health,Supported Living - new framework,A56126
Royal Borough of Kingston,01/05/2023,90237554,921.92,COMFORT CARE SERVICES UK LTD,SOCIAL SERVICES-HOME CARE,Adult Social Care & Health,Supported Living - new framework,A56126
Royal Borough of Kingston,01/05/2023,90237556,"1,784.36",COMFORT CARE SERVICES UK LTD,SOCIAL SERVICES-HOME CARE,Adult Social Care & Health,Supported Living - new framework,A56126
Royal Borough of Kingston,01/05/2023,90237557,892.18,COMFORT CARE SERVICES UK LTD,SOCIAL SERVICES-HOME CARE,Adult Social Care & Health,Supported Living - new framework,A56126
Royal Borough of Kingston,01/05/2023,90237559,"-1,699.39",COMFORT CARE SERVICES UK LTD,SOCIAL SERVICES-HOME CARE,Adult Social Care & Health,Supported Living - new framework,A56126
Royal Borough of Kingston,01/05/2023,90237560,-849.70,COMFORT CARE SERVICES UK LTD,SOCIAL SERVICES-HOME CARE,Adult Social Care & Health,Supported Living - new framework,A56126
Royal Borough of Kingston,01/05/2023,90237562,"1,843.84",COMFORT CARE SERVICES UK LTD,SOCIAL SERVICES-HOME CARE,Adult Social Care & Health,Supported Living - new framework,A56126
Royal Borough of Kingston,01/05/2023,90237563,921.92,COMFORT CARE SERVICES UK LTD,SOCIAL SERVICES-HOME CARE,Adult Social Care & Health,Supported Living - new framework,A56126
Royal Borough of Kingston,01/05/2023,90238164,"2,142.00",COMFORT CARE SERVICES UK LTD,SOCIAL SERVICES-HOME CARE,Adult Social Care & Health,Supported Living - new framework,A56126
Royal Borough of Kingston,01/05/2023,90238165,535.50,COMFORT CARE SERVICES UK LTD,SOCIAL SERVICES-HOME CARE,Adult Social Care & Health,Supported Living - new framework,A56126
Royal Borough of Kingston,01/05/2023,90238167,"-2,040.00",COMFORT CARE SERVICES UK LTD,SOCIAL SERVICES-HOME CARE,Adult Social Care & Health,Supported Living - new framework,A56126
Royal Borough of Kingston,01/05/2023,90238168,-510.00,COMFORT CARE SERVICES UK LTD,SOCIAL SERVICES-HOME CARE,Adult Social Care & Health,Supported Living - new framework,A56126
Royal Borough of Kingston,01/05/2023,90238170,"2,213.40",COMFORT CARE SERVICES UK LTD,SOCIAL SERVICES-HOME CARE,Adult Social Care & Health,Supported Living - new framework,A56126
Royal Borough of Kingston,01/05/2023,90238171,553.35,COMFORT CARE SERVICES UK LTD,SOCIAL SERVICES-HOME CARE,Adult Social Care & Health,Supported Living - new framework,A56126
Royal Borough of Kingston,01/05/2023,90238173,"1,912.50",COMFORT CARE SERVICES UK LTD,SOCIAL SERVICES-HOME CARE,Adult Social Care & Health,Supported Living - new framework,A56126
Royal Borough of Kingston,01/05/2023,90238174,765.00,COMFORT CARE SERVICES UK LTD,SOCIAL SERVICES-HOME CARE,Adult Social Care & Health,Supported Living - new framework,A56126
Royal Borough of Kingston,01/05/2023,90238176,"-1,821.43",COMFORT CARE SERVICES UK LTD,SOCIAL SERVICES-HOME CARE,Adult Social Care & Health,Supported Living - new framework,A56126
Royal Borough of Kingston,01/05/2023,90238177,-728.57,COMFORT CARE SERVICES UK LTD,SOCIAL SERVICES-HOME CARE,Adult Social Care & Health,Supported Living - new framework,A56126
Royal Borough of Kingston,01/05/2023,90238179,"1,976.25",COMFORT CARE SERVICES UK LTD,SOCIAL SERVICES-HOME CARE,Adult Social Care & Health,Supported Living - new framework,A56126
Royal Borough of Kingston,01/05/2023,90238180,790.50,COMFORT CARE SERVICES UK LTD,SOCIAL SERVICES-HOME CARE,Adult Social Care & Health,Supported Living - new framework,A56126
Royal Borough of Kingston,01/05/2023,90238182,903.60,COMFORT CARE SERVICES UK LTD,SOCIAL SERVICES-HOME CARE,Adult Social Care & Health,Supported Living - new framework,A56126
Royal Borough of Kingston,01/05/2023,90238184,-860.57,COMFORT CARE SERVICES UK LTD,SOCIAL SERVICES-HOME CARE,Adult Social Care & Health,Supported Living - new framework,A56126
Royal Borough of Kingston,01/05/2023,90238186,933.72,COMFORT CARE SERVICES UK LTD,SOCIAL SERVICES-HOME CARE,Adult Social Care & Health,Supported Living - new framework,A56126
Royal Borough of Kingston,01/05/2023,90238188,"1,784.36",COMFORT CARE SERVICES UK LTD,SOCIAL SERVICES-HOME CARE,Adult Social Care & Health,Supported Living - new framework,A56126
Royal Borough of Kingston,01/05/2023,90238189,892.18,COMFORT CARE SERVICES UK LTD,SOCIAL SERVICES-HOME CARE,Adult Social Care & Health,Supported Living - new framework,A56126
Royal Borough of Kingston,01/05/2023,90238191,"-1,699.39",COMFORT CARE SERVICES UK LTD,SOCIAL SERVICES-HOME CARE,Adult Social Care & Health,Supported Living - new framework,A56126
Royal Borough of Kingston,01/05/2023,90238192,-849.70,COMFORT CARE SERVICES UK LTD,SOCIAL SERVICES-HOME CARE,Adult Social Care & Health,Supported Living - new framework,A56126
Royal Borough of Kingston,01/05/2023,90238194,"1,843.84",COMFORT CARE SERVICES UK LTD,SOCIAL SERVICES-HOME CARE,Adult Social Care & Health,Supported Living - new framework,A56126
Royal Borough of Kingston,01/05/2023,90238195,921.92,COMFORT CARE SERVICES UK LTD,SOCIAL SERVICES-HOME CARE,Adult Social Care & Health,Supported Living - new framework,A56126
Royal Borough of Kingston,01/05/2023,90238196,573.69,COMFORT CARE SERVICES UK LTD,SOCIAL SERVICES-HOME CARE,Adult Social Care & Health,Supported Living - new framework,A56126
Royal Borough of Kingston,01/05/2023,90238197,"1,147.50",COMFORT CARE SERVICES UK LTD,SOCIAL SERVICES-HOME CARE,Adult Social Care & Health,Supported Living - new framework,A56126
Royal Borough of Kingston,01/05/2023,90238198,-546.43,COMFORT CARE SERVICES UK LTD,SOCIAL SERVICES-HOME CARE,Adult Social Care & Health,Supported Living - new framework,A56126
Royal Borough of Kingston,01/05/2023,90238199,"-1,092.86",COMFORT CARE SERVICES UK LTD,SOCIAL SERVICES-HOME CARE,Adult Social Care & Health,Supported Living - new framework,A56126
Royal Borough of Kingston,01/05/2023,90238200,592.81,COMFORT CARE SERVICES UK LTD,SOCIAL SERVICES-HOME CARE,Adult Social Care & Health,Supported Living - new framework,A56126
Royal Borough of Kingston,01/05/2023,90238201,"1,185.75",COMFORT CARE SERVICES UK LTD,SOCIAL SERVICES-HOME CARE,Adult Social Care & Health,Supported Living - new framework,A56126
Royal Borough of Kingston,01/05/2023,90238208,"1,784.36",COMFORT CARE SERVICES UK LTD,SOCIAL SERVICES-HOME CARE,Adult Social Care & Health,Supported Living - new framework,A56126
Royal Borough of Kingston,01/05/2023,90238209,892.18,COMFORT CARE SERVICES UK LTD,SOCIAL SERVICES-HOME CARE,Adult Social Care & Health,Supported Living - new framework,A56126
Royal Borough of Kingston,01/05/2023,90238211,"-1,699.39",COMFORT CARE SERVICES UK LTD,SOCIAL SERVICES-HOME CARE,Adult Social Care & Health,Supported Living - new framework,A56126
Royal Borough of Kingston,01/05/2023,90238212,-849.70,COMFORT CARE SERVICES UK LTD,SOCIAL SERVICES-HOME CARE,Adult Social Care & Health,Supported Living - new framework,A56126
Royal Borough of Kingston,01/05/2023,90238214,"1,843.84",COMFORT CARE SERVICES UK LTD,SOCIAL SERVICES-HOME CARE,Adult Social Care & Health,Supported Living - new framework,A56126
Royal Borough of Kingston,01/05/2023,90238215,921.92,COMFORT CARE SERVICES UK LTD,SOCIAL SERVICES-HOME CARE,Adult Social Care & Health,Supported Living - new framework,A56126
Royal Borough of Kingston,01/05/2023,90238217,"2,142.00",COMFORT CARE SERVICES UK LTD,SOCIAL SERVICES-HOME CARE,Adult Social Care & Health,Supported Living - new framework,A56126
Royal Borough of Kingston,01/05/2023,90238218,535.50,COMFORT CARE SERVICES UK LTD,SOCIAL SERVICES-HOME CARE,Adult Social Care & Health,Supported Living - new framework,A56126
Royal Borough of Kingston,01/05/2023,90238220,"-2,040.00",COMFORT CARE SERVICES UK LTD,SOCIAL SERVICES-HOME CARE,Adult Social Care & Health,Supported Living - new framework,A56126
Royal Borough of Kingston,01/05/2023,90238221,-510.00,COMFORT CARE SERVICES UK LTD,SOCIAL SERVICES-HOME CARE,Adult Social Care & Health,Supported Living - new framework,A56126
Royal Borough of Kingston,01/05/2023,90238223,"2,213.40",COMFORT CARE SERVICES UK LTD,SOCIAL SERVICES-HOME CARE,Adult Social Care & Health,Supported Living - new framework,A56126
Royal Borough of Kingston,01/05/2023,90238224,553.35,COMFORT CARE SERVICES UK LTD,SOCIAL SERVICES-HOME CARE,Adult Social Care & Health,Supported Living - new framework,A56126
Royal Borough of Kingston,01/05/2023,90238226,"1,784.36",COMFORT CARE SERVICES UK LTD,SOCIAL SERVICES-HOME CARE,Adult Social Care & Health,Supported Living - new framework,A56126
Royal Borough of Kingston,01/05/2023,90238227,892.18,COMFORT CARE SERVICES UK LTD,SOCIAL SERVICES-HOME CARE,Adult Social Care & Health,Supported Living - new framework,A56126
Royal Borough of Kingston,01/05/2023,90238229,"-1,699.39",COMFORT CARE SERVICES UK LTD,SOCIAL SERVICES-HOME CARE,Adult Social Care & Health,Supported Living - new framework,A56126
Royal Borough of Kingston,01/05/2023,90238230,-849.70,COMFORT CARE SERVICES UK LTD,SOCIAL SERVICES-HOME CARE,Adult Social Care & Health,Supported Living - new framework,A56126
Royal Borough of Kingston,01/05/2023,90238232,"1,843.84",COMFORT CARE SERVICES UK LTD,SOCIAL SERVICES-HOME CARE,Adult Social Care & Health,Supported Living - new framework,A56126
Royal Borough of Kingston,01/05/2023,90238233,921.92,COMFORT CARE SERVICES UK LTD,SOCIAL SERVICES-HOME CARE,Adult Social Care & Health,Supported Living - new framework,A56126
Royal Borough of Kingston,01/05/2023,90238236,855.00,COMFORT CARE SERVICES UK LTD,SOCIAL SERVICES-HOME CARE,Adult Social Care & Health,Supported Living - new framework,A56126
Royal Borough of Kingston,01/05/2023,90238237,"2,142.00",COMFORT CARE SERVICES UK LTD,SOCIAL SERVICES-HOME CARE,Adult Social Care & Health,Supported Living - new framework,A56126
Royal Borough of Kingston,01/05/2023,90238238,535.50,COMFORT CARE SERVICES UK LTD,SOCIAL SERVICES-HOME CARE,Adult Social Care & Health,Supported Living - new framework,A56126
Royal Borough of Kingston,01/05/2023,90238239,-814.29,COMFORT CARE SERVICES UK LTD,SOCIAL SERVICES-HOME CARE,Adult Social Care & Health,Supported Living - new framework,A56126
Royal Borough of Kingston,01/05/2023,90238241,"-2,040.00",COMFORT CARE SERVICES UK LTD,SOCIAL SERVICES-HOME CARE,Adult Social Care & Health,Supported Living - new framework,A56126
Royal Borough of Kingston,01/05/2023,90238242,-510.00,COMFORT CARE SERVICES UK LTD,SOCIAL SERVICES-HOME CARE,Adult Social Care & Health,Supported Living - new framework,A56126
Royal Borough of Kingston,01/05/2023,90238244,883.50,COMFORT CARE SERVICES UK LTD,SOCIAL SERVICES-HOME CARE,Adult Social Care & Health,Supported Living - new framework,A56126
Royal Borough of Kingston,01/05/2023,90238245,"2,213.40",COMFORT CARE SERVICES UK LTD,SOCIAL SERVICES-HOME CARE,Adult Social Care & Health,Supported Living - new framework,A56126
Royal Borough of Kingston,01/05/2023,90238246,553.35,COMFORT CARE SERVICES UK LTD,SOCIAL SERVICES-HOME CARE,Adult Social Care & Health,Supported Living - new framework,A56126
Royal Borough of Kingston,01/05/2023,90238249,"1,740.38",COMFORT CARE SERVICES UK LTD,SOCIAL SERVICES-HOME CARE,Adult Social Care & Health,Supported Living - new framework,A56126
Royal Borough of Kingston,01/05/2023,90238250,580.13,COMFORT CARE SERVICES UK LTD,SOCIAL SERVICES-HOME CARE,Adult Social Care & Health,Supported Living - new framework,A56126
Royal Borough of Kingston,01/05/2023,90238252,"-1,912.50",COMFORT CARE SERVICES UK LTD,SOCIAL SERVICES-HOME CARE,Adult Social Care & Health,Supported Living - new framework,A56126
Royal Borough of Kingston,01/05/2023,90238253,-637.50,COMFORT CARE SERVICES UK LTD,SOCIAL SERVICES-HOME CARE,Adult Social Care & Health,Supported Living - new framework,A56126
Royal Borough of Kingston,01/05/2023,90238255,903.60,COMFORT CARE SERVICES UK LTD,SOCIAL SERVICES-HOME CARE,Adult Social Care & Health,Supported Living - new framework,A56126
Royal Borough of Kingston,01/05/2023,90238257,-860.57,COMFORT CARE SERVICES UK LTD,SOCIAL SERVICES-HOME CARE,Adult Social Care & Health,Supported Living - new framework,A56126
Royal Borough of Kingston,01/05/2023,90238259,933.72,COMFORT CARE SERVICES UK LTD,SOCIAL SERVICES-HOME CARE,Adult Social Care & Health,Supported Living - new framework,A56126
Royal Borough of Kingston,01/05/2023,90238261,"1,784.36",COMFORT CARE SERVICES UK LTD,SOCIAL SERVICES-HOME CARE,Adult Social Care & Health,Supported Living - new framework,A56126
Royal Borough of Kingston,01/05/2023,90238262,892.18,COMFORT CARE SERVICES UK LTD,SOCIAL SERVICES-HOME CARE,Adult Social Care & Health,Supported Living - new framework,A56126
Royal Borough of Kingston,01/05/2023,90238264,"-1,699.39",COMFORT CARE SERVICES UK LTD,SOCIAL SERVICES-HOME CARE,Adult Social Care & Health,Supported Living - new framework,A56126
Royal Borough of Kingston,01/05/2023,90238265,-849.70,COMFORT CARE SERVICES UK LTD,SOCIAL SERVICES-HOME CARE,Adult Social Care & Health,Supported Living - new framework,A56126
Royal Borough of Kingston,01/05/2023,90238267,"1,843.84",COMFORT CARE SERVICES UK LTD,SOCIAL SERVICES-HOME CARE,Adult Social Care & Health,Supported Living - new framework,A56126
Royal Borough of Kingston,01/05/2023,90238268,921.92,COMFORT CARE SERVICES UK LTD,SOCIAL SERVICES-HOME CARE,Adult Social Care & Health,Supported Living - new framework,A56126
Royal Borough of Kingston,01/05/2023,90238270,"1,784.36",COMFORT CARE SERVICES UK LTD,SOCIAL SERVICES-HOME CARE,Adult Social Care & Health,Supported Living - new framework,A56126
Royal Borough of Kingston,01/05/2023,90238271,892.18,COMFORT CARE SERVICES UK LTD,SOCIAL SERVICES-HOME CARE,Adult Social Care & Health,Supported Living - new framework,A56126
Royal Borough of Kingston,01/05/2023,90238273,"-1,699.39",COMFORT CARE SERVICES UK LTD,SOCIAL SERVICES-HOME CARE,Adult Social Care & Health,Supported Living - new framework,A56126
Royal Borough of Kingston,01/05/2023,90238274,-849.70,COMFORT CARE SERVICES UK LTD,SOCIAL SERVICES-HOME CARE,Adult Social Care & Health,Supported Living - new framework,A56126
Royal Borough of Kingston,01/05/2023,90238276,"1,843.84",COMFORT CARE SERVICES UK LTD,SOCIAL SERVICES-HOME CARE,Adult Social Care & Health,Supported Living - new framework,A56126
Royal Borough of Kingston,01/05/2023,90238277,921.92,COMFORT CARE SERVICES UK LTD,SOCIAL SERVICES-HOME CARE,Adult Social Care & Health,Supported Living - new framework,A56126
Royal Borough of Kingston,01/05/2023,90238279,"1,784.36",COMFORT CARE SERVICES UK LTD,SOCIAL SERVICES-HOME CARE,Adult Social Care & Health,Supported Living - new framework,A56126
Royal Borough of Kingston,01/05/2023,90238280,892.18,COMFORT CARE SERVICES UK LTD,SOCIAL SERVICES-HOME CARE,Adult Social Care & Health,Supported Living - new framework,A56126
Royal Borough of Kingston,01/05/2023,90238282,"-1,699.39",COMFORT CARE SERVICES UK LTD,SOCIAL SERVICES-HOME CARE,Adult Social Care & Health,Supported Living - new framework,A56126
Royal Borough of Kingston,01/05/2023,90238283,-849.70,COMFORT CARE SERVICES UK LTD,SOCIAL SERVICES-HOME CARE,Adult Social Care & Health,Supported Living - new framework,A56126
Royal Borough of Kingston,01/05/2023,90238285,"1,843.84",COMFORT CARE SERVICES UK LTD,SOCIAL SERVICES-HOME CARE,Adult Social Care & Health,Supported Living - new framework,A56126
Royal Borough of Kingston,01/05/2023,90238286,921.92,COMFORT CARE SERVICES UK LTD,SOCIAL SERVICES-HOME CARE,Adult Social Care & Health,Supported Living - new framework,A56126
Royal Borough of Kingston,01/05/2023,90238288,"1,784.36",COMFORT CARE SERVICES UK LTD,SOCIAL SERVICES-HOME CARE,Adult Social Care & Health,Supported Living - new framework,A56126
Royal Borough of Kingston,01/05/2023,90238289,892.18,COMFORT CARE SERVICES UK LTD,SOCIAL SERVICES-HOME CARE,Adult Social Care & Health,Supported Living - new framework,A56126
Royal Borough of Kingston,01/05/2023,90238291,"-1,699.39",COMFORT CARE SERVICES UK LTD,SOCIAL SERVICES-HOME CARE,Adult Social Care & Health,Supported Living - new framework,A56126
Royal Borough of Kingston,01/05/2023,90238292,-849.70,COMFORT CARE SERVICES UK LTD,SOCIAL SERVICES-HOME CARE,Adult Social Care & Health,Supported Living - new framework,A56126
Royal Borough of Kingston,01/05/2023,90238294,"1,843.84",COMFORT CARE SERVICES UK LTD,SOCIAL SERVICES-HOME CARE,Adult Social Care & Health,Supported Living - new framework,A56126
Royal Borough of Kingston,01/05/2023,90238295,921.92,COMFORT CARE SERVICES UK LTD,SOCIAL SERVICES-HOME CARE,Adult Social Care & Health,Supported Living - new framework,A56126
Royal Borough of Kingston,01/05/2023,90238302,"1,784.36",COMFORT CARE SERVICES UK LTD,SOCIAL SERVICES-HOME CARE,Adult Social Care & Health,Supported Living - new framework,A56126
Royal Borough of Kingston,01/05/2023,90238303,892.18,COMFORT CARE SERVICES UK LTD,SOCIAL SERVICES-HOME CARE,Adult Social Care & Health,Supported Living - new framework,A56126
Royal Borough of Kingston,01/05/2023,90238305,"-1,699.39",COMFORT CARE SERVICES UK LTD,SOCIAL SERVICES-HOME CARE,Adult Social Care & Health,Supported Living - new framework,A56126
Royal Borough of Kingston,01/05/2023,90238306,-849.70,COMFORT CARE SERVICES UK LTD,SOCIAL SERVICES-HOME CARE,Adult Social Care & Health,Supported Living - new framework,A56126
Royal Borough of Kingston,01/05/2023,90238308,"1,843.84",COMFORT CARE SERVICES UK LTD,SOCIAL SERVICES-HOME CARE,Adult Social Care & Health,Supported Living - new framework,A56126
Royal Borough of Kingston,01/05/2023,90238309,921.92,COMFORT CARE SERVICES UK LTD,SOCIAL SERVICES-HOME CARE,Adult Social Care & Health,Supported Living - new framework,A56126
Royal Borough of Kingston,01/05/2023,90238311,"2,142.00",COMFORT CARE SERVICES UK LTD,SOCIAL SERVICES-HOME CARE,Adult Social Care & Health,Supported Living - new framework,A56126
Royal Borough of Kingston,01/05/2023,90238312,535.50,COMFORT CARE SERVICES UK LTD,SOCIAL SERVICES-HOME CARE,Adult Social Care & Health,Supported Living - new framework,A56126
Royal Borough of Kingston,01/05/2023,90238314,"-2,040.00",COMFORT CARE SERVICES UK LTD,SOCIAL SERVICES-HOME CARE,Adult Social Care & Health,Supported Living - new framework,A56126
Royal Borough of Kingston,01/05/2023,90238315,-510.00,COMFORT CARE SERVICES UK LTD,SOCIAL SERVICES-HOME CARE,Adult Social Care & Health,Supported Living - new framework,A56126
Royal Borough of Kingston,01/05/2023,90238317,"2,213.40",COMFORT CARE SERVICES UK LTD,SOCIAL SERVICES-HOME CARE,Adult Social Care & Health,Supported Living - new framework,A56126
Royal Borough of Kingston,01/05/2023,90238318,553.35,COMFORT CARE SERVICES UK LTD,SOCIAL SERVICES-HOME CARE,Adult Social Care & Health,Supported Living - new framework,A56126
Royal Borough of Kingston,01/05/2023,90238320,"2,142.00",COMFORT CARE SERVICES UK LTD,SOCIAL SERVICES-HOME CARE,Adult Social Care & Health,Supported Living - new framework,A56126
Royal Borough of Kingston,01/05/2023,90238321,535.50,COMFORT CARE SERVICES UK LTD,SOCIAL SERVICES-HOME CARE,Adult Social Care & Health,Supported Living - new framework,A56126
Royal Borough of Kingston,01/05/2023,90238323,"-2,040.00",COMFORT CARE SERVICES UK LTD,SOCIAL SERVICES-HOME CARE,Adult Social Care & Health,Supported Living - new framework,A56126
Royal Borough of Kingston,01/05/2023,90238324,-510.00,COMFORT CARE SERVICES UK LTD,SOCIAL SERVICES-HOME CARE,Adult Social Care & Health,Supported Living - new framework,A56126
Royal Borough of Kingston,01/05/2023,90238326,"2,213.40",COMFORT CARE SERVICES UK LTD,SOCIAL SERVICES-HOME CARE,Adult Social Care & Health,Supported Living - new framework,A56126
Royal Borough of Kingston,01/05/2023,90238327,553.35,COMFORT CARE SERVICES UK LTD,SOCIAL SERVICES-HOME CARE,Adult Social Care & Health,Supported Living - new framework,A56126
Royal Borough of Kingston,01/05/2023,90238333,573.69,COMFORT CARE SERVICES UK LTD,SOCIAL SERVICES-HOME CARE,Adult Social Care & Health,Supported Living - new framework,A56126
Royal Borough of Kingston,01/05/2023,90238334,"1,147.50",COMFORT CARE SERVICES UK LTD,SOCIAL SERVICES-HOME CARE,Adult Social Care & Health,Supported Living - new framework,A56126
Royal Borough of Kingston,01/05/2023,90238335,-546.43,COMFORT CARE SERVICES UK LTD,SOCIAL SERVICES-HOME CARE,Adult Social Care & Health,Supported Living - new framework,A56126
Royal Borough of Kingston,01/05/2023,90238336,"-1,092.86",COMFORT CARE SERVICES UK LTD,SOCIAL SERVICES-HOME CARE,Adult Social Care & Health,Supported Living - new framework,A56126
Royal Borough of Kingston,01/05/2023,90238337,592.81,COMFORT CARE SERVICES UK LTD,SOCIAL SERVICES-HOME CARE,Adult Social Care & Health,Supported Living - new framework,A56126
Royal Borough of Kingston,01/05/2023,90238338,"1,185.75",COMFORT CARE SERVICES UK LTD,SOCIAL SERVICES-HOME CARE,Adult Social Care & Health,Supported Living - new framework,A56126
Royal Borough of Kingston,01/05/2023,90238345,"1,784.36",COMFORT CARE SERVICES UK LTD,SOCIAL SERVICES-HOME CARE,Adult Social Care & Health,Supported Living - new framework,A56126
Royal Borough of Kingston,01/05/2023,90238346,892.18,COMFORT CARE SERVICES UK LTD,SOCIAL SERVICES-HOME CARE,Adult Social Care & Health,Supported Living - new framework,A56126
Royal Borough of Kingston,01/05/2023,90238348,"-1,699.39",COMFORT CARE SERVICES UK LTD,SOCIAL SERVICES-HOME CARE,Adult Social Care & Health,Supported Living - new framework,A56126
Royal Borough of Kingston,01/05/2023,90238349,-849.70,COMFORT CARE SERVICES UK LTD,SOCIAL SERVICES-HOME CARE,Adult Social Care & Health,Supported Living - new framework,A56126
Royal Borough of Kingston,01/05/2023,90238351,"1,843.84",COMFORT CARE SERVICES UK LTD,SOCIAL SERVICES-HOME CARE,Adult Social Care & Health,Supported Living - new framework,A56126
Royal Borough of Kingston,01/05/2023,90238352,921.92,COMFORT CARE SERVICES UK LTD,SOCIAL SERVICES-HOME CARE,Adult Social Care & Health,Supported Living - new framework,A56126
Royal Borough of Kingston,01/05/2023,90238354,956.25,COMFORT CARE SERVICES UK LTD,SOCIAL SERVICES-HOME CARE,Adult Social Care & Health,Supported Living - new framework,A56126
Royal Borough of Kingston,01/05/2023,90238355,"1,784.36",COMFORT CARE SERVICES UK LTD,SOCIAL SERVICES-HOME CARE,Adult Social Care & Health,Supported Living - new framework,A56126
Royal Borough of Kingston,01/05/2023,90238356,892.18,COMFORT CARE SERVICES UK LTD,SOCIAL SERVICES-HOME CARE,Adult Social Care & Health,Supported Living - new framework,A56126
Royal Borough of Kingston,01/05/2023,90238358,-910.71,COMFORT CARE SERVICES UK LTD,SOCIAL SERVICES-HOME CARE,Adult Social Care & Health,Supported Living - new framework,A56126
Royal Borough of Kingston,01/05/2023,90238359,"-1,699.39",COMFORT CARE SERVICES UK LTD,SOCIAL SERVICES-HOME CARE,Adult Social Care & Health,Supported Living - new framework,A56126
Royal Borough of Kingston,01/05/2023,90238360,-849.70,COMFORT CARE SERVICES UK LTD,SOCIAL SERVICES-HOME CARE,Adult Social Care & Health,Supported Living - new framework,A56126
Royal Borough of Kingston,01/05/2023,90238363,"1,843.84",COMFORT CARE SERVICES UK LTD,SOCIAL SERVICES-HOME CARE,Adult Social Care & Health,Supported Living - new framework,A56126
Royal Borough of Kingston,01/05/2023,90238364,921.92,COMFORT CARE SERVICES UK LTD,SOCIAL SERVICES-HOME CARE,Adult Social Care & Health,Supported Living - new framework,A56126
Royal Borough of Kingston,01/05/2023,90239675,"1,095.48",COMFORT CARE SERVICES UK LTD,SOCIAL SERVICES-HOME CARE,Adult Social Care & Health,Personal Budget - Third Party,A61019
Royal Borough of Kingston,01/05/2023,90239676,"4,364.06",COMFORT CARE SERVICES UK LTD,SOCIAL SERVICES-HOME CARE,Adult Social Care & Health,Personal Budget - Third Party,A61019
Royal Borough of Kingston,01/05/2023,90239677,"1,059.84",COMFORT CARE SERVICES UK LTD,SOCIAL SERVICES-HOME CARE,Adult Social Care & Health,Personal Budget - Third Party,A61019
Royal Borough of Kingston,01/05/2023,90239679,"-1,043.31",COMFORT CARE SERVICES UK LTD,SOCIAL SERVICES-HOME CARE,Adult Social Care & Health,Personal Budget - Third Party,A61019
Royal Borough of Kingston,01/05/2023,90239680,"-4,156.24",COMFORT CARE SERVICES UK LTD,SOCIAL SERVICES-HOME CARE,Adult Social Care & Health,Personal Budget - Third Party,A61019
Royal Borough of Kingston,01/05/2023,90239681,"-1,009.37",COMFORT CARE SERVICES UK LTD,SOCIAL SERVICES-HOME CARE,Adult Social Care & Health,Personal Budget - Third Party,A61019
Royal Borough of Kingston,01/05/2023,90239683,"1,132.00",COMFORT CARE SERVICES UK LTD,SOCIAL SERVICES-HOME CARE,Adult Social Care & Health,Personal Budget - Third Party,A61019
Royal Borough of Kingston,01/05/2023,90239684,"4,509.52",COMFORT CARE SERVICES UK LTD,SOCIAL SERVICES-HOME CARE,Adult Social Care & Health,Personal Budget - Third Party,A61019
Royal Borough of Kingston,01/05/2023,90239686,"1,095.17",COMFORT CARE SERVICES UK LTD,SOCIAL SERVICES-HOME CARE,Adult Social Care & Health,Personal Budget - Third Party,A61019
Royal Borough of Kingston,01/05/2023,90239697,935.15,COMFORT CARE SERVICES UK LTD,SOCIAL SERVICES-HOME CARE,Adult Social Care & Health,Personal Budget - Third Party,A61019
Royal Borough of Kingston,01/05/2023,90239698,"4,364.06",COMFORT CARE SERVICES UK LTD,SOCIAL SERVICES-HOME CARE,Adult Social Care & Health,Personal Budget - Third Party,A61019
Royal Borough of Kingston,01/05/2023,90239699,"1,059.84",COMFORT CARE SERVICES UK LTD,SOCIAL SERVICES-HOME CARE,Adult Social Care & Health,Personal Budget - Third Party,A61019
Royal Borough of Kingston,01/05/2023,90239701,-890.61,COMFORT CARE SERVICES UK LTD,SOCIAL SERVICES-HOME CARE,Adult Social Care & Health,Personal Budget - Third Party,A61019
Royal Borough of Kingston,01/05/2023,90239702,"-4,156.24",COMFORT CARE SERVICES UK LTD,SOCIAL SERVICES-HOME CARE,Adult Social Care & Health,Personal Budget - Third Party,A61019
Royal Borough of Kingston,01/05/2023,90239703,"-1,009.37",COMFORT CARE SERVICES UK LTD,SOCIAL SERVICES-HOME CARE,Adult Social Care & Health,Personal Budget - Third Party,A61019
Royal Borough of Kingston,01/05/2023,90239705,966.32,COMFORT CARE SERVICES UK LTD,SOCIAL SERVICES-HOME CARE,Adult Social Care & Health,Personal Budget - Third Party,A61019
Royal Borough of Kingston,01/05/2023,90239706,"4,509.52",COMFORT CARE SERVICES UK LTD,SOCIAL SERVICES-HOME CARE,Adult Social Care & Health,Personal Budget - Third Party,A61019
Royal Borough of Kingston,01/05/2023,90239708,"1,095.17",COMFORT CARE SERVICES UK LTD,SOCIAL SERVICES-HOME CARE,Adult Social Care & Health,Personal Budget - Third Party,A61019
Royal Borough of Kingston,01/05/2023,90239789,"1,095.48",COMFORT CARE SERVICES UK LTD,SOCIAL SERVICES-HOME CARE,Adult Social Care & Health,Personal Budget - Third Party,A61019
Royal Borough of Kingston,01/05/2023,90239790,"4,364.06",COMFORT CARE SERVICES UK LTD,SOCIAL SERVICES-HOME CARE,Adult Social Care & Health,Personal Budget - Third Party,A61019
Royal Borough of Kingston,01/05/2023,90239791,"1,059.84",COMFORT CARE SERVICES UK LTD,SOCIAL SERVICES-HOME CARE,Adult Social Care & Health,Personal Budget - Third Party,A61019
Royal Borough of Kingston,01/05/2023,90239793,"-1,043.31",COMFORT CARE SERVICES UK LTD,SOCIAL SERVICES-HOME CARE,Adult Social Care & Health,Personal Budget - Third Party,A61019
Royal Borough of Kingston,01/05/2023,90239794,"-4,156.24",COMFORT CARE SERVICES UK LTD,SOCIAL SERVICES-HOME CARE,Adult Social Care & Health,Personal Budget - Third Party,A61019
Royal Borough of Kingston,01/05/2023,90239795,"-1,009.37",COMFORT CARE SERVICES UK LTD,SOCIAL SERVICES-HOME CARE,Adult Social Care & Health,Personal Budget - Third Party,A61019
Royal Borough of Kingston,01/05/2023,90239797,"1,132.00",COMFORT CARE SERVICES UK LTD,SOCIAL SERVICES-HOME CARE,Adult Social Care & Health,Personal Budget - Third Party,A61019
Royal Borough of Kingston,01/05/2023,90239798,"4,509.52",COMFORT CARE SERVICES UK LTD,SOCIAL SERVICES-HOME CARE,Adult Social Care & Health,Personal Budget - Third Party,A61019
Royal Borough of Kingston,01/05/2023,90239800,"1,095.17",COMFORT CARE SERVICES UK LTD,SOCIAL SERVICES-HOME CARE,Adult Social Care & Health,Personal Budget - Third Party,A61019
Royal Borough of Kingston,01/05/2023,90240069,"4,063.46",COMFORT CARE SERVICES UK LTD,SOCIAL SERVICES-HOME CARE,Adult Social Care & Health,Personal Budget - Third Party,A61019
Royal Borough of Kingston,01/05/2023,90240070,"-3,869.96",COMFORT CARE SERVICES UK LTD,SOCIAL SERVICES-HOME CARE,Adult Social Care & Health,Personal Budget - Third Party,A61019
Royal Borough of Kingston,01/05/2023,90240071,"4,198.91",COMFORT CARE SERVICES UK LTD,SOCIAL SERVICES-HOME CARE,Adult Social Care & Health,Personal Budget - Third Party,A61019
Royal Borough of Kingston,01/05/2023,90240073,"1,442.84",COMFORT CARE SERVICES UK LTD,SOCIAL SERVICES-HOME CARE,Adult Social Care & Health,Personal Budget - Third Party,A61019
